Workbook

Sheet Sheet1 (hidden)
G1: технологическая карта | N1: изд | O1: 1 | R1: партия | S1: 4-21
J2: август | L2: 2021
B3: коэф | C3: Ф. И. О. | D3: р/р | E3: 2 | F3: 3 | G3: 4 | H3: 5 | I3: 6 | J3: 9 | K3: 10 | L3: 11 | M3: 12 | N3: 13 | O3: 16 | P3: 17 | Q3: 18 | R3: 19 | S3: 20 | T3: 23 | U3: 24 | V3: 25 | W3: 26 | X3: 27 | Y3: 30 | Z3: 31
C4: работник6 | D4: 3/16 | I4: 1 | L4: 1 | M4: 4 | N4: 3.2 | O4: 2 | P4: 1.2 | AA4: =SUM(E4:Z4) -> 12.4
C5: работник7 | K5: 7.2 | AA5: 7.2
C6: работник1 | E6: 6.7 | I6: 4.7 | O6: 6.7 | P6: 2 | AA6: 20.1
C7: работник8 | E7: 7.2 | G7: 7.2 | H7: 5 | I7: 4.2 | J7: 7.2 | K7: 7.2 | L7: 6.2 | AA7: 44.2
C8: работник9 | E8: 7.2 | F8: 7.2 | AA8: 14.4
C9: работник3 | F9: 2.6 | H9: 7.2 | K9: 7.2 | AA9: 17
C10: работник10 | H10: 7.2 | I10: 7.2 | J10: 4 | K10: 4 | L10: 2 | AA10: 24.4
C11: работник10 | L11: 7.2 | M11: 7.2 | N11: 7.2 | O11: 7.2 | AA11: 28.8
C12: работник5 | K12: 4 | M12: 4 | AA12: 8
C13: работник11 | J13: 7.2 | K13: 7.2 | M13: 7.2 | AA13: 21.6
C14: работник2 | H14: 2.2 | AA14: 2.2
C15: работник4 | E15: 7.2 | F15: 7.2 | AA15: 14.4
B17: 1.1 | C17: работник5 | D17: 3/16 | E17: 7.2 | AA17: 7.2
B18: 1.1 | C18: работник2 | G18: 2 | AA18: 2
E19: =SUM(E4:E18) -> 35.5 | F19: 17 | G19: 9.2 | H19: 21.6 | I19: 17.1 | J19: 18.4 | K19: 36.8 | L19: 16.4 | M19: 22.4 | N19: 10.4 | O19: 15.9 | P19: 3.2 | Q19: 0 | R19: 0 | S19: 0 | T19: 0 | U19: 0 | V19: 0 | W19: 0 | X19: 0 | Y19: 0 | Z19: 0 | AA19: 223.9
G22: технологическая карта | N22: изд | O22: 2 | R22: партия | S22: 33-21
J23: август | L23: 2021
B24: коэф | C24: Ф. И. О. | D24: р/р | E24: 2 | F24: 3 | G24: 4 | H24: 5 | I24: 6 | J24: 9 | K24: 10 | L24: 11 | M24: 12 | N24: 13 | O24: 16 | P24: 17 | Q24: 18 | R24: 19 | S24: 20 | T24: 23 | U24: 24 | V24: 25 | W24: 26 | X24: 27 | Y24: 30 | Z24: 31
C25: работник6 | D25: 3/16 | M25: 2 | N25: 4 | AA25: =SUM(E25:Z25) -> 6
C26: работник10 | N26: 7.2 | O26: 7.2 | AA26: 14.4
C27: работник11 | L27: 7.2 | AA27: 7.2
C28: работник3 | E28: 3.2 | F28: 4.6 | G28: 2.8 | AA28: =SUM(E28:Z28) -> 10.6
C29: работник8 | S29: 7.2 | AA29: 7.2
C30: работник9 | G30: 7.2 | H30: 7.2 | I30: 7.2 | J30: 7.2 | K30: 7.2 | AA30: 36
E31: =SUM(E25:E30) -> 3.2 | F31: 4.6 | G31: 10 | H31: 7.2 | I31: 7.2 | J31: 7.2 | K31: 7.2 | L31: 7.2 | M31: 2 | N31: 11.2 | O31: 7.2 | P31: 0 | Q31: 0 | R31: 0 | S31: 7.2 | T31: 0 | U31: 0 | V31: 0 | W31: 0 | X31: 0 | Y31: 0 | Z31: 0 | AA31: =SUM(AA25:AA30) -> 81.4
G33: технологическая карта | N33: изд | O33: 3 | R33: партия | S33: 27-21
J34: август | L34: 2021
B35: коэф | C35: Ф. И. О. | D35: р/р | E35: 2 | F35: 3 | G35: 4 | H35: 5 | I35: 6 | J35: 9 | K35: 10 | L35: 11 | M35: 12 | N35: 13 | O35: 16 | P35: 17 | Q35: 18 | R35: 19 | S35: 20 | T35: 23 | U35: 24 | V35: 25 | W35: 26 | X35: 27 | Y35: 30 | Z35: 31
C36: работник3 | D36: 2/4 | I36: 2.8 | AA36: =SUM(E36:Z36) -> 2.8
C37: работник7 | Q37: 7.2 | AA37: =SUM(E37:Z37) -> 7.2
C39: работник7 | D39: 3/4 | E39: 3.2 | AA39: =SUM(E39:Z39) -> 3.2
C40: работник12 | E40: 4 | F40: 4 | G40: 4 | H40: 4 | N40: 7 | AA40: =SUM(E40:Z40) -> 23
C41: работник2 | J41: 4.2 | Q41: 2.2 | S41: 7.2 | U41: 7.2 | W41: 3.6 | AA41: =SUM(E41:Z41) -> 24.4
C42: работник13 | P42: 1.2 | AA42: 1.2
C44: работник2 | D44: 3/16 | T44: 1.8 | W44: 3.6 | X44: 7.2 | AA44: 12.6
C45: работник1 | P45: 4.7 | Q45: 6.7 | R45: 2 | U45: 3 | X45: 5.7 | Y45: 6.7 | Z45: 6.7 | AA45: 35.5
C46: работник10 | E46: 7.2 | F46: 7.2 | G46: 7.2 | P46: 7.2 | Q46: 7.2 | AA46: 36
C47: работник11 | F47: 7.2 | H47: 7.2 | I47: 7.2 | O47: 7.2 | P47: 7.2 | U47: 7.2 | V47: 7.2 | AA47: 50.4
C48: работник9 | L48: 7.2 | M48: 7.2 | N48: 7.2 | O48: 7.2 | P48: 7.2 | Q48: 7.2 | R48: 7.2 | S48: 7.2 | AA48: 57.6
C49: работник3 | E49: 4 | AA49: 4
C50: работник12 | E50: 3 | F50: 3 | G50: 3 | H50: 3 | K50: 3 | L50: 3 | AA50: 18
C51: работник5 | K51: 2.2 | M51: 2.2 | O51: 4.2 | S51: 3.2 | AA51: 11.8
C52: работник13 | N52: 7.2 | O52: 7.2 | P52: 6 | AA52: 20.4
C53: работник14 | R53: 6.7 | S53: 6.7 | AA53: 13.4
C54: работник15 | E54: 7.2 | AA54: 7.2
C55: работник6 | F55: 7.2 | H55: 7.2 | I55: 2 | Q55: 2 | AA55: 18.4
C56: работник4 | Y56: 7.2 | Z56: 7.2 | AA56: 14.4
B58: 1.5 | C58: работник7 | D58: 4/8 | E58: 4 | F58: 7.2 | G58: 7.2 | H58: 7.2 | I58: 7.2 | R58: 7.2 | S58: 7.2 | AA58: 47.2
B60: 1.1 | C60: работник5 | D60: 3/16 | J60: 4.2 | L60: 4.2 | AA60: 8.4
B61: 1.1 | C61: работник2 | G61: 5.2 | V61: 7.2 | AA61: 12.4
B62: 1.1 | C62: работник11 | E62: 7.2 | G62: 7.2 | AA62: 14.4
E63: =SUM(E36:E62) -> 39.8 | F63: =SUM(F36:F62) -> 35.8 | G63: 33.8 | H63: 28.6 | I63: 19.2 | J63: 8.4 | K63: 5.2 | L63: 14.4 | M63: 9.4 | N63: 21.4 | O63: 25.8 | P63: 33.5 | Q63: 32.5 | R63: 23.1 | S63: 31.5 | T63: 1.8 | U63: 17.4 | V63: 14.4 | W63: 7.2 | X63: 12.9 | Y63: 13.9 | Z63: 13.9 | AA63: =SUM(AA36:AA62) -> 443.9

Sheet Data_Tech
A1: месяц | B1: год | C1: изд | D1: партия | E1: коэф | F1: Ф. И. О. | G1: р/р | H1: 2 | I1: 3 | J1: 4 | K1: 5 | L1: 6 | M1: 7 | N1: 8 | O1: 9 | P1: 10 | Q1: 11 | R1: 12 | S1: 13 | T1: 16 | U1: 17 | V1: 18 | W1: 19 | X1: 20 | Y1: 23 | Z1: 24 | AA1: 25 | AB1: 26 | AC1: 27 | AD1: 30 | AE1: 31
A2: Январь | B2: 2021 | C2: 1 | D2: 1-21 | E2: 1 | F2: работник1 | G2: 3/16 | I2: 7,2
A3: Январь | B3: 2021 | C3: 2 | D3: 1-21 | E3: 1.5 | F3: работник2 | G3: 3/16 | H3: 5
A4: Январь | B4: 2021 | C4: 1 | D4: 4-21 | E4: 1 | F4: работник3 | G4: 2/4 | H4: 5,2
A5: Январь | B5: 2021 | C5: 1 | D5: 1-21 | E5: 1.1 | F5: работник3 | G5: 3/16 | H5: 6,7
A6: Январь | B6: 2021 | C6: 2 | D6: 1-21 | E6: 1 | F6: работник4 | G6: 3/16 | P6: 7,2
A7: Январь | B7: 2021 | C7: 2 | D7: 1-21 | E7: 1 | F7: работник4 | G7: 3/4 | K7: 7,2
A8: Январь | B8: 2021 | C8: 1 | D8: 1-21 | E8: 1 | F8: работник8 | G8: 3/4 | W8: 7
A9: Январь | B9: 2021 | C9: 1 | D9: 1-21 | E9: 1 | F9: работник3 | G9: 2/4 | L9: 2.8
A10: Январь | B10: 2021 | C10: 2 | D10: 1-21 | E10: 1 | F10: работник7 | G10: 2/4 | V10: 7.2
A11: Январь | B11: 2022 | C11: 3 | D11: 1-22 | E11: 1 | F11: работник7 | G11: 3/4 | H11: 3.2
A12: Январь | B12: 2021 | C12: 1 | D12: 1-21 | E12: 1 | F12: работник12 | G12: 3/4 | H12: 4 | I12: 4 | J12: 4 | K12: 4 | S12: 7
A13: Январь | B13: 2021 | C13: 1 | D13: 1-21 | E13: 1 | F13: работник2 | G13: 3/4 | O13: 4.2 | V13: 2.2 | X13: 7.2 | Z13: 7.2 | AB13: 3.6
A14: Ноябрь | B14: 2021 | C14: 1 | D14: 1-21 | E14: 1 | F14: работник13 | G14: 3/4 | U14: 1.2
A15: Январь | B15: 2021 | C15: 1 | D15: 1-21 | E15: 1 | F15: работник2 | G15: 3/16 | Y15: 1.8 | AB15: 3.6 | AC15: 7.2
A16: Январь | B16: 2021 | C16: 1 | D16: 1-21 | E16: 1 | F16: работник1 | G16: 3/16 | U16: 4.7 | V16: 6.7 | W16: 2 | Z16: 3 | AC16: 5.7 | AD16: 6.7 | AE16: 6.7
A17: Январь | B17: 2021 | C17: 1 | D17: 1-21 | E17: 1 | F17: работник10 | G17: 3/16 | H17: 7.2 | I17: 7.2 | J17: 7.2 | U17: 7.2 | V17: 7.2
A18: Январь | B18: 2021 | C18: 1 | D18: 1-21 | E18: 1 | F18: работник11 | G18: 3/16 | I18: 7.2 | K18: 7.2 | L18: 7.2 | T18: 7.2 | U18: 7.2 | Z18: 7.2 | AA18: 7.2
A19: Январь | B19: 2021 | C19: 1 | D19: 1-21 | E19: 1 | F19: работник9 | G19: 3/16 | Q19: 7.2 | R19: 7.2 | S19: 7.2 | T19: 7.2 | U19: 7.2 | V19: 7.2 | W19: 7.2 | X19: 7.2
A20: Январь | B20: 2022 | C20: 2 | D20: 1-22 | E20: 1.1 | F20: работник3 | G20: 3/16 | H20: 4
A21: Январь | B21: 2022 | C21: 2 | D21: 1-22 | E21: 1.5 | F21: работник12 | G21: 3/16 | H21: 3 | I21: 3 | J21: 3 | K21: 3 | P21: 3 | Q21: 3
A22: Январь | B22: 2022 | C22: 2 | D22: 1-22 | E22: 1 | F22: работник5 | G22: 3/16 | P22: 2.2 | R22: 2.2 | T22: 4.2 | X22: 3.2
A23: Январь | B23: 2022 | C23: 3 | D23: 1-22 | E23: 1 | F23: работник13 | G23: 3/16 | S23: 7.2 | T23: 7.2 | U23: 6
A24: Январь | B24: 2022 | C24: 2 | D24: 1-22 | E24: 1 | F24: работник14 | G24: 3/16 | W24: 6.7 | X24: 6.7
A25: Январь | B25: 2021 | C25: 2 | D25: 1-21 | E25: 1 | F25: работник15 | G25: 3/16 | H25: 7.2
A26: Январь | B26: 2021 | C26: 2 | D26: 1-21 | E26: 1 | F26: работник6 | G26: 3/16 | I26: 7.2 | K26: 7.2 | L26: 2 | V26: 2
A27: Январь | B27: 2021 | C27: 2 | D27: 1-21 | E27: 1 | F27: работник4 | G27: 3/4 | AD27: 7.2 | AE27: 7.2
A28: Январь | B28: 2021 | C28: 2 | D28: 1-21 | E28: 1.5 | F28: работник7 | G28: 4/8 | H28: 4 | I28: 7.2 | J28: 7.2 | K28: 7.2 | L28: 7.2 | W28: 7.2 | X28: 7.2
A29: Январь | B29: 2021 | C29: 2 | D29: 1-21 | E29: 1.1 | F29: работник5 | G29: 3/16 | O29: 4.2 | Q29: 4.2
A30: Январь | B30: 2021 | C30: 1 | D30: 1-21 | E30: 1.1 | F30: работник2 | G30: 3/16 | J30: 5.2 | AA30: 7.2
A31: Январь | B31: 2022 | C31: 2 | D31: 1-22 | E31: 1.1 | F31: работник11 | G31: 3/16 | H31: 7.2 | J31: 7.2
A32: Январь | B32: 2021 | C32: 5 | D32: 4-21 | E32: 5 | F32: работник1 | G32: 3/16 | K32: 5
A33: Январь | B33: 2021 | C33: 6 | D33: 4-21 | E33: 6 | F33: работник1 | G33: 3/16 | L33: 6
A34: Январь | B34: 2021 | C34: 3 | D34: 1-22 | E34: 1.1 | F34: работник15 | G34: 3/16 | AD34: 3,4
A35: Январь | B35: 2022 | C35: 3 | D35: 1-22 | E35: 1 | F35: работник10 | G35: 3/16 | V35: 5
A36: Январь | B36: 2021 | C36: 3 | D36: 33-21 | E36: 1 | F36: работник1 | G36: 3/16 | J36: 14 | K36: 14 | L36: 14 | M36: 14 | N36: 14 | O36: 14 | P36: 14
A37: Январь | B37: 2021 | C37: 3 | D37: 33-21 | E37: 1 | F37: работник1 | G37: 3/16 | I37: 8
A38: Январь | B38: 2021 | C38: 3 | D38: 33-21 | E38: 1 | F38: работник1 | G38: 3/16 | J38: 8
A39: Февраль | B39: 2021 | C39: 3 | D39: 4-21 | E39: 1 | F39: работник3 | G39: 3/16

Sheet Лист1
G1: технологическая карта | N1: изд | O1: 1 | R1: партия | S1: 1-21
J2: Январь | L2: 2021
B3: коэф | C3: Ф. И. О. | D3: р/р | E3: 2 | F3: 3 | G3: 4 | H3: 5 | I3: 6 | J3: 9 | K3: 10 | L3: 11 | M3: 12 | N3: 13 | O3: 16 | P3: 17 | Q3: 18 | R3: 19 | S3: 20 | T3: 23 | U3: 24 | V3: 25 | W3: 26 | X3: 27 | Y3: 30 | Z3: 31
B4: =IFERROR(INDEX(Таблица1[коэф],_xlfn.AGGREGATE(15,6,(ROW(Таблица1[коэф])-ROW(Таблица1[[#Headers],[коэф]]))/(Таблица1[[месяц]:[месяц]]=$J$2)/(Таблица1[[год]:[год]]=$L$2)/(Таблица1[[изд]:[изд]]=$O$1)/(Таблица1[[партия]:[партия]]=$S$1),ROW(A1))),"") -> 1 | C4: =IFERROR(INDEX(Таблица1[Ф. И. О.],_xlfn.AGGREGATE(15,6,(ROW(Таблица1[Ф. И. О.])-ROW(Таблица1[[#Headers],[Ф. И. О.]]))/(Таблица1[[месяц]:[месяц]]=$J$2)/(Таблица1[[год]:[год]]=$L$2)/(Таблица1[[изд]:[изд]]=$O$1)/(Таблица1[[партия]:[партия]]=$S$1),ROW(B1))),"") -> работник1 | D4: =IFERROR(INDEX(Таблица1[р/р],_xlfn.AGGREGATE(15,6,(ROW(Таблица1[р/р])-ROW(Таблица1[[#Headers],[р/р]]))/(Таблица1[[месяц]:[месяц]]=$J$2)/(Таблица1[[год]:[год]]=$L$2)/(Таблица1[[изд]:[изд]]=$O$1)/(Таблица1[[партия]:[партия]]=$S$1),ROW(C1))),"") -> 3/16 | E4: =IFERROR(INDEX(Таблица1[2],_xlfn.AGGREGATE(15,6,(ROW(Таблица1[2])-ROW(Таблица1[[#Headers],[2]]))/(Таблица1[[месяц]:[месяц]]=$J$2)/(Таблица1[[год]:[год]]=$L$2)/(Таблица1[[изд]:[изд]]=$O$1)/(Таблица1[[партия]:[партия]]=$S$1),ROW(D1))),"") -> 0 | F4: =IFERROR(INDEX(Таблица1[3],_xlfn.AGGREGATE(15,6,(ROW(Таблица1[3])-ROW(Таблица1[[#Headers],[3]]))/(Таблица1[[месяц]:[месяц]]=$J$2)/(Таблица1[[год]:[год]]=$L$2)/(Таблица1[[изд]:[изд]]=$O$1)/(Таблица1[[партия]:[партия]]=$S$1),ROW(E1))),"") -> 7,2 | G4: =IFERROR(INDEX(Таблица1[4],_xlfn.AGGREGATE(15,6,(ROW(Таблица1[4])-ROW(Таблица1[[#Headers],[4]]))/(Таблица1[[месяц]:[месяц]]=$J$2)/(Таблица1[[год]:[год]]=$L$2)/(Таблица1[[изд]:[изд]]=$O$1)/(Таблица1[[партия]:[партия]]=$S$1),ROW(F1))),"") -> 0 | H4: =IFERROR(INDEX(Таблица1[5],_xlfn.AGGREGATE(15,6,(ROW(Таблица1[5])-ROW(Таблица1[[#Headers],[5]]))/(Таблица1[[месяц]:[месяц]]=$J$2)/(Таблица1[[год]:[год]]=$L$2)/(Таблица1[[изд]:[изд]]=$O$1)/(Таблица1[[партия]:[партия]]=$S$1),ROW(G1))),"") -> 0 | I4: =IFERROR(INDEX(Таблица1[6],_xlfn.AGGREGATE(15,6,(ROW(Таблица1[6])-ROW(Таблица1[[#Headers],[6]]))/(Таблица1[[месяц]:[месяц]]=$J$2)/(Таблица1[[год]:[год]]=$L$2)/(Таблица1[[изд]:[изд]]=$O$1)/(Таблица1[[партия]:[партия]]=$S$1),ROW(H1))),"") -> 0 | J4: =IFERROR(INDEX(Таблица1[9],_xlfn.AGGREGATE(15,6,(ROW(Таблица1[9])-ROW(Таблица1[[#Headers],[9]]))/(Таблица1[[месяц]:[месяц]]=$J$2)/(Таблица1[[год]:[год]]=$L$2)/(Таблица1[[изд]:[изд]]=$O$1)/(Таблица1[[партия]:[партия]]=$S$1),ROW(I1))),"") -> 0 | K4: =IFERROR(INDEX(Таблица1[10],_xlfn.AGGREGATE(15,6,(ROW(Таблица1[10])-ROW(Таблица1[[#Headers],[10]]))/(Таблица1[[месяц]:[месяц]]=$J$2)/(Таблица1[[год]:[год]]=$L$2)/(Таблица1[[изд]:[изд]]=$O$1)/(Таблица1[[партия]:[партия]]=$S$1),ROW(J1))),"") -> 0 | L4: =IFERROR(INDEX(Таблица1[11],_xlfn.AGGREGATE(15,6,(ROW(Таблица1[11])-ROW(Таблица1[[#Headers],[11]]))/(Таблица1[[месяц]:[месяц]]=$J$2)/(Таблица1[[год]:[год]]=$L$2)/(Таблица1[[изд]:[изд]]=$O$1)/(Таблица1[[партия]:[партия]]=$S$1),ROW(K1))),"") -> 0 | M4: =IFERROR(INDEX(Таблица1[12],_xlfn.AGGREGATE(15,6,(ROW(Таблица1[12])-ROW(Таблица1[[#Headers],[12]]))/(Таблица1[[месяц]:[месяц]]=$J$2)/(Таблица1[[год]:[год]]=$L$2)/(Таблица1[[изд]:[изд]]=$O$1)/(Таблица1[[партия]:[партия]]=$S$1),ROW(L1))),"") -> 0 | N4: =IFERROR(INDEX(Таблица1[13],_xlfn.AGGREGATE(15,6,(ROW(Таблица1[13])-ROW(Таблица1[[#Headers],[13]]))/(Таблица1[[месяц]:[месяц]]=$J$2)/(Таблица1[[год]:[год]]=$L$2)/(Таблица1[[изд]:[изд]]=$O$1)/(Таблица1[[партия]:[партия]]=$S$1),ROW(M1))),"") -> 0 | O4: =IFERROR(INDEX(Таблица1[16],_xlfn.AGGREGATE(15,6,(ROW(Таблица1[16])-ROW(Таблица1[[#Headers],[16]]))/(Таблица1[[месяц]:[месяц]]=$J$2)/(Таблица1[[год]:[год]]=$L$2)/(Таблица1[[изд]:[изд]]=$O$1)/(Таблица1[[партия]:[партия]]=$S$1),ROW(N1))),"") -> 0 | P4: =IFERROR(INDEX(Таблица1[17],_xlfn.AGGREGATE(15,6,(ROW(Таблица1[17])-ROW(Таблица1[[#Headers],[17]]))/(Таблица1[[месяц]:[месяц]]=$J$2)/(Таблица1[[год]:[год]]=$L$2)/(Таблица1[[изд]:[изд]]=$O$1)/(Таблица1[[партия]:[партия]]=$S$1),ROW(O1))),"") -> 0 | Q4: =IFERROR(INDEX(Таблица1[18],_xlfn.AGGREGATE(15,6,(ROW(Таблица1[18])-ROW(Таблица1[[#Headers],[18]]))/(Таблица1[[месяц]:[месяц]]=$J$2)/(Таблица1[[год]:[год]]=$L$2)/(Таблица1[[изд]:[изд]]=$O$1)/(Таблица1[[партия]:[партия]]=$S$1),ROW(P1))),"") -> 0 | R4: =IFERROR(INDEX(Таблица1[19],_xlfn.AGGREGATE(15,6,(ROW(Таблица1[19])-ROW(Таблица1[[#Headers],[19]]))/(Таблица1[[месяц]:[месяц]]=$J$2)/(Таблица1[[год]:[год]]=$L$2)/(Таблица1[[изд]:[изд]]=$O$1)/(Таблица1[[партия]:[партия]]=$S$1),ROW(Q1))),"") -> 0 | S4: =IFERROR(INDEX(Таблица1[20],_xlfn.AGGREGATE(15,6,(ROW(Таблица1[20])-ROW(Таблица1[[#Headers],[20]]))/(Таблица1[[месяц]:[месяц]]=$J$2)/(Таблица1[[год]:[год]]=$L$2)/(Таблица1[[изд]:[изд]]=$O$1)/(Таблица1[[партия]:[партия]]=$S$1),ROW(R1))),"") -> 0 | T4: =IFERROR(INDEX(Таблица1[23],_xlfn.AGGREGATE(15,6,(ROW(Таблица1[23])-ROW(Таблица1[[#Headers],[23]]))/(Таблица1[[месяц]:[месяц]]=$J$2)/(Таблица1[[год]:[год]]=$L$2)/(Таблица1[[изд]:[изд]]=$O$1)/(Таблица1[[партия]:[партия]]=$S$1),ROW(S1))),"") -> 0 | U4: =IFERROR(INDEX(Таблица1[24],_xlfn.AGGREGATE(15,6,(ROW(Таблица1[24])-ROW(Таблица1[[#Headers],[24]]))/(Таблица1[[месяц]:[месяц]]=$J$2)/(Таблица1[[год]:[год]]=$L$2)/(Таблица1[[изд]:[изд]]=$O$1)/(Таблица1[[партия]:[партия]]=$S$1),ROW(T1))),"") -> 0 | V4: =IFERROR(INDEX(Таблица1[25],_xlfn.AGGREGATE(15,6,(ROW(Таблица1[25])-ROW(Таблица1[[#Headers],[25]]))/(Таблица1[[месяц]:[месяц]]=$J$2)/(Таблица1[[год]:[год]]=$L$2)/(Таблица1[[изд]:[изд]]=$O$1)/(Таблица1[[партия]:[партия]]=$S$1),ROW(U1))),"") -> 0 | W4: =IFERROR(INDEX(Таблица1[26],_xlfn.AGGREGATE(15,6,(ROW(Таблица1[26])-ROW(Таблица1[[#Headers],[26]]))/(Таблица1[[месяц]:[месяц]]=$J$2)/(Таблица1[[год]:[год]]=$L$2)/(Таблица1[[изд]:[изд]]=$O$1)/(Таблица1[[партия]:[партия]]=$S$1),ROW(V1))),"") -> 0 | X4: =IFERROR(INDEX(Таблица1[27],_xlfn.AGGREGATE(15,6,(ROW(Таблица1[27])-ROW(Таблица1[[#Headers],[27]]))/(Таблица1[[месяц]:[месяц]]=$J$2)/(Таблица1[[год]:[год]]=$L$2)/(Таблица1[[изд]:[изд]]=$O$1)/(Таблица1[[партия]:[партия]]=$S$1),ROW(W1))),"") -> 0 | Y4: =IFERROR(INDEX(Таблица1[30],_xlfn.AGGREGATE(15,6,(ROW(Таблица1[30])-ROW(Таблица1[[#Headers],[30]]))/(Таблица1[[месяц]:[месяц]]=$J$2)/(Таблица1[[год]:[год]]=$L$2)/(Таблица1[[изд]:[изд]]=$O$1)/(Таблица1[[партия]:[партия]]=$S$1),ROW(X1))),"") -> 0 | Z4: =IFERROR(INDEX(Таблица1[31],_xlfn.AGGREGATE(15,6,(ROW(Таблица1[31])-ROW(Таблица1[[#Headers],[31]]))/(Таблица1[[месяц]:[месяц]]=$J$2)/(Таблица1[[год]:[год]]=$L$2)/(Таблица1[[изд]:[изд]]=$O$1)/(Таблица1[[партия]:[партия]]=$S$1),ROW(Y1))),"") -> 0
B5: =IFERROR(INDEX(Таблица1[коэф],_xlfn.AGGREGATE(15,6,(ROW(Таблица1[коэф])-ROW(Таблица1[[#Headers],[коэф]]))/(Таблица1[[месяц]:[месяц]]=$J$2)/(Таблица1[[год]:[год]]=$L$2)/(Таблица1[[изд]:[изд]]=$O$1)/(Таблица1[[партия]:[партия]]=$S$1),ROW(A2))),"") -> 1.1 | C5: =IFERROR(INDEX(Таблица1[Ф. И. О.],_xlfn.AGGREGATE(15,6,(ROW(Таблица1[Ф. И. О.])-ROW(Таблица1[[#Headers],[Ф. И. О.]]))/(Таблица1[[месяц]:[месяц]]=$J$2)/(Таблица1[[год]:[год]]=$L$2)/(Таблица1[[изд]:[изд]]=$O$1)/(Таблица1[[партия]:[партия]]=$S$1),ROW(B2))),"") -> работник3 | D5: =IFERROR(INDEX(Таблица1[р/р],_xlfn.AGGREGATE(15,6,(ROW(Таблица1[р/р])-ROW(Таблица1[[#Headers],[р/р]]))/(Таблица1[[месяц]:[месяц]]=$J$2)/(Таблица1[[год]:[год]]=$L$2)/(Таблица1[[изд]:[изд]]=$O$1)/(Таблица1[[партия]:[партия]]=$S$1),ROW(C2))),"") -> 3/16 | E5: =IFERROR(INDEX(Таблица1[2],_xlfn.AGGREGATE(15,6,(ROW(Таблица1[2])-ROW(Таблица1[[#Headers],[2]]))/(Таблица1[[месяц]:[месяц]]=$J$2)/(Таблица1[[год]:[год]]=$L$2)/(Таблица1[[изд]:[изд]]=$O$1)/(Таблица1[[партия]:[партия]]=$S$1),ROW(D2))),"") -> 6,7 | F5: =IFERROR(INDEX(Таблица1[3],_xlfn.AGGREGATE(15,6,(ROW(Таблица1[3])-ROW(Таблица1[[#Headers],[3]]))/(Таблица1[[месяц]:[месяц]]=$J$2)/(Таблица1[[год]:[год]]=$L$2)/(Таблица1[[изд]:[изд]]=$O$1)/(Таблица1[[партия]:[партия]]=$S$1),ROW(E2))),"") -> 0 | G5: =IFERROR(INDEX(Таблица1[4],_xlfn.AGGREGATE(15,6,(ROW(Таблица1[4])-ROW(Таблица1[[#Headers],[4]]))/(Таблица1[[месяц]:[месяц]]=$J$2)/(Таблица1[[год]:[год]]=$L$2)/(Таблица1[[изд]:[изд]]=$O$1)/(Таблица1[[партия]:[партия]]=$S$1),ROW(F2))),"") -> 0 | H5: =IFERROR(INDEX(Таблица1[5],_xlfn.AGGREGATE(15,6,(ROW(Таблица1[5])-ROW(Таблица1[[#Headers],[5]]))/(Таблица1[[месяц]:[месяц]]=$J$2)/(Таблица1[[год]:[год]]=$L$2)/(Таблица1[[изд]:[изд]]=$O$1)/(Таблица1[[партия]:[партия]]=$S$1),ROW(G2))),"") -> 0 | I5: =IFERROR(INDEX(Таблица1[6],_xlfn.AGGREGATE(15,6,(ROW(Таблица1[6])-ROW(Таблица1[[#Headers],[6]]))/(Таблица1[[месяц]:[месяц]]=$J$2)/(Таблица1[[год]:[год]]=$L$2)/(Таблица1[[изд]:[изд]]=$O$1)/(Таблица1[[партия]:[партия]]=$S$1),ROW(H2))),"") -> 0 | J5: =IFERROR(INDEX(Таблица1[9],_xlfn.AGGREGATE(15,6,(ROW(Таблица1[9])-ROW(Таблица1[[#Headers],[9]]))/(Таблица1[[месяц]:[месяц]]=$J$2)/(Таблица1[[год]:[год]]=$L$2)/(Таблица1[[изд]:[изд]]=$O$1)/(Таблица1[[партия]:[партия]]=$S$1),ROW(I2))),"") -> 0 | K5: =IFERROR(INDEX(Таблица1[10],_xlfn.AGGREGATE(15,6,(ROW(Таблица1[10])-ROW(Таблица1[[#Headers],[10]]))/(Таблица1[[месяц]:[месяц]]=$J$2)/(Таблица1[[год]:[год]]=$L$2)/(Таблица1[[изд]:[изд]]=$O$1)/(Таблица1[[партия]:[партия]]=$S$1),ROW(J2))),"") -> 0 | L5: =IFERROR(INDEX(Таблица1[11],_xlfn.AGGREGATE(15,6,(ROW(Таблица1[11])-ROW(Таблица1[[#Headers],[11]]))/(Таблица1[[месяц]:[месяц]]=$J$2)/(Таблица1[[год]:[год]]=$L$2)/(Таблица1[[изд]:[изд]]=$O$1)/(Таблица1[[партия]:[партия]]=$S$1),ROW(K2))),"") -> 0 | M5: =IFERROR(INDEX(Таблица1[12],_xlfn.AGGREGATE(15,6,(ROW(Таблица1[12])-ROW(Таблица1[[#Headers],[12]]))/(Таблица1[[месяц]:[месяц]]=$J$2)/(Таблица1[[год]:[год]]=$L$2)/(Таблица1[[изд]:[изд]]=$O$1)/(Таблица1[[партия]:[партия]]=$S$1),ROW(L2))),"") -> 0 | N5: =IFERROR(INDEX(Таблица1[13],_xlfn.AGGREGATE(15,6,(ROW(Таблица1[13])-ROW(Таблица1[[#Headers],[13]]))/(Таблица1[[месяц]:[месяц]]=$J$2)/(Таблица1[[год]:[год]]=$L$2)/(Таблица1[[изд]:[изд]]=$O$1)/(Таблица1[[партия]:[партия]]=$S$1),ROW(M2))),"") -> 0 | O5: =IFERROR(INDEX(Таблица1[16],_xlfn.AGGREGATE(15,6,(ROW(Таблица1[16])-ROW(Таблица1[[#Headers],[16]]))/(Таблица1[[месяц]:[месяц]]=$J$2)/(Таблица1[[год]:[год]]=$L$2)/(Таблица1[[изд]:[изд]]=$O$1)/(Таблица1[[партия]:[партия]]=$S$1),ROW(N2))),"") -> 0 | P5: =IFERROR(INDEX(Таблица1[17],_xlfn.AGGREGATE(15,6,(ROW(Таблица1[17])-ROW(Таблица1[[#Headers],[17]]))/(Таблица1[[месяц]:[месяц]]=$J$2)/(Таблица1[[год]:[год]]=$L$2)/(Таблица1[[изд]:[изд]]=$O$1)/(Таблица1[[партия]:[партия]]=$S$1),ROW(O2))),"") -> 0 | Q5: =IFERROR(INDEX(Таблица1[18],_xlfn.AGGREGATE(15,6,(ROW(Таблица1[18])-ROW(Таблица1[[#Headers],[18]]))/(Таблица1[[месяц]:[месяц]]=$J$2)/(Таблица1[[год]:[год]]=$L$2)/(Таблица1[[изд]:[изд]]=$O$1)/(Таблица1[[партия]:[партия]]=$S$1),ROW(P2))),"") -> 0 | R5: =IFERROR(INDEX(Таблица1[19],_xlfn.AGGREGATE(15,6,(ROW(Таблица1[19])-ROW(Таблица1[[#Headers],[19]]))/(Таблица1[[месяц]:[месяц]]=$J$2)/(Таблица1[[год]:[год]]=$L$2)/(Таблица1[[изд]:[изд]]=$O$1)/(Таблица1[[партия]:[партия]]=$S$1),ROW(Q2))),"") -> 0 | S5: =IFERROR(INDEX(Таблица1[20],_xlfn.AGGREGATE(15,6,(ROW(Таблица1[20])-ROW(Таблица1[[#Headers],[20]]))/(Таблица1[[месяц]:[месяц]]=$J$2)/(Таблица1[[год]:[год]]=$L$2)/(Таблица1[[изд]:[изд]]=$O$1)/(Таблица1[[партия]:[партия]]=$S$1),ROW(R2))),"") -> 0 | T5: =IFERROR(INDEX(Таблица1[23],_xlfn.AGGREGATE(15,6,(ROW(Таблица1[23])-ROW(Таблица1[[#Headers],[23]]))/(Таблица1[[месяц]:[месяц]]=$J$2)/(Таблица1[[год]:[год]]=$L$2)/(Таблица1[[изд]:[изд]]=$O$1)/(Таблица1[[партия]:[партия]]=$S$1),ROW(S2))),"") -> 0 | U5: =IFERROR(INDEX(Таблица1[24],_xlfn.AGGREGATE(15,6,(ROW(Таблица1[24])-ROW(Таблица1[[#Headers],[24]]))/(Таблица1[[месяц]:[месяц]]=$J$2)/(Таблица1[[год]:[год]]=$L$2)/(Таблица1[[изд]:[изд]]=$O$1)/(Таблица1[[партия]:[партия]]=$S$1),ROW(T2))),"") -> 0 | V5: =IFERROR(INDEX(Таблица1[25],_xlfn.AGGREGATE(15,6,(ROW(Таблица1[25])-ROW(Таблица1[[#Headers],[25]]))/(Таблица1[[месяц]:[месяц]]=$J$2)/(Таблица1[[год]:[год]]=$L$2)/(Таблица1[[изд]:[изд]]=$O$1)/(Таблица1[[партия]:[партия]]=$S$1),ROW(U2))),"") -> 0 | W5: =IFERROR(INDEX(Таблица1[26],_xlfn.AGGREGATE(15,6,(ROW(Таблица1[26])-ROW(Таблица1[[#Headers],[26]]))/(Таблица1[[месяц]:[месяц]]=$J$2)/(Таблица1[[год]:[год]]=$L$2)/(Таблица1[[изд]:[изд]]=$O$1)/(Таблица1[[партия]:[партия]]=$S$1),ROW(V2))),"") -> 0 | X5: =IFERROR(INDEX(Таблица1[27],_xlfn.AGGREGATE(15,6,(ROW(Таблица1[27])-ROW(Таблица1[[#Headers],[27]]))/(Таблица1[[месяц]:[месяц]]=$J$2)/(Таблица1[[год]:[год]]=$L$2)/(Таблица1[[изд]:[изд]]=$O$1)/(Таблица1[[партия]:[партия]]=$S$1),ROW(W2))),"") -> 0 | Y5: =IFERROR(INDEX(Таблица1[30],_xlfn.AGGREGATE(15,6,(ROW(Таблица1[30])-ROW(Таблица1[[#Headers],[30]]))/(Таблица1[[месяц]:[месяц]]=$J$2)/(Таблица1[[год]:[год]]=$L$2)/(Таблица1[[изд]:[изд]]=$O$1)/(Таблица1[[партия]:[партия]]=$S$1),ROW(X2))),"") -> 0 | Z5: =IFERROR(INDEX(Таблица1[31],_xlfn.AGGREGATE(15,6,(ROW(Таблица1[31])-ROW(Таблица1[[#Headers],[31]]))/(Таблица1[[месяц]:[месяц]]=$J$2)/(Таблица1[[год]:[год]]=$L$2)/(Таблица1[[изд]:[изд]]=$O$1)/(Таблица1[[партия]:[партия]]=$S$1),ROW(Y2))),"") -> 0
B6: =IFERROR(INDEX(Таблица1[коэф],_xlfn.AGGREGATE(15,6,(ROW(Таблица1[коэф])-ROW(Таблица1[[#Headers],[коэф]]))/(Таблица1[[месяц]:[месяц]]=$J$2)/(Таблица1[[год]:[год]]=$L$2)/(Таблица1[[изд]:[изд]]=$O$1)/(Таблица1[[партия]:[партия]]=$S$1),ROW(A3))),"") -> 1 | C6: =IFERROR(INDEX(Таблица1[Ф. И. О.],_xlfn.AGGREGATE(15,6,(ROW(Таблица1[Ф. И. О.])-ROW(Таблица1[[#Headers],[Ф. И. О.]]))/(Таблица1[[месяц]:[месяц]]=$J$2)/(Таблица1[[год]:[год]]=$L$2)/(Таблица1[[изд]:[изд]]=$O$1)/(Таблица1[[партия]:[партия]]=$S$1),ROW(B3))),"") -> работник8 | D6: =IFERROR(INDEX(Таблица1[р/р],_xlfn.AGGREGATE(15,6,(ROW(Таблица1[р/р])-ROW(Таблица1[[#Headers],[р/р]]))/(Таблица1[[месяц]:[месяц]]=$J$2)/(Таблица1[[год]:[год]]=$L$2)/(Таблица1[[изд]:[изд]]=$O$1)/(Таблица1[[партия]:[партия]]=$S$1),ROW(C3))),"") -> 3/4 | E6: =IFERROR(INDEX(Таблица1[2],_xlfn.AGGREGATE(15,6,(ROW(Таблица1[2])-ROW(Таблица1[[#Headers],[2]]))/(Таблица1[[месяц]:[месяц]]=$J$2)/(Таблица1[[год]:[год]]=$L$2)/(Таблица1[[изд]:[изд]]=$O$1)/(Таблица1[[партия]:[партия]]=$S$1),ROW(D3))),"") -> 0 | F6: =IFERROR(INDEX(Таблица1[3],_xlfn.AGGREGATE(15,6,(ROW(Таблица1[3])-ROW(Таблица1[[#Headers],[3]]))/(Таблица1[[месяц]:[месяц]]=$J$2)/(Таблица1[[год]:[год]]=$L$2)/(Таблица1[[изд]:[изд]]=$O$1)/(Таблица1[[партия]:[партия]]=$S$1),ROW(E3))),"") -> 0 | G6: =IFERROR(INDEX(Таблица1[4],_xlfn.AGGREGATE(15,6,(ROW(Таблица1[4])-ROW(Таблица1[[#Headers],[4]]))/(Таблица1[[месяц]:[месяц]]=$J$2)/(Таблица1[[год]:[год]]=$L$2)/(Таблица1[[изд]:[изд]]=$O$1)/(Таблица1[[партия]:[партия]]=$S$1),ROW(F3))),"") -> 0 | H6: =IFERROR(INDEX(Таблица1[5],_xlfn.AGGREGATE(15,6,(ROW(Таблица1[5])-ROW(Таблица1[[#Headers],[5]]))/(Таблица1[[месяц]:[месяц]]=$J$2)/(Таблица1[[год]:[год]]=$L$2)/(Таблица1[[изд]:[изд]]=$O$1)/(Таблица1[[партия]:[партия]]=$S$1),ROW(G3))),"") -> 0 | I6: =IFERROR(INDEX(Таблица1[6],_xlfn.AGGREGATE(15,6,(ROW(Таблица1[6])-ROW(Таблица1[[#Headers],[6]]))/(Таблица1[[месяц]:[месяц]]=$J$2)/(Таблица1[[год]:[год]]=$L$2)/(Таблица1[[изд]:[изд]]=$O$1)/(Таблица1[[партия]:[партия]]=$S$1),ROW(H3))),"") -> 0 | J6: =IFERROR(INDEX(Таблица1[9],_xlfn.AGGREGATE(15,6,(ROW(Таблица1[9])-ROW(Таблица1[[#Headers],[9]]))/(Таблица1[[месяц]:[месяц]]=$J$2)/(Таблица1[[год]:[год]]=$L$2)/(Таблица1[[изд]:[изд]]=$O$1)/(Таблица1[[партия]:[партия]]=$S$1),ROW(I3))),"") -> 0 | K6: =IFERROR(INDEX(Таблица1[10],_xlfn.AGGREGATE(15,6,(ROW(Таблица1[10])-ROW(Таблица1[[#Headers],[10]]))/(Таблица1[[месяц]:[месяц]]=$J$2)/(Таблица1[[год]:[год]]=$L$2)/(Таблица1[[изд]:[изд]]=$O$1)/(Таблица1[[партия]:[партия]]=$S$1),ROW(J3))),"") -> 0 | L6: =IFERROR(INDEX(Таблица1[11],_xlfn.AGGREGATE(15,6,(ROW(Таблица1[11])-ROW(Таблица1[[#Headers],[11]]))/(Таблица1[[месяц]:[месяц]]=$J$2)/(Таблица1[[год]:[год]]=$L$2)/(Таблица1[[изд]:[изд]]=$O$1)/(Таблица1[[партия]:[партия]]=$S$1),ROW(K3))),"") -> 0 | M6: =IFERROR(INDEX(Таблица1[12],_xlfn.AGGREGATE(15,6,(ROW(Таблица1[12])-ROW(Таблица1[[#Headers],[12]]))/(Таблица1[[месяц]:[месяц]]=$J$2)/(Таблица1[[год]:[год]]=$L$2)/(Таблица1[[изд]:[изд]]=$O$1)/(Таблица1[[партия]:[партия]]=$S$1),ROW(L3))),"") -> 0 | N6: =IFERROR(INDEX(Таблица1[13],_xlfn.AGGREGATE(15,6,(ROW(Таблица1[13])-ROW(Таблица1[[#Headers],[13]]))/(Таблица1[[месяц]:[месяц]]=$J$2)/(Таблица1[[год]:[год]]=$L$2)/(Таблица1[[изд]:[изд]]=$O$1)/(Таблица1[[партия]:[партия]]=$S$1),ROW(M3))),"") -> 0 | O6: =IFERROR(INDEX(Таблица1[16],_xlfn.AGGREGATE(15,6,(ROW(Таблица1[16])-ROW(Таблица1[[#Headers],[16]]))/(Таблица1[[месяц]:[месяц]]=$J$2)/(Таблица1[[год]:[год]]=$L$2)/(Таблица1[[изд]:[изд]]=$O$1)/(Таблица1[[партия]:[партия]]=$S$1),ROW(N3))),"") -> 0 | P6: =IFERROR(INDEX(Таблица1[17],_xlfn.AGGREGATE(15,6,(ROW(Таблица1[17])-ROW(Таблица1[[#Headers],[17]]))/(Таблица1[[месяц]:[месяц]]=$J$2)/(Таблица1[[год]:[год]]=$L$2)/(Таблица1[[изд]:[изд]]=$O$1)/(Таблица1[[партия]:[партия]]=$S$1),ROW(O3))),"") -> 0 | Q6: =IFERROR(INDEX(Таблица1[18],_xlfn.AGGREGATE(15,6,(ROW(Таблица1[18])-ROW(Таблица1[[#Headers],[18]]))/(Таблица1[[месяц]:[месяц]]=$J$2)/(Таблица1[[год]:[год]]=$L$2)/(Таблица1[[изд]:[изд]]=$O$1)/(Таблица1[[партия]:[партия]]=$S$1),ROW(P3))),"") -> 0 | R6: =IFERROR(INDEX(Таблица1[19],_xlfn.AGGREGATE(15,6,(ROW(Таблица1[19])-ROW(Таблица1[[#Headers],[19]]))/(Таблица1[[месяц]:[месяц]]=$J$2)/(Таблица1[[год]:[год]]=$L$2)/(Таблица1[[изд]:[изд]]=$O$1)/(Таблица1[[партия]:[партия]]=$S$1),ROW(Q3))),"") -> 7 | S6: =IFERROR(INDEX(Таблица1[20],_xlfn.AGGREGATE(15,6,(ROW(Таблица1[20])-ROW(Таблица1[[#Headers],[20]]))/(Таблица1[[месяц]:[месяц]]=$J$2)/(Таблица1[[год]:[год]]=$L$2)/(Таблица1[[изд]:[изд]]=$O$1)/(Таблица1[[партия]:[партия]]=$S$1),ROW(R3))),"") -> 0 | T6: =IFERROR(INDEX(Таблица1[23],_xlfn.AGGREGATE(15,6,(ROW(Таблица1[23])-ROW(Таблица1[[#Headers],[23]]))/(Таблица1[[месяц]:[месяц]]=$J$2)/(Таблица1[[год]:[год]]=$L$2)/(Таблица1[[изд]:[изд]]=$O$1)/(Таблица1[[партия]:[партия]]=$S$1),ROW(S3))),"") -> 0 | U6: =IFERROR(INDEX(Таблица1[24],_xlfn.AGGREGATE(15,6,(ROW(Таблица1[24])-ROW(Таблица1[[#Headers],[24]]))/(Таблица1[[месяц]:[месяц]]=$J$2)/(Таблица1[[год]:[год]]=$L$2)/(Таблица1[[изд]:[изд]]=$O$1)/(Таблица1[[партия]:[партия]]=$S$1),ROW(T3))),"") -> 0 | V6: =IFERROR(INDEX(Таблица1[25],_xlfn.AGGREGATE(15,6,(ROW(Таблица1[25])-ROW(Таблица1[[#Headers],[25]]))/(Таблица1[[месяц]:[месяц]]=$J$2)/(Таблица1[[год]:[год]]=$L$2)/(Таблица1[[изд]:[изд]]=$O$1)/(Таблица1[[партия]:[партия]]=$S$1),ROW(U3))),"") -> 0 | W6: =IFERROR(INDEX(Таблица1[26],_xlfn.AGGREGATE(15,6,(ROW(Таблица1[26])-ROW(Таблица1[[#Headers],[26]]))/(Таблица1[[месяц]:[месяц]]=$J$2)/(Таблица1[[год]:[год]]=$L$2)/(Таблица1[[изд]:[изд]]=$O$1)/(Таблица1[[партия]:[партия]]=$S$1),ROW(V3))),"") -> 0 | X6: =IFERROR(INDEX(Таблица1[27],_xlfn.AGGREGATE(15,6,(ROW(Таблица1[27])-ROW(Таблица1[[#Headers],[27]]))/(Таблица1[[месяц]:[месяц]]=$J$2)/(Таблица1[[год]:[год]]=$L$2)/(Таблица1[[изд]:[изд]]=$O$1)/(Таблица1[[партия]:[партия]]=$S$1),ROW(W3))),"") -> 0 | Y6: =IFERROR(INDEX(Таблица1[30],_xlfn.AGGREGATE(15,6,(ROW(Таблица1[30])-ROW(Таблица1[[#Headers],[30]]))/(Таблица1[[месяц]:[месяц]]=$J$2)/(Таблица1[[год]:[год]]=$L$2)/(Таблица1[[изд]:[изд]]=$O$1)/(Таблица1[[партия]:[партия]]=$S$1),ROW(X3))),"") -> 0 | Z6: =IFERROR(INDEX(Таблица1[31],_xlfn.AGGREGATE(15,6,(ROW(Таблица1[31])-ROW(Таблица1[[#Headers],[31]]))/(Таблица1[[месяц]:[месяц]]=$J$2)/(Таблица1[[год]:[год]]=$L$2)/(Таблица1[[изд]:[изд]]=$O$1)/(Таблица1[[партия]:[партия]]=$S$1),ROW(Y3))),"") -> 0
B7: =IFERROR(INDEX(Таблица1[коэф],_xlfn.AGGREGATE(15,6,(ROW(Таблица1[коэф])-ROW(Таблица1[[#Headers],[коэф]]))/(Таблица1[[месяц]:[месяц]]=$J$2)/(Таблица1[[год]:[год]]=$L$2)/(Таблица1[[изд]:[изд]]=$O$1)/(Таблица1[[партия]:[партия]]=$S$1),ROW(A4))),"") -> 1 | C7: =IFERROR(INDEX(Таблица1[Ф. И. О.],_xlfn.AGGREGATE(15,6,(ROW(Таблица1[Ф. И. О.])-ROW(Таблица1[[#Headers],[Ф. И. О.]]))/(Таблица1[[месяц]:[месяц]]=$J$2)/(Таблица1[[год]:[год]]=$L$2)/(Таблица1[[изд]:[изд]]=$O$1)/(Таблица1[[партия]:[партия]]=$S$1),ROW(B4))),"") -> работник3 | D7: =IFERROR(INDEX(Таблица1[р/р],_xlfn.AGGREGATE(15,6,(ROW(Таблица1[р/р])-ROW(Таблица1[[#Headers],[р/р]]))/(Таблица1[[месяц]:[месяц]]=$J$2)/(Таблица1[[год]:[год]]=$L$2)/(Таблица1[[изд]:[изд]]=$O$1)/(Таблица1[[партия]:[партия]]=$S$1),ROW(C4))),"") -> 2/4 | E7: =IFERROR(INDEX(Таблица1[2],_xlfn.AGGREGATE(15,6,(ROW(Таблица1[2])-ROW(Таблица1[[#Headers],[2]]))/(Таблица1[[месяц]:[месяц]]=$J$2)/(Таблица1[[год]:[год]]=$L$2)/(Таблица1[[изд]:[изд]]=$O$1)/(Таблица1[[партия]:[партия]]=$S$1),ROW(D4))),"") -> 0 | F7: =IFERROR(INDEX(Таблица1[3],_xlfn.AGGREGATE(15,6,(ROW(Таблица1[3])-ROW(Таблица1[[#Headers],[3]]))/(Таблица1[[месяц]:[месяц]]=$J$2)/(Таблица1[[год]:[год]]=$L$2)/(Таблица1[[изд]:[изд]]=$O$1)/(Таблица1[[партия]:[партия]]=$S$1),ROW(E4))),"") -> 0 | G7: =IFERROR(INDEX(Таблица1[4],_xlfn.AGGREGATE(15,6,(ROW(Таблица1[4])-ROW(Таблица1[[#Headers],[4]]))/(Таблица1[[месяц]:[месяц]]=$J$2)/(Таблица1[[год]:[год]]=$L$2)/(Таблица1[[изд]:[изд]]=$O$1)/(Таблица1[[партия]:[партия]]=$S$1),ROW(F4))),"") -> 0 | H7: =IFERROR(INDEX(Таблица1[5],_xlfn.AGGREGATE(15,6,(ROW(Таблица1[5])-ROW(Таблица1[[#Headers],[5]]))/(Таблица1[[месяц]:[месяц]]=$J$2)/(Таблица1[[год]:[год]]=$L$2)/(Таблица1[[изд]:[изд]]=$O$1)/(Таблица1[[партия]:[партия]]=$S$1),ROW(G4))),"") -> 0 | I7: =IFERROR(INDEX(Таблица1[6],_xlfn.AGGREGATE(15,6,(ROW(Таблица1[6])-ROW(Таблица1[[#Headers],[6]]))/(Таблица1[[месяц]:[месяц]]=$J$2)/(Таблица1[[год]:[год]]=$L$2)/(Таблица1[[изд]:[изд]]=$O$1)/(Таблица1[[партия]:[партия]]=$S$1),ROW(H4))),"") -> 2.8 | J7: =IFERROR(INDEX(Таблица1[9],_xlfn.AGGREGATE(15,6,(ROW(Таблица1[9])-ROW(Таблица1[[#Headers],[9]]))/(Таблица1[[месяц]:[месяц]]=$J$2)/(Таблица1[[год]:[год]]=$L$2)/(Таблица1[[изд]:[изд]]=$O$1)/(Таблица1[[партия]:[партия]]=$S$1),ROW(I4))),"") -> 0 | K7: =IFERROR(INDEX(Таблица1[10],_xlfn.AGGREGATE(15,6,(ROW(Таблица1[10])-ROW(Таблица1[[#Headers],[10]]))/(Таблица1[[месяц]:[месяц]]=$J$2)/(Таблица1[[год]:[год]]=$L$2)/(Таблица1[[изд]:[изд]]=$O$1)/(Таблица1[[партия]:[партия]]=$S$1),ROW(J4))),"") -> 0 | L7: =IFERROR(INDEX(Таблица1[11],_xlfn.AGGREGATE(15,6,(ROW(Таблица1[11])-ROW(Таблица1[[#Headers],[11]]))/(Таблица1[[месяц]:[месяц]]=$J$2)/(Таблица1[[год]:[год]]=$L$2)/(Таблица1[[изд]:[изд]]=$O$1)/(Таблица1[[партия]:[партия]]=$S$1),ROW(K4))),"") -> 0 | M7: =IFERROR(INDEX(Таблица1[12],_xlfn.AGGREGATE(15,6,(ROW(Таблица1[12])-ROW(Таблица1[[#Headers],[12]]))/(Таблица1[[месяц]:[месяц]]=$J$2)/(Таблица1[[год]:[год]]=$L$2)/(Таблица1[[изд]:[изд]]=$O$1)/(Таблица1[[партия]:[партия]]=$S$1),ROW(L4))),"") -> 0 | N7: =IFERROR(INDEX(Таблица1[13],_xlfn.AGGREGATE(15,6,(ROW(Таблица1[13])-ROW(Таблица1[[#Headers],[13]]))/(Таблица1[[месяц]:[месяц]]=$J$2)/(Таблица1[[год]:[год]]=$L$2)/(Таблица1[[изд]:[изд]]=$O$1)/(Таблица1[[партия]:[партия]]=$S$1),ROW(M4))),"") -> 0 | O7: =IFERROR(INDEX(Таблица1[16],_xlfn.AGGREGATE(15,6,(ROW(Таблица1[16])-ROW(Таблица1[[#Headers],[16]]))/(Таблица1[[месяц]:[месяц]]=$J$2)/(Таблица1[[год]:[год]]=$L$2)/(Таблица1[[изд]:[изд]]=$O$1)/(Таблица1[[партия]:[партия]]=$S$1),ROW(N4))),"") -> 0 | P7: =IFERROR(INDEX(Таблица1[17],_xlfn.AGGREGATE(15,6,(ROW(Таблица1[17])-ROW(Таблица1[[#Headers],[17]]))/(Таблица1[[месяц]:[месяц]]=$J$2)/(Таблица1[[год]:[год]]=$L$2)/(Таблица1[[изд]:[изд]]=$O$1)/(Таблица1[[партия]:[партия]]=$S$1),ROW(O4))),"") -> 0 | Q7: =IFERROR(INDEX(Таблица1[18],_xlfn.AGGREGATE(15,6,(ROW(Таблица1[18])-ROW(Таблица1[[#Headers],[18]]))/(Таблица1[[месяц]:[месяц]]=$J$2)/(Таблица1[[год]:[год]]=$L$2)/(Таблица1[[изд]:[изд]]=$O$1)/(Таблица1[[партия]:[партия]]=$S$1),ROW(P4))),"") -> 0 | R7: =IFERROR(INDEX(Таблица1[19],_xlfn.AGGREGATE(15,6,(ROW(Таблица1[19])-ROW(Таблица1[[#Headers],[19]]))/(Таблица1[[месяц]:[месяц]]=$J$2)/(Таблица1[[год]:[год]]=$L$2)/(Таблица1[[изд]:[изд]]=$O$1)/(Таблица1[[партия]:[партия]]=$S$1),ROW(Q4))),"") -> 0 | S7: =IFERROR(INDEX(Таблица1[20],_xlfn.AGGREGATE(15,6,(ROW(Таблица1[20])-ROW(Таблица1[[#Headers],[20]]))/(Таблица1[[месяц]:[месяц]]=$J$2)/(Таблица1[[год]:[год]]=$L$2)/(Таблица1[[изд]:[изд]]=$O$1)/(Таблица1[[партия]:[партия]]=$S$1),ROW(R4))),"") -> 0 | T7: =IFERROR(INDEX(Таблица1[23],_xlfn.AGGREGATE(15,6,(ROW(Таблица1[23])-ROW(Таблица1[[#Headers],[23]]))/(Таблица1[[месяц]:[месяц]]=$J$2)/(Таблица1[[год]:[год]]=$L$2)/(Таблица1[[изд]:[изд]]=$O$1)/(Таблица1[[партия]:[партия]]=$S$1),ROW(S4))),"") -> 0 | U7: =IFERROR(INDEX(Таблица1[24],_xlfn.AGGREGATE(15,6,(ROW(Таблица1[24])-ROW(Таблица1[[#Headers],[24]]))/(Таблица1[[месяц]:[месяц]]=$J$2)/(Таблица1[[год]:[год]]=$L$2)/(Таблица1[[изд]:[изд]]=$O$1)/(Таблица1[[партия]:[партия]]=$S$1),ROW(T4))),"") -> 0 | V7: =IFERROR(INDEX(Таблица1[25],_xlfn.AGGREGATE(15,6,(ROW(Таблица1[25])-ROW(Таблица1[[#Headers],[25]]))/(Таблица1[[месяц]:[месяц]]=$J$2)/(Таблица1[[год]:[год]]=$L$2)/(Таблица1[[изд]:[изд]]=$O$1)/(Таблица1[[партия]:[партия]]=$S$1),ROW(U4))),"") -> 0 | W7: =IFERROR(INDEX(Таблица1[26],_xlfn.AGGREGATE(15,6,(ROW(Таблица1[26])-ROW(Таблица1[[#Headers],[26]]))/(Таблица1[[месяц]:[месяц]]=$J$2)/(Таблица1[[год]:[год]]=$L$2)/(Таблица1[[изд]:[изд]]=$O$1)/(Таблица1[[партия]:[партия]]=$S$1),ROW(V4))),"") -> 0 | X7: =IFERROR(INDEX(Таблица1[27],_xlfn.AGGREGATE(15,6,(ROW(Таблица1[27])-ROW(Таблица1[[#Headers],[27]]))/(Таблица1[[месяц]:[месяц]]=$J$2)/(Таблица1[[год]:[год]]=$L$2)/(Таблица1[[изд]:[изд]]=$O$1)/(Таблица1[[партия]:[партия]]=$S$1),ROW(W4))),"") -> 0 | Y7: =IFERROR(INDEX(Таблица1[30],_xlfn.AGGREGATE(15,6,(ROW(Таблица1[30])-ROW(Таблица1[[#Headers],[30]]))/(Таблица1[[месяц]:[месяц]]=$J$2)/(Таблица1[[год]:[год]]=$L$2)/(Таблица1[[изд]:[изд]]=$O$1)/(Таблица1[[партия]:[партия]]=$S$1),ROW(X4))),"") -> 0 | Z7: =IFERROR(INDEX(Таблица1[31],_xlfn.AGGREGATE(15,6,(ROW(Таблица1[31])-ROW(Таблица1[[#Headers],[31]]))/(Таблица1[[месяц]:[месяц]]=$J$2)/(Таблица1[[год]:[год]]=$L$2)/(Таблица1[[изд]:[изд]]=$O$1)/(Таблица1[[партия]:[партия]]=$S$1),ROW(Y4))),"") -> 0
B8: =IFERROR(INDEX(Таблица1[коэф],_xlfn.AGGREGATE(15,6,(ROW(Таблица1[коэф])-ROW(Таблица1[[#Headers],[коэф]]))/(Таблица1[[месяц]:[месяц]]=$J$2)/(Таблица1[[год]:[год]]=$L$2)/(Таблица1[[изд]:[изд]]=$O$1)/(Таблица1[[партия]:[партия]]=$S$1),ROW(A5))),"") -> 1 | C8: =IFERROR(INDEX(Таблица1[Ф. И. О.],_xlfn.AGGREGATE(15,6,(ROW(Таблица1[Ф. И. О.])-ROW(Таблица1[[#Headers],[Ф. И. О.]]))/(Таблица1[[месяц]:[месяц]]=$J$2)/(Таблица1[[год]:[год]]=$L$2)/(Таблица1[[изд]:[изд]]=$O$1)/(Таблица1[[партия]:[партия]]=$S$1),ROW(B5))),"") -> работник12 | D8: =IFERROR(INDEX(Таблица1[р/р],_xlfn.AGGREGATE(15,6,(ROW(Таблица1[р/р])-ROW(Таблица1[[#Headers],[р/р]]))/(Таблица1[[месяц]:[месяц]]=$J$2)/(Таблица1[[год]:[год]]=$L$2)/(Таблица1[[изд]:[изд]]=$O$1)/(Таблица1[[партия]:[партия]]=$S$1),ROW(C5))),"") -> 3/4 | E8: =IFERROR(INDEX(Таблица1[2],_xlfn.AGGREGATE(15,6,(ROW(Таблица1[2])-ROW(Таблица1[[#Headers],[2]]))/(Таблица1[[месяц]:[месяц]]=$J$2)/(Таблица1[[год]:[год]]=$L$2)/(Таблица1[[изд]:[изд]]=$O$1)/(Таблица1[[партия]:[партия]]=$S$1),ROW(D5))),"") -> 4 | F8: =IFERROR(INDEX(Таблица1[3],_xlfn.AGGREGATE(15,6,(ROW(Таблица1[3])-ROW(Таблица1[[#Headers],[3]]))/(Таблица1[[месяц]:[месяц]]=$J$2)/(Таблица1[[год]:[год]]=$L$2)/(Таблица1[[изд]:[изд]]=$O$1)/(Таблица1[[партия]:[партия]]=$S$1),ROW(E5))),"") -> 4 | G8: =IFERROR(INDEX(Таблица1[4],_xlfn.AGGREGATE(15,6,(ROW(Таблица1[4])-ROW(Таблица1[[#Headers],[4]]))/(Таблица1[[месяц]:[месяц]]=$J$2)/(Таблица1[[год]:[год]]=$L$2)/(Таблица1[[изд]:[изд]]=$O$1)/(Таблица1[[партия]:[партия]]=$S$1),ROW(F5))),"") -> 4 | H8: =IFERROR(INDEX(Таблица1[5],_xlfn.AGGREGATE(15,6,(ROW(Таблица1[5])-ROW(Таблица1[[#Headers],[5]]))/(Таблица1[[месяц]:[месяц]]=$J$2)/(Таблица1[[год]:[год]]=$L$2)/(Таблица1[[изд]:[изд]]=$O$1)/(Таблица1[[партия]:[партия]]=$S$1),ROW(G5))),"") -> 4 | I8: =IFERROR(INDEX(Таблица1[6],_xlfn.AGGREGATE(15,6,(ROW(Таблица1[6])-ROW(Таблица1[[#Headers],[6]]))/(Таблица1[[месяц]:[месяц]]=$J$2)/(Таблица1[[год]:[год]]=$L$2)/(Таблица1[[изд]:[изд]]=$O$1)/(Таблица1[[партия]:[партия]]=$S$1),ROW(H5))),"") -> 0 | J8: =IFERROR(INDEX(Таблица1[9],_xlfn.AGGREGATE(15,6,(ROW(Таблица1[9])-ROW(Таблица1[[#Headers],[9]]))/(Таблица1[[месяц]:[месяц]]=$J$2)/(Таблица1[[год]:[год]]=$L$2)/(Таблица1[[изд]:[изд]]=$O$1)/(Таблица1[[партия]:[партия]]=$S$1),ROW(I5))),"") -> 0 | K8: =IFERROR(INDEX(Таблица1[10],_xlfn.AGGREGATE(15,6,(ROW(Таблица1[10])-ROW(Таблица1[[#Headers],[10]]))/(Таблица1[[месяц]:[месяц]]=$J$2)/(Таблица1[[год]:[год]]=$L$2)/(Таблица1[[изд]:[изд]]=$O$1)/(Таблица1[[партия]:[партия]]=$S$1),ROW(J5))),"") -> 0 | L8: =IFERROR(INDEX(Таблица1[11],_xlfn.AGGREGATE(15,6,(ROW(Таблица1[11])-ROW(Таблица1[[#Headers],[11]]))/(Таблица1[[месяц]:[месяц]]=$J$2)/(Таблица1[[год]:[год]]=$L$2)/(Таблица1[[изд]:[изд]]=$O$1)/(Таблица1[[партия]:[партия]]=$S$1),ROW(K5))),"") -> 0 | M8: =IFERROR(INDEX(Таблица1[12],_xlfn.AGGREGATE(15,6,(ROW(Таблица1[12])-ROW(Таблица1[[#Headers],[12]]))/(Таблица1[[месяц]:[месяц]]=$J$2)/(Таблица1[[год]:[год]]=$L$2)/(Таблица1[[изд]:[изд]]=$O$1)/(Таблица1[[партия]:[партия]]=$S$1),ROW(L5))),"") -> 0 | N8: =IFERROR(INDEX(Таблица1[13],_xlfn.AGGREGATE(15,6,(ROW(Таблица1[13])-ROW(Таблица1[[#Headers],[13]]))/(Таблица1[[месяц]:[месяц]]=$J$2)/(Таблица1[[год]:[год]]=$L$2)/(Таблица1[[изд]:[изд]]=$O$1)/(Таблица1[[партия]:[партия]]=$S$1),ROW(M5))),"") -> 7 | O8: =IFERROR(INDEX(Таблица1[16],_xlfn.AGGREGATE(15,6,(ROW(Таблица1[16])-ROW(Таблица1[[#Headers],[16]]))/(Таблица1[[месяц]:[месяц]]=$J$2)/(Таблица1[[год]:[год]]=$L$2)/(Таблица1[[изд]:[изд]]=$O$1)/(Таблица1[[партия]:[партия]]=$S$1),ROW(N5))),"") -> 0 | P8: =IFERROR(INDEX(Таблица1[17],_xlfn.AGGREGATE(15,6,(ROW(Таблица1[17])-ROW(Таблица1[[#Headers],[17]]))/(Таблица1[[месяц]:[месяц]]=$J$2)/(Таблица1[[год]:[год]]=$L$2)/(Таблица1[[изд]:[изд]]=$O$1)/(Таблица1[[партия]:[партия]]=$S$1),ROW(O5))),"") -> 0 | Q8: =IFERROR(INDEX(Таблица1[18],_xlfn.AGGREGATE(15,6,(ROW(Таблица1[18])-ROW(Таблица1[[#Headers],[18]]))/(Таблица1[[месяц]:[месяц]]=$J$2)/(Таблица1[[год]:[год]]=$L$2)/(Таблица1[[изд]:[изд]]=$O$1)/(Таблица1[[партия]:[партия]]=$S$1),ROW(P5))),"") -> 0 | R8: =IFERROR(INDEX(Таблица1[19],_xlfn.AGGREGATE(15,6,(ROW(Таблица1[19])-ROW(Таблица1[[#Headers],[19]]))/(Таблица1[[месяц]:[месяц]]=$J$2)/(Таблица1[[год]:[год]]=$L$2)/(Таблица1[[изд]:[изд]]=$O$1)/(Таблица1[[партия]:[партия]]=$S$1),ROW(Q5))),"") -> 0 | S8: =IFERROR(INDEX(Таблица1[20],_xlfn.AGGREGATE(15,6,(ROW(Таблица1[20])-ROW(Таблица1[[#Headers],[20]]))/(Таблица1[[месяц]:[месяц]]=$J$2)/(Таблица1[[год]:[год]]=$L$2)/(Таблица1[[изд]:[изд]]=$O$1)/(Таблица1[[партия]:[партия]]=$S$1),ROW(R5))),"") -> 0 | T8: =IFERROR(INDEX(Таблица1[23],_xlfn.AGGREGATE(15,6,(ROW(Таблица1[23])-ROW(Таблица1[[#Headers],[23]]))/(Таблица1[[месяц]:[месяц]]=$J$2)/(Таблица1[[год]:[год]]=$L$2)/(Таблица1[[изд]:[изд]]=$O$1)/(Таблица1[[партия]:[партия]]=$S$1),ROW(S5))),"") -> 0 | U8: =IFERROR(INDEX(Таблица1[24],_xlfn.AGGREGATE(15,6,(ROW(Таблица1[24])-ROW(Таблица1[[#Headers],[24]]))/(Таблица1[[месяц]:[месяц]]=$J$2)/(Таблица1[[год]:[год]]=$L$2)/(Таблица1[[изд]:[изд]]=$O$1)/(Таблица1[[партия]:[партия]]=$S$1),ROW(T5))),"") -> 0 | V8: =IFERROR(INDEX(Таблица1[25],_xlfn.AGGREGATE(15,6,(ROW(Таблица1[25])-ROW(Таблица1[[#Headers],[25]]))/(Таблица1[[месяц]:[месяц]]=$J$2)/(Таблица1[[год]:[год]]=$L$2)/(Таблица1[[изд]:[изд]]=$O$1)/(Таблица1[[партия]:[партия]]=$S$1),ROW(U5))),"") -> 0 | W8: =IFERROR(INDEX(Таблица1[26],_xlfn.AGGREGATE(15,6,(ROW(Таблица1[26])-ROW(Таблица1[[#Headers],[26]]))/(Таблица1[[месяц]:[месяц]]=$J$2)/(Таблица1[[год]:[год]]=$L$2)/(Таблица1[[изд]:[изд]]=$O$1)/(Таблица1[[партия]:[партия]]=$S$1),ROW(V5))),"") -> 0 | X8: =IFERROR(INDEX(Таблица1[27],_xlfn.AGGREGATE(15,6,(ROW(Таблица1[27])-ROW(Таблица1[[#Headers],[27]]))/(Таблица1[[месяц]:[месяц]]=$J$2)/(Таблица1[[год]:[год]]=$L$2)/(Таблица1[[изд]:[изд]]=$O$1)/(Таблица1[[партия]:[партия]]=$S$1),ROW(W5))),"") -> 0 | Y8: =IFERROR(INDEX(Таблица1[30],_xlfn.AGGREGATE(15,6,(ROW(Таблица1[30])-ROW(Таблица1[[#Headers],[30]]))/(Таблица1[[месяц]:[месяц]]=$J$2)/(Таблица1[[год]:[год]]=$L$2)/(Таблица1[[изд]:[изд]]=$O$1)/(Таблица1[[партия]:[партия]]=$S$1),ROW(X5))),"") -> 0 | Z8: =IFERROR(INDEX(Таблица1[31],_xlfn.AGGREGATE(15,6,(ROW(Таблица1[31])-ROW(Таблица1[[#Headers],[31]]))/(Таблица1[[месяц]:[месяц]]=$J$2)/(Таблица1[[год]:[год]]=$L$2)/(Таблица1[[изд]:[изд]]=$O$1)/(Таблица1[[партия]:[партия]]=$S$1),ROW(Y5))),"") -> 0
B9: =IFERROR(INDEX(Таблица1[коэф],_xlfn.AGGREGATE(15,6,(ROW(Таблица1[коэф])-ROW(Таблица1[[#Headers],[коэф]]))/(Таблица1[[месяц]:[месяц]]=$J$2)/(Таблица1[[год]:[год]]=$L$2)/(Таблица1[[изд]:[изд]]=$O$1)/(Таблица1[[партия]:[партия]]=$S$1),ROW(A6))),"") -> 1 | C9: =IFERROR(INDEX(Таблица1[Ф. И. О.],_xlfn.AGGREGATE(15,6,(ROW(Таблица1[Ф. И. О.])-ROW(Таблица1[[#Headers],[Ф. И. О.]]))/(Таблица1[[месяц]:[месяц]]=$J$2)/(Таблица1[[год]:[год]]=$L$2)/(Таблица1[[изд]:[изд]]=$O$1)/(Таблица1[[партия]:[партия]]=$S$1),ROW(B6))),"") -> работник2 | D9: =IFERROR(INDEX(Таблица1[р/р],_xlfn.AGGREGATE(15,6,(ROW(Таблица1[р/р])-ROW(Таблица1[[#Headers],[р/р]]))/(Таблица1[[месяц]:[месяц]]=$J$2)/(Таблица1[[год]:[год]]=$L$2)/(Таблица1[[изд]:[изд]]=$O$1)/(Таблица1[[партия]:[партия]]=$S$1),ROW(C6))),"") -> 3/4 | E9: =IFERROR(INDEX(Таблица1[2],_xlfn.AGGREGATE(15,6,(ROW(Таблица1[2])-ROW(Таблица1[[#Headers],[2]]))/(Таблица1[[месяц]:[месяц]]=$J$2)/(Таблица1[[год]:[год]]=$L$2)/(Таблица1[[изд]:[изд]]=$O$1)/(Таблица1[[партия]:[партия]]=$S$1),ROW(D6))),"") -> 0 | F9: =IFERROR(INDEX(Таблица1[3],_xlfn.AGGREGATE(15,6,(ROW(Таблица1[3])-ROW(Таблица1[[#Headers],[3]]))/(Таблица1[[месяц]:[месяц]]=$J$2)/(Таблица1[[год]:[год]]=$L$2)/(Таблица1[[изд]:[изд]]=$O$1)/(Таблица1[[партия]:[партия]]=$S$1),ROW(E6))),"") -> 0 | G9: =IFERROR(INDEX(Таблица1[4],_xlfn.AGGREGATE(15,6,(ROW(Таблица1[4])-ROW(Таблица1[[#Headers],[4]]))/(Таблица1[[месяц]:[месяц]]=$J$2)/(Таблица1[[год]:[год]]=$L$2)/(Таблица1[[изд]:[изд]]=$O$1)/(Таблица1[[партия]:[партия]]=$S$1),ROW(F6))),"") -> 0 | H9: =IFERROR(INDEX(Таблица1[5],_xlfn.AGGREGATE(15,6,(ROW(Таблица1[5])-ROW(Таблица1[[#Headers],[5]]))/(Таблица1[[месяц]:[месяц]]=$J$2)/(Таблица1[[год]:[год]]=$L$2)/(Таблица1[[изд]:[изд]]=$O$1)/(Таблица1[[партия]:[партия]]=$S$1),ROW(G6))),"") -> 0 | I9: =IFERROR(INDEX(Таблица1[6],_xlfn.AGGREGATE(15,6,(ROW(Таблица1[6])-ROW(Таблица1[[#Headers],[6]]))/(Таблица1[[месяц]:[месяц]]=$J$2)/(Таблица1[[год]:[год]]=$L$2)/(Таблица1[[изд]:[изд]]=$O$1)/(Таблица1[[партия]:[партия]]=$S$1),ROW(H6))),"") -> 0 | J9: =IFERROR(INDEX(Таблица1[9],_xlfn.AGGREGATE(15,6,(ROW(Таблица1[9])-ROW(Таблица1[[#Headers],[9]]))/(Таблица1[[месяц]:[месяц]]=$J$2)/(Таблица1[[год]:[год]]=$L$2)/(Таблица1[[изд]:[изд]]=$O$1)/(Таблица1[[партия]:[партия]]=$S$1),ROW(I6))),"") -> 4.2 | K9: =IFERROR(INDEX(Таблица1[10],_xlfn.AGGREGATE(15,6,(ROW(Таблица1[10])-ROW(Таблица1[[#Headers],[10]]))/(Таблица1[[месяц]:[месяц]]=$J$2)/(Таблица1[[год]:[год]]=$L$2)/(Таблица1[[изд]:[изд]]=$O$1)/(Таблица1[[партия]:[партия]]=$S$1),ROW(J6))),"") -> 0 | L9: =IFERROR(INDEX(Таблица1[11],_xlfn.AGGREGATE(15,6,(ROW(Таблица1[11])-ROW(Таблица1[[#Headers],[11]]))/(Таблица1[[месяц]:[месяц]]=$J$2)/(Таблица1[[год]:[год]]=$L$2)/(Таблица1[[изд]:[изд]]=$O$1)/(Таблица1[[партия]:[партия]]=$S$1),ROW(K6))),"") -> 0 | M9: =IFERROR(INDEX(Таблица1[12],_xlfn.AGGREGATE(15,6,(ROW(Таблица1[12])-ROW(Таблица1[[#Headers],[12]]))/(Таблица1[[месяц]:[месяц]]=$J$2)/(Таблица1[[год]:[год]]=$L$2)/(Таблица1[[изд]:[изд]]=$O$1)/(Таблица1[[партия]:[партия]]=$S$1),ROW(L6))),"") -> 0 | N9: =IFERROR(INDEX(Таблица1[13],_xlfn.AGGREGATE(15,6,(ROW(Таблица1[13])-ROW(Таблица1[[#Headers],[13]]))/(Таблица1[[месяц]:[месяц]]=$J$2)/(Таблица1[[год]:[год]]=$L$2)/(Таблица1[[изд]:[изд]]=$O$1)/(Таблица1[[партия]:[партия]]=$S$1),ROW(M6))),"") -> 0 | O9: =IFERROR(INDEX(Таблица1[16],_xlfn.AGGREGATE(15,6,(ROW(Таблица1[16])-ROW(Таблица1[[#Headers],[16]]))/(Таблица1[[месяц]:[месяц]]=$J$2)/(Таблица1[[год]:[год]]=$L$2)/(Таблица1[[изд]:[изд]]=$O$1)/(Таблица1[[партия]:[партия]]=$S$1),ROW(N6))),"") -> 0 | P9: =IFERROR(INDEX(Таблица1[17],_xlfn.AGGREGATE(15,6,(ROW(Таблица1[17])-ROW(Таблица1[[#Headers],[17]]))/(Таблица1[[месяц]:[месяц]]=$J$2)/(Таблица1[[год]:[год]]=$L$2)/(Таблица1[[изд]:[изд]]=$O$1)/(Таблица1[[партия]:[партия]]=$S$1),ROW(O6))),"") -> 0 | Q9: =IFERROR(INDEX(Таблица1[18],_xlfn.AGGREGATE(15,6,(ROW(Таблица1[18])-ROW(Таблица1[[#Headers],[18]]))/(Таблица1[[месяц]:[месяц]]=$J$2)/(Таблица1[[год]:[год]]=$L$2)/(Таблица1[[изд]:[изд]]=$O$1)/(Таблица1[[партия]:[партия]]=$S$1),ROW(P6))),"") -> 2.2 | R9: =IFERROR(INDEX(Таблица1[19],_xlfn.AGGREGATE(15,6,(ROW(Таблица1[19])-ROW(Таблица1[[#Headers],[19]]))/(Таблица1[[месяц]:[месяц]]=$J$2)/(Таблица1[[год]:[год]]=$L$2)/(Таблица1[[изд]:[изд]]=$O$1)/(Таблица1[[партия]:[партия]]=$S$1),ROW(Q6))),"") -> 0 | S9: =IFERROR(INDEX(Таблица1[20],_xlfn.AGGREGATE(15,6,(ROW(Таблица1[20])-ROW(Таблица1[[#Headers],[20]]))/(Таблица1[[месяц]:[месяц]]=$J$2)/(Таблица1[[год]:[год]]=$L$2)/(Таблица1[[изд]:[изд]]=$O$1)/(Таблица1[[партия]:[партия]]=$S$1),ROW(R6))),"") -> 7.2 | T9: =IFERROR(INDEX(Таблица1[23],_xlfn.AGGREGATE(15,6,(ROW(Таблица1[23])-ROW(Таблица1[[#Headers],[23]]))/(Таблица1[[месяц]:[месяц]]=$J$2)/(Таблица1[[год]:[год]]=$L$2)/(Таблица1[[изд]:[изд]]=$O$1)/(Таблица1[[партия]:[партия]]=$S$1),ROW(S6))),"") -> 0 | U9: =IFERROR(INDEX(Таблица1[24],_xlfn.AGGREGATE(15,6,(ROW(Таблица1[24])-ROW(Таблица1[[#Headers],[24]]))/(Таблица1[[месяц]:[месяц]]=$J$2)/(Таблица1[[год]:[год]]=$L$2)/(Таблица1[[изд]:[изд]]=$O$1)/(Таблица1[[партия]:[партия]]=$S$1),ROW(T6))),"") -> 7.2 | V9: =IFERROR(INDEX(Таблица1[25],_xlfn.AGGREGATE(15,6,(ROW(Таблица1[25])-ROW(Таблица1[[#Headers],[25]]))/(Таблица1[[месяц]:[месяц]]=$J$2)/(Таблица1[[год]:[год]]=$L$2)/(Таблица1[[изд]:[изд]]=$O$1)/(Таблица1[[партия]:[партия]]=$S$1),ROW(U6))),"") -> 0 | W9: =IFERROR(INDEX(Таблица1[26],_xlfn.AGGREGATE(15,6,(ROW(Таблица1[26])-ROW(Таблица1[[#Headers],[26]]))/(Таблица1[[месяц]:[месяц]]=$J$2)/(Таблица1[[год]:[год]]=$L$2)/(Таблица1[[изд]:[изд]]=$O$1)/(Таблица1[[партия]:[партия]]=$S$1),ROW(V6))),"") -> 3.6 | X9: =IFERROR(INDEX(Таблица1[27],_xlfn.AGGREGATE(15,6,(ROW(Таблица1[27])-ROW(Таблица1[[#Headers],[27]]))/(Таблица1[[месяц]:[месяц]]=$J$2)/(Таблица1[[год]:[год]]=$L$2)/(Таблица1[[изд]:[изд]]=$O$1)/(Таблица1[[партия]:[партия]]=$S$1),ROW(W6))),"") -> 0 | Y9: =IFERROR(INDEX(Таблица1[30],_xlfn.AGGREGATE(15,6,(ROW(Таблица1[30])-ROW(Таблица1[[#Headers],[30]]))/(Таблица1[[месяц]:[месяц]]=$J$2)/(Таблица1[[год]:[год]]=$L$2)/(Таблица1[[изд]:[изд]]=$O$1)/(Таблица1[[партия]:[партия]]=$S$1),ROW(X6))),"") -> 0 | Z9: =IFERROR(INDEX(Таблица1[31],_xlfn.AGGREGATE(15,6,(ROW(Таблица1[31])-ROW(Таблица1[[#Headers],[31]]))/(Таблица1[[месяц]:[месяц]]=$J$2)/(Таблица1[[год]:[год]]=$L$2)/(Таблица1[[изд]:[изд]]=$O$1)/(Таблица1[[партия]:[партия]]=$S$1),ROW(Y6))),"") -> 0
B10: =IFERROR(INDEX(Таблица1[коэф],_xlfn.AGGREGATE(15,6,(ROW(Таблица1[коэф])-ROW(Таблица1[[#Headers],[коэф]]))/(Таблица1[[месяц]:[месяц]]=$J$2)/(Таблица1[[год]:[год]]=$L$2)/(Таблица1[[изд]:[изд]]=$O$1)/(Таблица1[[партия]:[партия]]=$S$1),ROW(A7))),"") -> 1 | C10: =IFERROR(INDEX(Таблица1[Ф. И. О.],_xlfn.AGGREGATE(15,6,(ROW(Таблица1[Ф. И. О.])-ROW(Таблица1[[#Headers],[Ф. И. О.]]))/(Таблица1[[месяц]:[месяц]]=$J$2)/(Таблица1[[год]:[год]]=$L$2)/(Таблица1[[изд]:[изд]]=$O$1)/(Таблица1[[партия]:[партия]]=$S$1),ROW(B7))),"") -> работник2 | D10: =IFERROR(INDEX(Таблица1[р/р],_xlfn.AGGREGATE(15,6,(ROW(Таблица1[р/р])-ROW(Таблица1[[#Headers],[р/р]]))/(Таблица1[[месяц]:[месяц]]=$J$2)/(Таблица1[[год]:[год]]=$L$2)/(Таблица1[[изд]:[изд]]=$O$1)/(Таблица1[[партия]:[партия]]=$S$1),ROW(C7))),"") -> 3/16 | E10: =IFERROR(INDEX(Таблица1[2],_xlfn.AGGREGATE(15,6,(ROW(Таблица1[2])-ROW(Таблица1[[#Headers],[2]]))/(Таблица1[[месяц]:[месяц]]=$J$2)/(Таблица1[[год]:[год]]=$L$2)/(Таблица1[[изд]:[изд]]=$O$1)/(Таблица1[[партия]:[партия]]=$S$1),ROW(D7))),"") -> 0 | F10: =IFERROR(INDEX(Таблица1[3],_xlfn.AGGREGATE(15,6,(ROW(Таблица1[3])-ROW(Таблица1[[#Headers],[3]]))/(Таблица1[[месяц]:[месяц]]=$J$2)/(Таблица1[[год]:[год]]=$L$2)/(Таблица1[[изд]:[изд]]=$O$1)/(Таблица1[[партия]:[партия]]=$S$1),ROW(E7))),"") -> 0 | G10: =IFERROR(INDEX(Таблица1[4],_xlfn.AGGREGATE(15,6,(ROW(Таблица1[4])-ROW(Таблица1[[#Headers],[4]]))/(Таблица1[[месяц]:[месяц]]=$J$2)/(Таблица1[[год]:[год]]=$L$2)/(Таблица1[[изд]:[изд]]=$O$1)/(Таблица1[[партия]:[партия]]=$S$1),ROW(F7))),"") -> 0 | H10: =IFERROR(INDEX(Таблица1[5],_xlfn.AGGREGATE(15,6,(ROW(Таблица1[5])-ROW(Таблица1[[#Headers],[5]]))/(Таблица1[[месяц]:[месяц]]=$J$2)/(Таблица1[[год]:[год]]=$L$2)/(Таблица1[[изд]:[изд]]=$O$1)/(Таблица1[[партия]:[партия]]=$S$1),ROW(G7))),"") -> 0 | I10: =IFERROR(INDEX(Таблица1[6],_xlfn.AGGREGATE(15,6,(ROW(Таблица1[6])-ROW(Таблица1[[#Headers],[6]]))/(Таблица1[[месяц]:[месяц]]=$J$2)/(Таблица1[[год]:[год]]=$L$2)/(Таблица1[[изд]:[изд]]=$O$1)/(Таблица1[[партия]:[партия]]=$S$1),ROW(H7))),"") -> 0 | J10: =IFERROR(INDEX(Таблица1[9],_xlfn.AGGREGATE(15,6,(ROW(Таблица1[9])-ROW(Таблица1[[#Headers],[9]]))/(Таблица1[[месяц]:[месяц]]=$J$2)/(Таблица1[[год]:[год]]=$L$2)/(Таблица1[[изд]:[изд]]=$O$1)/(Таблица1[[партия]:[партия]]=$S$1),ROW(I7))),"") -> 0 | K10: =IFERROR(INDEX(Таблица1[10],_xlfn.AGGREGATE(15,6,(ROW(Таблица1[10])-ROW(Таблица1[[#Headers],[10]]))/(Таблица1[[месяц]:[месяц]]=$J$2)/(Таблица1[[год]:[год]]=$L$2)/(Таблица1[[изд]:[изд]]=$O$1)/(Таблица1[[партия]:[партия]]=$S$1),ROW(J7))),"") -> 0 | L10: =IFERROR(INDEX(Таблица1[11],_xlfn.AGGREGATE(15,6,(ROW(Таблица1[11])-ROW(Таблица1[[#Headers],[11]]))/(Таблица1[[месяц]:[месяц]]=$J$2)/(Таблица1[[год]:[год]]=$L$2)/(Таблица1[[изд]:[изд]]=$O$1)/(Таблица1[[партия]:[партия]]=$S$1),ROW(K7))),"") -> 0 | M10: =IFERROR(INDEX(Таблица1[12],_xlfn.AGGREGATE(15,6,(ROW(Таблица1[12])-ROW(Таблица1[[#Headers],[12]]))/(Таблица1[[месяц]:[месяц]]=$J$2)/(Таблица1[[год]:[год]]=$L$2)/(Таблица1[[изд]:[изд]]=$O$1)/(Таблица1[[партия]:[партия]]=$S$1),ROW(L7))),"") -> 0 | N10: =IFERROR(INDEX(Таблица1[13],_xlfn.AGGREGATE(15,6,(ROW(Таблица1[13])-ROW(Таблица1[[#Headers],[13]]))/(Таблица1[[месяц]:[месяц]]=$J$2)/(Таблица1[[год]:[год]]=$L$2)/(Таблица1[[изд]:[изд]]=$O$1)/(Таблица1[[партия]:[партия]]=$S$1),ROW(M7))),"") -> 0 | O10: =IFERROR(INDEX(Таблица1[16],_xlfn.AGGREGATE(15,6,(ROW(Таблица1[16])-ROW(Таблица1[[#Headers],[16]]))/(Таблица1[[месяц]:[месяц]]=$J$2)/(Таблица1[[год]:[год]]=$L$2)/(Таблица1[[изд]:[изд]]=$O$1)/(Таблица1[[партия]:[партия]]=$S$1),ROW(N7))),"") -> 0 | P10: =IFERROR(INDEX(Таблица1[17],_xlfn.AGGREGATE(15,6,(ROW(Таблица1[17])-ROW(Таблица1[[#Headers],[17]]))/(Таблица1[[месяц]:[месяц]]=$J$2)/(Таблица1[[год]:[год]]=$L$2)/(Таблица1[[изд]:[изд]]=$O$1)/(Таблица1[[партия]:[партия]]=$S$1),ROW(O7))),"") -> 0 | Q10: =IFERROR(INDEX(Таблица1[18],_xlfn.AGGREGATE(15,6,(ROW(Таблица1[18])-ROW(Таблица1[[#Headers],[18]]))/(Таблица1[[месяц]:[месяц]]=$J$2)/(Таблица1[[год]:[год]]=$L$2)/(Таблица1[[изд]:[изд]]=$O$1)/(Таблица1[[партия]:[партия]]=$S$1),ROW(P7))),"") -> 0 | R10: =IFERROR(INDEX(Таблица1[19],_xlfn.AGGREGATE(15,6,(ROW(Таблица1[19])-ROW(Таблица1[[#Headers],[19]]))/(Таблица1[[месяц]:[месяц]]=$J$2)/(Таблица1[[год]:[год]]=$L$2)/(Таблица1[[изд]:[изд]]=$O$1)/(Таблица1[[партия]:[партия]]=$S$1),ROW(Q7))),"") -> 0 | S10: =IFERROR(INDEX(Таблица1[20],_xlfn.AGGREGATE(15,6,(ROW(Таблица1[20])-ROW(Таблица1[[#Headers],[20]]))/(Таблица1[[месяц]:[месяц]]=$J$2)/(Таблица1[[год]:[год]]=$L$2)/(Таблица1[[изд]:[изд]]=$O$1)/(Таблица1[[партия]:[партия]]=$S$1),ROW(R7))),"") -> 0 | T10: =IFERROR(INDEX(Таблица1[23],_xlfn.AGGREGATE(15,6,(ROW(Таблица1[23])-ROW(Таблица1[[#Headers],[23]]))/(Таблица1[[месяц]:[месяц]]=$J$2)/(Таблица1[[год]:[год]]=$L$2)/(Таблица1[[изд]:[изд]]=$O$1)/(Таблица1[[партия]:[партия]]=$S$1),ROW(S7))),"") -> 1.8 | U10: =IFERROR(INDEX(Таблица1[24],_xlfn.AGGREGATE(15,6,(ROW(Таблица1[24])-ROW(Таблица1[[#Headers],[24]]))/(Таблица1[[месяц]:[месяц]]=$J$2)/(Таблица1[[год]:[год]]=$L$2)/(Таблица1[[изд]:[изд]]=$O$1)/(Таблица1[[партия]:[партия]]=$S$1),ROW(T7))),"") -> 0 | V10: =IFERROR(INDEX(Таблица1[25],_xlfn.AGGREGATE(15,6,(ROW(Таблица1[25])-ROW(Таблица1[[#Headers],[25]]))/(Таблица1[[месяц]:[месяц]]=$J$2)/(Таблица1[[год]:[год]]=$L$2)/(Таблица1[[изд]:[изд]]=$O$1)/(Таблица1[[партия]:[партия]]=$S$1),ROW(U7))),"") -> 0 | W10: =IFERROR(INDEX(Таблица1[26],_xlfn.AGGREGATE(15,6,(ROW(Таблица1[26])-ROW(Таблица1[[#Headers],[26]]))/(Таблица1[[месяц]:[месяц]]=$J$2)/(Таблица1[[год]:[год]]=$L$2)/(Таблица1[[изд]:[изд]]=$O$1)/(Таблица1[[партия]:[партия]]=$S$1),ROW(V7))),"") -> 3.6 | X10: =IFERROR(INDEX(Таблица1[27],_xlfn.AGGREGATE(15,6,(ROW(Таблица1[27])-ROW(Таблица1[[#Headers],[27]]))/(Таблица1[[месяц]:[месяц]]=$J$2)/(Таблица1[[год]:[год]]=$L$2)/(Таблица1[[изд]:[изд]]=$O$1)/(Таблица1[[партия]:[партия]]=$S$1),ROW(W7))),"") -> 7.2 | Y10: =IFERROR(INDEX(Таблица1[30],_xlfn.AGGREGATE(15,6,(ROW(Таблица1[30])-ROW(Таблица1[[#Headers],[30]]))/(Таблица1[[месяц]:[месяц]]=$J$2)/(Таблица1[[год]:[год]]=$L$2)/(Таблица1[[изд]:[изд]]=$O$1)/(Таблица1[[партия]:[партия]]=$S$1),ROW(X7))),"") -> 0 | Z10: =IFERROR(INDEX(Таблица1[31],_xlfn.AGGREGATE(15,6,(ROW(Таблица1[31])-ROW(Таблица1[[#Headers],[31]]))/(Таблица1[[месяц]:[месяц]]=$J$2)/(Таблица1[[год]:[год]]=$L$2)/(Таблица1[[изд]:[изд]]=$O$1)/(Таблица1[[партия]:[партия]]=$S$1),ROW(Y7))),"") -> 0
B11: =IFERROR(INDEX(Таблица1[коэф],_xlfn.AGGREGATE(15,6,(ROW(Таблица1[коэф])-ROW(Таблица1[[#Headers],[коэф]]))/(Таблица1[[месяц]:[месяц]]=$J$2)/(Таблица1[[год]:[год]]=$L$2)/(Таблица1[[изд]:[изд]]=$O$1)/(Таблица1[[партия]:[партия]]=$S$1),ROW(A8))),"") -> 1 | C11: =IFERROR(INDEX(Таблица1[Ф. И. О.],_xlfn.AGGREGATE(15,6,(ROW(Таблица1[Ф. И. О.])-ROW(Таблица1[[#Headers],[Ф. И. О.]]))/(Таблица1[[месяц]:[месяц]]=$J$2)/(Таблица1[[год]:[год]]=$L$2)/(Таблица1[[изд]:[изд]]=$O$1)/(Таблица1[[партия]:[партия]]=$S$1),ROW(B8))),"") -> работник1 | D11: =IFERROR(INDEX(Таблица1[р/р],_xlfn.AGGREGATE(15,6,(ROW(Таблица1[р/р])-ROW(Таблица1[[#Headers],[р/р]]))/(Таблица1[[месяц]:[месяц]]=$J$2)/(Таблица1[[год]:[год]]=$L$2)/(Таблица1[[изд]:[изд]]=$O$1)/(Таблица1[[партия]:[партия]]=$S$1),ROW(C8))),"") -> 3/16 | E11: =IFERROR(INDEX(Таблица1[2],_xlfn.AGGREGATE(15,6,(ROW(Таблица1[2])-ROW(Таблица1[[#Headers],[2]]))/(Таблица1[[месяц]:[месяц]]=$J$2)/(Таблица1[[год]:[год]]=$L$2)/(Таблица1[[изд]:[изд]]=$O$1)/(Таблица1[[партия]:[партия]]=$S$1),ROW(D8))),"") -> 0 | F11: =IFERROR(INDEX(Таблица1[3],_xlfn.AGGREGATE(15,6,(ROW(Таблица1[3])-ROW(Таблица1[[#Headers],[3]]))/(Таблица1[[месяц]:[месяц]]=$J$2)/(Таблица1[[год]:[год]]=$L$2)/(Таблица1[[изд]:[изд]]=$O$1)/(Таблица1[[партия]:[партия]]=$S$1),ROW(E8))),"") -> 0 | G11: =IFERROR(INDEX(Таблица1[4],_xlfn.AGGREGATE(15,6,(ROW(Таблица1[4])-ROW(Таблица1[[#Headers],[4]]))/(Таблица1[[месяц]:[месяц]]=$J$2)/(Таблица1[[год]:[год]]=$L$2)/(Таблица1[[изд]:[изд]]=$O$1)/(Таблица1[[партия]:[партия]]=$S$1),ROW(F8))),"") -> 0 | H11: =IFERROR(INDEX(Таблица1[5],_xlfn.AGGREGATE(15,6,(ROW(Таблица1[5])-ROW(Таблица1[[#Headers],[5]]))/(Таблица1[[месяц]:[месяц]]=$J$2)/(Таблица1[[год]:[год]]=$L$2)/(Таблица1[[изд]:[изд]]=$O$1)/(Таблица1[[партия]:[партия]]=$S$1),ROW(G8))),"") -> 0 | I11: =IFERROR(INDEX(Таблица1[6],_xlfn.AGGREGATE(15,6,(ROW(Таблица1[6])-ROW(Таблица1[[#Headers],[6]]))/(Таблица1[[месяц]:[месяц]]=$J$2)/(Таблица1[[год]:[год]]=$L$2)/(Таблица1[[изд]:[изд]]=$O$1)/(Таблица1[[партия]:[партия]]=$S$1),ROW(H8))),"") -> 0 | J11: =IFERROR(INDEX(Таблица1[9],_xlfn.AGGREGATE(15,6,(ROW(Таблица1[9])-ROW(Таблица1[[#Headers],[9]]))/(Таблица1[[месяц]:[месяц]]=$J$2)/(Таблица1[[год]:[год]]=$L$2)/(Таблица1[[изд]:[изд]]=$O$1)/(Таблица1[[партия]:[партия]]=$S$1),ROW(I8))),"") -> 0 | K11: =IFERROR(INDEX(Таблица1[10],_xlfn.AGGREGATE(15,6,(ROW(Таблица1[10])-ROW(Таблица1[[#Headers],[10]]))/(Таблица1[[месяц]:[месяц]]=$J$2)/(Таблица1[[год]:[год]]=$L$2)/(Таблица1[[изд]:[изд]]=$O$1)/(Таблица1[[партия]:[партия]]=$S$1),ROW(J8))),"") -> 0 | L11: =IFERROR(INDEX(Таблица1[11],_xlfn.AGGREGATE(15,6,(ROW(Таблица1[11])-ROW(Таблица1[[#Headers],[11]]))/(Таблица1[[месяц]:[месяц]]=$J$2)/(Таблица1[[год]:[год]]=$L$2)/(Таблица1[[изд]:[изд]]=$O$1)/(Таблица1[[партия]:[партия]]=$S$1),ROW(K8))),"") -> 0 | M11: =IFERROR(INDEX(Таблица1[12],_xlfn.AGGREGATE(15,6,(ROW(Таблица1[12])-ROW(Таблица1[[#Headers],[12]]))/(Таблица1[[месяц]:[месяц]]=$J$2)/(Таблица1[[год]:[год]]=$L$2)/(Таблица1[[изд]:[изд]]=$O$1)/(Таблица1[[партия]:[партия]]=$S$1),ROW(L8))),"") -> 0 | N11: =IFERROR(INDEX(Таблица1[13],_xlfn.AGGREGATE(15,6,(ROW(Таблица1[13])-ROW(Таблица1[[#Headers],[13]]))/(Таблица1[[месяц]:[месяц]]=$J$2)/(Таблица1[[год]:[год]]=$L$2)/(Таблица1[[изд]:[изд]]=$O$1)/(Таблица1[[партия]:[партия]]=$S$1),ROW(M8))),"") -> 0 | O11: =IFERROR(INDEX(Таблица1[16],_xlfn.AGGREGATE(15,6,(ROW(Таблица1[16])-ROW(Таблица1[[#Headers],[16]]))/(Таблица1[[месяц]:[месяц]]=$J$2)/(Таблица1[[год]:[год]]=$L$2)/(Таблица1[[изд]:[изд]]=$O$1)/(Таблица1[[партия]:[партия]]=$S$1),ROW(N8))),"") -> 0 | P11: =IFERROR(INDEX(Таблица1[17],_xlfn.AGGREGATE(15,6,(ROW(Таблица1[17])-ROW(Таблица1[[#Headers],[17]]))/(Таблица1[[месяц]:[месяц]]=$J$2)/(Таблица1[[год]:[год]]=$L$2)/(Таблица1[[изд]:[изд]]=$O$1)/(Таблица1[[партия]:[партия]]=$S$1),ROW(O8))),"") -> 4.7 | Q11: =IFERROR(INDEX(Таблица1[18],_xlfn.AGGREGATE(15,6,(ROW(Таблица1[18])-ROW(Таблица1[[#Headers],[18]]))/(Таблица1[[месяц]:[месяц]]=$J$2)/(Таблица1[[год]:[год]]=$L$2)/(Таблица1[[изд]:[изд]]=$O$1)/(Таблица1[[партия]:[партия]]=$S$1),ROW(P8))),"") -> 6.7 | R11: =IFERROR(INDEX(Таблица1[19],_xlfn.AGGREGATE(15,6,(ROW(Таблица1[19])-ROW(Таблица1[[#Headers],[19]]))/(Таблица1[[месяц]:[месяц]]=$J$2)/(Таблица1[[год]:[год]]=$L$2)/(Таблица1[[изд]:[изд]]=$O$1)/(Таблица1[[партия]:[партия]]=$S$1),ROW(Q8))),"") -> 2 | S11: =IFERROR(INDEX(Таблица1[20],_xlfn.AGGREGATE(15,6,(ROW(Таблица1[20])-ROW(Таблица1[[#Headers],[20]]))/(Таблица1[[месяц]:[месяц]]=$J$2)/(Таблица1[[год]:[год]]=$L$2)/(Таблица1[[изд]:[изд]]=$O$1)/(Таблица1[[партия]:[партия]]=$S$1),ROW(R8))),"") -> 0 | T11: =IFERROR(INDEX(Таблица1[23],_xlfn.AGGREGATE(15,6,(ROW(Таблица1[23])-ROW(Таблица1[[#Headers],[23]]))/(Таблица1[[месяц]:[месяц]]=$J$2)/(Таблица1[[год]:[год]]=$L$2)/(Таблица1[[изд]:[изд]]=$O$1)/(Таблица1[[партия]:[партия]]=$S$1),ROW(S8))),"") -> 0 | U11: =IFERROR(INDEX(Таблица1[24],_xlfn.AGGREGATE(15,6,(ROW(Таблица1[24])-ROW(Таблица1[[#Headers],[24]]))/(Таблица1[[месяц]:[месяц]]=$J$2)/(Таблица1[[год]:[год]]=$L$2)/(Таблица1[[изд]:[изд]]=$O$1)/(Таблица1[[партия]:[партия]]=$S$1),ROW(T8))),"") -> 3 | V11: =IFERROR(INDEX(Таблица1[25],_xlfn.AGGREGATE(15,6,(ROW(Таблица1[25])-ROW(Таблица1[[#Headers],[25]]))/(Таблица1[[месяц]:[месяц]]=$J$2)/(Таблица1[[год]:[год]]=$L$2)/(Таблица1[[изд]:[изд]]=$O$1)/(Таблица1[[партия]:[партия]]=$S$1),ROW(U8))),"") -> 0 | W11: =IFERROR(INDEX(Таблица1[26],_xlfn.AGGREGATE(15,6,(ROW(Таблица1[26])-ROW(Таблица1[[#Headers],[26]]))/(Таблица1[[месяц]:[месяц]]=$J$2)/(Таблица1[[год]:[год]]=$L$2)/(Таблица1[[изд]:[изд]]=$O$1)/(Таблица1[[партия]:[партия]]=$S$1),ROW(V8))),"") -> 0 | X11: =IFERROR(INDEX(Таблица1[27],_xlfn.AGGREGATE(15,6,(ROW(Таблица1[27])-ROW(Таблица1[[#Headers],[27]]))/(Таблица1[[месяц]:[месяц]]=$J$2)/(Таблица1[[год]:[год]]=$L$2)/(Таблица1[[изд]:[изд]]=$O$1)/(Таблица1[[партия]:[партия]]=$S$1),ROW(W8))),"") -> 5.7 | Y11: =IFERROR(INDEX(Таблица1[30],_xlfn.AGGREGATE(15,6,(ROW(Таблица1[30])-ROW(Таблица1[[#Headers],[30]]))/(Таблица1[[месяц]:[месяц]]=$J$2)/(Таблица1[[год]:[год]]=$L$2)/(Таблица1[[изд]:[изд]]=$O$1)/(Таблица1[[партия]:[партия]]=$S$1),ROW(X8))),"") -> 6.7 | Z11: =IFERROR(INDEX(Таблица1[31],_xlfn.AGGREGATE(15,6,(ROW(Таблица1[31])-ROW(Таблица1[[#Headers],[31]]))/(Таблица1[[месяц]:[месяц]]=$J$2)/(Таблица1[[год]:[год]]=$L$2)/(Таблица1[[изд]:[изд]]=$O$1)/(Таблица1[[партия]:[партия]]=$S$1),ROW(Y8))),"") -> 6.7
B12: =IFERROR(INDEX(Таблица1[коэф],_xlfn.AGGREGATE(15,6,(ROW(Таблица1[коэф])-ROW(Таблица1[[#Headers],[коэф]]))/(Таблица1[[месяц]:[месяц]]=$J$2)/(Таблица1[[год]:[год]]=$L$2)/(Таблица1[[изд]:[изд]]=$O$1)/(Таблица1[[партия]:[партия]]=$S$1),ROW(A9))),"") -> 1 | C12: =IFERROR(INDEX(Таблица1[Ф. И. О.],_xlfn.AGGREGATE(15,6,(ROW(Таблица1[Ф. И. О.])-ROW(Таблица1[[#Headers],[Ф. И. О.]]))/(Таблица1[[месяц]:[месяц]]=$J$2)/(Таблица1[[год]:[год]]=$L$2)/(Таблица1[[изд]:[изд]]=$O$1)/(Таблица1[[партия]:[партия]]=$S$1),ROW(B9))),"") -> работник10 | D12: =IFERROR(INDEX(Таблица1[р/р],_xlfn.AGGREGATE(15,6,(ROW(Таблица1[р/р])-ROW(Таблица1[[#Headers],[р/р]]))/(Таблица1[[месяц]:[месяц]]=$J$2)/(Таблица1[[год]:[год]]=$L$2)/(Таблица1[[изд]:[изд]]=$O$1)/(Таблица1[[партия]:[партия]]=$S$1),ROW(C9))),"") -> 3/16 | E12: =IFERROR(INDEX(Таблица1[2],_xlfn.AGGREGATE(15,6,(ROW(Таблица1[2])-ROW(Таблица1[[#Headers],[2]]))/(Таблица1[[месяц]:[месяц]]=$J$2)/(Таблица1[[год]:[год]]=$L$2)/(Таблица1[[изд]:[изд]]=$O$1)/(Таблица1[[партия]:[партия]]=$S$1),ROW(D9))),"") -> 7.2 | F12: =IFERROR(INDEX(Таблица1[3],_xlfn.AGGREGATE(15,6,(ROW(Таблица1[3])-ROW(Таблица1[[#Headers],[3]]))/(Таблица1[[месяц]:[месяц]]=$J$2)/(Таблица1[[год]:[год]]=$L$2)/(Таблица1[[изд]:[изд]]=$O$1)/(Таблица1[[партия]:[партия]]=$S$1),ROW(E9))),"") -> 7.2 | G12: =IFERROR(INDEX(Таблица1[4],_xlfn.AGGREGATE(15,6,(ROW(Таблица1[4])-ROW(Таблица1[[#Headers],[4]]))/(Таблица1[[месяц]:[месяц]]=$J$2)/(Таблица1[[год]:[год]]=$L$2)/(Таблица1[[изд]:[изд]]=$O$1)/(Таблица1[[партия]:[партия]]=$S$1),ROW(F9))),"") -> 7.2 | H12: =IFERROR(INDEX(Таблица1[5],_xlfn.AGGREGATE(15,6,(ROW(Таблица1[5])-ROW(Таблица1[[#Headers],[5]]))/(Таблица1[[месяц]:[месяц]]=$J$2)/(Таблица1[[год]:[год]]=$L$2)/(Таблица1[[изд]:[изд]]=$O$1)/(Таблица1[[партия]:[партия]]=$S$1),ROW(G9))),"") -> 0 | I12: =IFERROR(INDEX(Таблица1[6],_xlfn.AGGREGATE(15,6,(ROW(Таблица1[6])-ROW(Таблица1[[#Headers],[6]]))/(Таблица1[[месяц]:[месяц]]=$J$2)/(Таблица1[[год]:[год]]=$L$2)/(Таблица1[[изд]:[изд]]=$O$1)/(Таблица1[[партия]:[партия]]=$S$1),ROW(H9))),"") -> 0 | J12: =IFERROR(INDEX(Таблица1[9],_xlfn.AGGREGATE(15,6,(ROW(Таблица1[9])-ROW(Таблица1[[#Headers],[9]]))/(Таблица1[[месяц]:[месяц]]=$J$2)/(Таблица1[[год]:[год]]=$L$2)/(Таблица1[[изд]:[изд]]=$O$1)/(Таблица1[[партия]:[партия]]=$S$1),ROW(I9))),"") -> 0 | K12: =IFERROR(INDEX(Таблица1[10],_xlfn.AGGREGATE(15,6,(ROW(Таблица1[10])-ROW(Таблица1[[#Headers],[10]]))/(Таблица1[[месяц]:[месяц]]=$J$2)/(Таблица1[[год]:[год]]=$L$2)/(Таблица1[[изд]:[изд]]=$O$1)/(Таблица1[[партия]:[партия]]=$S$1),ROW(J9))),"") -> 0 | L12: =IFERROR(INDEX(Таблица1[11],_xlfn.AGGREGATE(15,6,(ROW(Таблица1[11])-ROW(Таблица1[[#Headers],[11]]))/(Таблица1[[месяц]:[месяц]]=$J$2)/(Таблица1[[год]:[год]]=$L$2)/(Таблица1[[изд]:[изд]]=$O$1)/(Таблица1[[партия]:[партия]]=$S$1),ROW(K9))),"") -> 0 | M12: =IFERROR(INDEX(Таблица1[12],_xlfn.AGGREGATE(15,6,(ROW(Таблица1[12])-ROW(Таблица1[[#Headers],[12]]))/(Таблица1[[месяц]:[месяц]]=$J$2)/(Таблица1[[год]:[год]]=$L$2)/(Таблица1[[изд]:[изд]]=$O$1)/(Таблица1[[партия]:[партия]]=$S$1),ROW(L9))),"") -> 0 | N12: =IFERROR(INDEX(Таблица1[13],_xlfn.AGGREGATE(15,6,(ROW(Таблица1[13])-ROW(Таблица1[[#Headers],[13]]))/(Таблица1[[месяц]:[месяц]]=$J$2)/(Таблица1[[год]:[год]]=$L$2)/(Таблица1[[изд]:[изд]]=$O$1)/(Таблица1[[партия]:[партия]]=$S$1),ROW(M9))),"") -> 0 | O12: =IFERROR(INDEX(Таблица1[16],_xlfn.AGGREGATE(15,6,(ROW(Таблица1[16])-ROW(Таблица1[[#Headers],[16]]))/(Таблица1[[месяц]:[месяц]]=$J$2)/(Таблица1[[год]:[год]]=$L$2)/(Таблица1[[изд]:[изд]]=$O$1)/(Таблица1[[партия]:[партия]]=$S$1),ROW(N9))),"") -> 0 | P12: =IFERROR(INDEX(Таблица1[17],_xlfn.AGGREGATE(15,6,(ROW(Таблица1[17])-ROW(Таблица1[[#Headers],[17]]))/(Таблица1[[месяц]:[месяц]]=$J$2)/(Таблица1[[год]:[год]]=$L$2)/(Таблица1[[изд]:[изд]]=$O$1)/(Таблица1[[партия]:[партия]]=$S$1),ROW(O9))),"") -> 7.2 | Q12: =IFERROR(INDEX(Таблица1[18],_xlfn.AGGREGATE(15,6,(ROW(Таблица1[18])-ROW(Таблица1[[#Headers],[18]]))/(Таблица1[[месяц]:[месяц]]=$J$2)/(Таблица1[[год]:[год]]=$L$2)/(Таблица1[[изд]:[изд]]=$O$1)/(Таблица1[[партия]:[партия]]=$S$1),ROW(P9))),"") -> 7.2 | R12: =IFERROR(INDEX(Таблица1[19],_xlfn.AGGREGATE(15,6,(ROW(Таблица1[19])-ROW(Таблица1[[#Headers],[19]]))/(Таблица1[[месяц]:[месяц]]=$J$2)/(Таблица1[[год]:[год]]=$L$2)/(Таблица1[[изд]:[изд]]=$O$1)/(Таблица1[[партия]:[партия]]=$S$1),ROW(Q9))),"") -> 0 | S12: =IFERROR(INDEX(Таблица1[20],_xlfn.AGGREGATE(15,6,(ROW(Таблица1[20])-ROW(Таблица1[[#Headers],[20]]))/(Таблица1[[месяц]:[месяц]]=$J$2)/(Таблица1[[год]:[год]]=$L$2)/(Таблица1[[изд]:[изд]]=$O$1)/(Таблица1[[партия]:[партия]]=$S$1),ROW(R9))),"") -> 0 | T12: =IFERROR(INDEX(Таблица1[23],_xlfn.AGGREGATE(15,6,(ROW(Таблица1[23])-ROW(Таблица1[[#Headers],[23]]))/(Таблица1[[месяц]:[месяц]]=$J$2)/(Таблица1[[год]:[год]]=$L$2)/(Таблица1[[изд]:[изд]]=$O$1)/(Таблица1[[партия]:[партия]]=$S$1),ROW(S9))),"") -> 0 | U12: =IFERROR(INDEX(Таблица1[24],_xlfn.AGGREGATE(15,6,(ROW(Таблица1[24])-ROW(Таблица1[[#Headers],[24]]))/(Таблица1[[месяц]:[месяц]]=$J$2)/(Таблица1[[год]:[год]]=$L$2)/(Таблица1[[изд]:[изд]]=$O$1)/(Таблица1[[партия]:[партия]]=$S$1),ROW(T9))),"") -> 0 | V12: =IFERROR(INDEX(Таблица1[25],_xlfn.AGGREGATE(15,6,(ROW(Таблица1[25])-ROW(Таблица1[[#Headers],[25]]))/(Таблица1[[месяц]:[месяц]]=$J$2)/(Таблица1[[год]:[год]]=$L$2)/(Таблица1[[изд]:[изд]]=$O$1)/(Таблица1[[партия]:[партия]]=$S$1),ROW(U9))),"") -> 0 | W12: =IFERROR(INDEX(Таблица1[26],_xlfn.AGGREGATE(15,6,(ROW(Таблица1[26])-ROW(Таблица1[[#Headers],[26]]))/(Таблица1[[месяц]:[месяц]]=$J$2)/(Таблица1[[год]:[год]]=$L$2)/(Таблица1[[изд]:[изд]]=$O$1)/(Таблица1[[партия]:[партия]]=$S$1),ROW(V9))),"") -> 0 | X12: =IFERROR(INDEX(Таблица1[27],_xlfn.AGGREGATE(15,6,(ROW(Таблица1[27])-ROW(Таблица1[[#Headers],[27]]))/(Таблица1[[месяц]:[месяц]]=$J$2)/(Таблица1[[год]:[год]]=$L$2)/(Таблица1[[изд]:[изд]]=$O$1)/(Таблица1[[партия]:[партия]]=$S$1),ROW(W9))),"") -> 0 | Y12: =IFERROR(INDEX(Таблица1[30],_xlfn.AGGREGATE(15,6,(ROW(Таблица1[30])-ROW(Таблица1[[#Headers],[30]]))/(Таблица1[[месяц]:[месяц]]=$J$2)/(Таблица1[[год]:[год]]=$L$2)/(Таблица1[[изд]:[изд]]=$O$1)/(Таблица1[[партия]:[партия]]=$S$1),ROW(X9))),"") -> 0 | Z12: =IFERROR(INDEX(Таблица1[31],_xlfn.AGGREGATE(15,6,(ROW(Таблица1[31])-ROW(Таблица1[[#Headers],[31]]))/(Таблица1[[месяц]:[месяц]]=$J$2)/(Таблица1[[год]:[год]]=$L$2)/(Таблица1[[изд]:[изд]]=$O$1)/(Таблица1[[партия]:[партия]]=$S$1),ROW(Y9))),"") -> 0
B13: =IFERROR(INDEX(Таблица1[коэф],_xlfn.AGGREGATE(15,6,(ROW(Таблица1[коэф])-ROW(Таблица1[[#Headers],[коэф]]))/(Таблица1[[месяц]:[месяц]]=$J$2)/(Таблица1[[год]:[год]]=$L$2)/(Таблица1[[изд]:[изд]]=$O$1)/(Таблица1[[партия]:[партия]]=$S$1),ROW(A10))),"") -> 1 | C13: =IFERROR(INDEX(Таблица1[Ф. И. О.],_xlfn.AGGREGATE(15,6,(ROW(Таблица1[Ф. И. О.])-ROW(Таблица1[[#Headers],[Ф. И. О.]]))/(Таблица1[[месяц]:[месяц]]=$J$2)/(Таблица1[[год]:[год]]=$L$2)/(Таблица1[[изд]:[изд]]=$O$1)/(Таблица1[[партия]:[партия]]=$S$1),ROW(B10))),"") -> работник11 | D13: =IFERROR(INDEX(Таблица1[р/р],_xlfn.AGGREGATE(15,6,(ROW(Таблица1[р/р])-ROW(Таблица1[[#Headers],[р/р]]))/(Таблица1[[месяц]:[месяц]]=$J$2)/(Таблица1[[год]:[год]]=$L$2)/(Таблица1[[изд]:[изд]]=$O$1)/(Таблица1[[партия]:[партия]]=$S$1),ROW(C10))),"") -> 3/16 | E13: =IFERROR(INDEX(Таблица1[2],_xlfn.AGGREGATE(15,6,(ROW(Таблица1[2])-ROW(Таблица1[[#Headers],[2]]))/(Таблица1[[месяц]:[месяц]]=$J$2)/(Таблица1[[год]:[год]]=$L$2)/(Таблица1[[изд]:[изд]]=$O$1)/(Таблица1[[партия]:[партия]]=$S$1),ROW(D10))),"") -> 0 | F13: =IFERROR(INDEX(Таблица1[3],_xlfn.AGGREGATE(15,6,(ROW(Таблица1[3])-ROW(Таблица1[[#Headers],[3]]))/(Таблица1[[месяц]:[месяц]]=$J$2)/(Таблица1[[год]:[год]]=$L$2)/(Таблица1[[изд]:[изд]]=$O$1)/(Таблица1[[партия]:[партия]]=$S$1),ROW(E10))),"") -> 7.2 | G13: =IFERROR(INDEX(Таблица1[4],_xlfn.AGGREGATE(15,6,(ROW(Таблица1[4])-ROW(Таблица1[[#Headers],[4]]))/(Таблица1[[месяц]:[месяц]]=$J$2)/(Таблица1[[год]:[год]]=$L$2)/(Таблица1[[изд]:[изд]]=$O$1)/(Таблица1[[партия]:[партия]]=$S$1),ROW(F10))),"") -> 0 | H13: =IFERROR(INDEX(Таблица1[5],_xlfn.AGGREGATE(15,6,(ROW(Таблица1[5])-ROW(Таблица1[[#Headers],[5]]))/(Таблица1[[месяц]:[месяц]]=$J$2)/(Таблица1[[год]:[год]]=$L$2)/(Таблица1[[изд]:[изд]]=$O$1)/(Таблица1[[партия]:[партия]]=$S$1),ROW(G10))),"") -> 7.2 | I13: =IFERROR(INDEX(Таблица1[6],_xlfn.AGGREGATE(15,6,(ROW(Таблица1[6])-ROW(Таблица1[[#Headers],[6]]))/(Таблица1[[месяц]:[месяц]]=$J$2)/(Таблица1[[год]:[год]]=$L$2)/(Таблица1[[изд]:[изд]]=$O$1)/(Таблица1[[партия]:[партия]]=$S$1),ROW(H10))),"") -> 7.2 | J13: =IFERROR(INDEX(Таблица1[9],_xlfn.AGGREGATE(15,6,(ROW(Таблица1[9])-ROW(Таблица1[[#Headers],[9]]))/(Таблица1[[месяц]:[месяц]]=$J$2)/(Таблица1[[год]:[год]]=$L$2)/(Таблица1[[изд]:[изд]]=$O$1)/(Таблица1[[партия]:[партия]]=$S$1),ROW(I10))),"") -> 0 | K13: =IFERROR(INDEX(Таблица1[10],_xlfn.AGGREGATE(15,6,(ROW(Таблица1[10])-ROW(Таблица1[[#Headers],[10]]))/(Таблица1[[месяц]:[месяц]]=$J$2)/(Таблица1[[год]:[год]]=$L$2)/(Таблица1[[изд]:[изд]]=$O$1)/(Таблица1[[партия]:[партия]]=$S$1),ROW(J10))),"") -> 0 | L13: =IFERROR(INDEX(Таблица1[11],_xlfn.AGGREGATE(15,6,(ROW(Таблица1[11])-ROW(Таблица1[[#Headers],[11]]))/(Таблица1[[месяц]:[месяц]]=$J$2)/(Таблица1[[год]:[год]]=$L$2)/(Таблица1[[изд]:[изд]]=$O$1)/(Таблица1[[партия]:[партия]]=$S$1),ROW(K10))),"") -> 0 | M13: =IFERROR(INDEX(Таблица1[12],_xlfn.AGGREGATE(15,6,(ROW(Таблица1[12])-ROW(Таблица1[[#Headers],[12]]))/(Таблица1[[месяц]:[месяц]]=$J$2)/(Таблица1[[год]:[год]]=$L$2)/(Таблица1[[изд]:[изд]]=$O$1)/(Таблица1[[партия]:[партия]]=$S$1),ROW(L10))),"") -> 0 | N13: =IFERROR(INDEX(Таблица1[13],_xlfn.AGGREGATE(15,6,(ROW(Таблица1[13])-ROW(Таблица1[[#Headers],[13]]))/(Таблица1[[месяц]:[месяц]]=$J$2)/(Таблица1[[год]:[год]]=$L$2)/(Таблица1[[изд]:[изд]]=$O$1)/(Таблица1[[партия]:[партия]]=$S$1),ROW(M10))),"") -> 0 | O13: =IFERROR(INDEX(Таблица1[16],_xlfn.AGGREGATE(15,6,(ROW(Таблица1[16])-ROW(Таблица1[[#Headers],[16]]))/(Таблица1[[месяц]:[месяц]]=$J$2)/(Таблица1[[год]:[год]]=$L$2)/(Таблица1[[изд]:[изд]]=$O$1)/(Таблица1[[партия]:[партия]]=$S$1),ROW(N10))),"") -> 7.2 | P13: =IFERROR(INDEX(Таблица1[17],_xlfn.AGGREGATE(15,6,(ROW(Таблица1[17])-ROW(Таблица1[[#Headers],[17]]))/(Таблица1[[месяц]:[месяц]]=$J$2)/(Таблица1[[год]:[год]]=$L$2)/(Таблица1[[изд]:[изд]]=$O$1)/(Таблица1[[партия]:[партия]]=$S$1),ROW(O10))),"") -> 7.2 | Q13: =IFERROR(INDEX(Таблица1[18],_xlfn.AGGREGATE(15,6,(ROW(Таблица1[18])-ROW(Таблица1[[#Headers],[18]]))/(Таблица1[[месяц]:[месяц]]=$J$2)/(Таблица1[[год]:[год]]=$L$2)/(Таблица1[[изд]:[изд]]=$O$1)/(Таблица1[[партия]:[партия]]=$S$1),ROW(P10))),"") -> 0 | R13: =IFERROR(INDEX(Таблица1[19],_xlfn.AGGREGATE(15,6,(ROW(Таблица1[19])-ROW(Таблица1[[#Headers],[19]]))/(Таблица1[[месяц]:[месяц]]=$J$2)/(Таблица1[[год]:[год]]=$L$2)/(Таблица1[[изд]:[изд]]=$O$1)/(Таблица1[[партия]:[партия]]=$S$1),ROW(Q10))),"") -> 0 | S13: =IFERROR(INDEX(Таблица1[20],_xlfn.AGGREGATE(15,6,(ROW(Таблица1[20])-ROW(Таблица1[[#Headers],[20]]))/(Таблица1[[месяц]:[месяц]]=$J$2)/(Таблица1[[год]:[год]]=$L$2)/(Таблица1[[изд]:[изд]]=$O$1)/(Таблица1[[партия]:[партия]]=$S$1),ROW(R10))),"") -> 0 | T13: =IFERROR(INDEX(Таблица1[23],_xlfn.AGGREGATE(15,6,(ROW(Таблица1[23])-ROW(Таблица1[[#Headers],[23]]))/(Таблица1[[месяц]:[месяц]]=$J$2)/(Таблица1[[год]:[год]]=$L$2)/(Таблица1[[изд]:[изд]]=$O$1)/(Таблица1[[партия]:[партия]]=$S$1),ROW(S10))),"") -> 0 | U13: =IFERROR(INDEX(Таблица1[24],_xlfn.AGGREGATE(15,6,(ROW(Таблица1[24])-ROW(Таблица1[[#Headers],[24]]))/(Таблица1[[месяц]:[месяц]]=$J$2)/(Таблица1[[год]:[год]]=$L$2)/(Таблица1[[изд]:[изд]]=$O$1)/(Таблица1[[партия]:[партия]]=$S$1),ROW(T10))),"") -> 7.2 | V13: =IFERROR(INDEX(Таблица1[25],_xlfn.AGGREGATE(15,6,(ROW(Таблица1[25])-ROW(Таблица1[[#Headers],[25]]))/(Таблица1[[месяц]:[месяц]]=$J$2)/(Таблица1[[год]:[год]]=$L$2)/(Таблица1[[изд]:[изд]]=$O$1)/(Таблица1[[партия]:[партия]]=$S$1),ROW(U10))),"") -> 7.2 | W13: =IFERROR(INDEX(Таблица1[26],_xlfn.AGGREGATE(15,6,(ROW(Таблица1[26])-ROW(Таблица1[[#Headers],[26]]))/(Таблица1[[месяц]:[месяц]]=$J$2)/(Таблица1[[год]:[год]]=$L$2)/(Таблица1[[изд]:[изд]]=$O$1)/(Таблица1[[партия]:[партия]]=$S$1),ROW(V10))),"") -> 0 | X13: =IFERROR(INDEX(Таблица1[27],_xlfn.AGGREGATE(15,6,(ROW(Таблица1[27])-ROW(Таблица1[[#Headers],[27]]))/(Таблица1[[месяц]:[месяц]]=$J$2)/(Таблица1[[год]:[год]]=$L$2)/(Таблица1[[изд]:[изд]]=$O$1)/(Таблица1[[партия]:[партия]]=$S$1),ROW(W10))),"") -> 0 | Y13: =IFERROR(INDEX(Таблица1[30],_xlfn.AGGREGATE(15,6,(ROW(Таблица1[30])-ROW(Таблица1[[#Headers],[30]]))/(Таблица1[[месяц]:[месяц]]=$J$2)/(Таблица1[[год]:[год]]=$L$2)/(Таблица1[[изд]:[изд]]=$O$1)/(Таблица1[[партия]:[партия]]=$S$1),ROW(X10))),"") -> 0 | Z13: =IFERROR(INDEX(Таблица1[31],_xlfn.AGGREGATE(15,6,(ROW(Таблица1[31])-ROW(Таблица1[[#Headers],[31]]))/(Таблица1[[месяц]:[месяц]]=$J$2)/(Таблица1[[год]:[год]]=$L$2)/(Таблица1[[изд]:[изд]]=$O$1)/(Таблица1[[партия]:[партия]]=$S$1),ROW(Y10))),"") -> 0
B14: =IFERROR(INDEX(Таблица1[коэф],_xlfn.AGGREGATE(15,6,(ROW(Таблица1[коэф])-ROW(Таблица1[[#Headers],[коэф]]))/(Таблица1[[месяц]:[месяц]]=$J$2)/(Таблица1[[год]:[год]]=$L$2)/(Таблица1[[изд]:[изд]]=$O$1)/(Таблица1[[партия]:[партия]]=$S$1),ROW(A11))),"") -> 1 | C14: =IFERROR(INDEX(Таблица1[Ф. И. О.],_xlfn.AGGREGATE(15,6,(ROW(Таблица1[Ф. И. О.])-ROW(Таблица1[[#Headers],[Ф. И. О.]]))/(Таблица1[[месяц]:[месяц]]=$J$2)/(Таблица1[[год]:[год]]=$L$2)/(Таблица1[[изд]:[изд]]=$O$1)/(Таблица1[[партия]:[партия]]=$S$1),ROW(B11))),"") -> работник9 | D14: =IFERROR(INDEX(Таблица1[р/р],_xlfn.AGGREGATE(15,6,(ROW(Таблица1[р/р])-ROW(Таблица1[[#Headers],[р/р]]))/(Таблица1[[месяц]:[месяц]]=$J$2)/(Таблица1[[год]:[год]]=$L$2)/(Таблица1[[изд]:[изд]]=$O$1)/(Таблица1[[партия]:[партия]]=$S$1),ROW(C11))),"") -> 3/16 | E14: =IFERROR(INDEX(Таблица1[2],_xlfn.AGGREGATE(15,6,(ROW(Таблица1[2])-ROW(Таблица1[[#Headers],[2]]))/(Таблица1[[месяц]:[месяц]]=$J$2)/(Таблица1[[год]:[год]]=$L$2)/(Таблица1[[изд]:[изд]]=$O$1)/(Таблица1[[партия]:[партия]]=$S$1),ROW(D11))),"") -> 0 | F14: =IFERROR(INDEX(Таблица1[3],_xlfn.AGGREGATE(15,6,(ROW(Таблица1[3])-ROW(Таблица1[[#Headers],[3]]))/(Таблица1[[месяц]:[месяц]]=$J$2)/(Таблица1[[год]:[год]]=$L$2)/(Таблица1[[изд]:[изд]]=$O$1)/(Таблица1[[партия]:[партия]]=$S$1),ROW(E11))),"") -> 0 | G14: =IFERROR(INDEX(Таблица1[4],_xlfn.AGGREGATE(15,6,(ROW(Таблица1[4])-ROW(Таблица1[[#Headers],[4]]))/(Таблица1[[месяц]:[месяц]]=$J$2)/(Таблица1[[год]:[год]]=$L$2)/(Таблица1[[изд]:[изд]]=$O$1)/(Таблица1[[партия]:[партия]]=$S$1),ROW(F11))),"") -> 0 | H14: =IFERROR(INDEX(Таблица1[5],_xlfn.AGGREGATE(15,6,(ROW(Таблица1[5])-ROW(Таблица1[[#Headers],[5]]))/(Таблица1[[месяц]:[месяц]]=$J$2)/(Таблица1[[год]:[год]]=$L$2)/(Таблица1[[изд]:[изд]]=$O$1)/(Таблица1[[партия]:[партия]]=$S$1),ROW(G11))),"") -> 0 | I14: =IFERROR(INDEX(Таблица1[6],_xlfn.AGGREGATE(15,6,(ROW(Таблица1[6])-ROW(Таблица1[[#Headers],[6]]))/(Таблица1[[месяц]:[месяц]]=$J$2)/(Таблица1[[год]:[год]]=$L$2)/(Таблица1[[изд]:[изд]]=$O$1)/(Таблица1[[партия]:[партия]]=$S$1),ROW(H11))),"") -> 0 | J14: =IFERROR(INDEX(Таблица1[9],_xlfn.AGGREGATE(15,6,(ROW(Таблица1[9])-ROW(Таблица1[[#Headers],[9]]))/(Таблица1[[месяц]:[месяц]]=$J$2)/(Таблица1[[год]:[год]]=$L$2)/(Таблица1[[изд]:[изд]]=$O$1)/(Таблица1[[партия]:[партия]]=$S$1),ROW(I11))),"") -> 0 | K14: =IFERROR(INDEX(Таблица1[10],_xlfn.AGGREGATE(15,6,(ROW(Таблица1[10])-ROW(Таблица1[[#Headers],[10]]))/(Таблица1[[месяц]:[месяц]]=$J$2)/(Таблица1[[год]:[год]]=$L$2)/(Таблица1[[изд]:[изд]]=$O$1)/(Таблица1[[партия]:[партия]]=$S$1),ROW(J11))),"") -> 0 | L14: =IFERROR(INDEX(Таблица1[11],_xlfn.AGGREGATE(15,6,(ROW(Таблица1[11])-ROW(Таблица1[[#Headers],[11]]))/(Таблица1[[месяц]:[месяц]]=$J$2)/(Таблица1[[год]:[год]]=$L$2)/(Таблица1[[изд]:[изд]]=$O$1)/(Таблица1[[партия]:[партия]]=$S$1),ROW(K11))),"") -> 7.2 | M14: =IFERROR(INDEX(Таблица1[12],_xlfn.AGGREGATE(15,6,(ROW(Таблица1[12])-ROW(Таблица1[[#Headers],[12]]))/(Таблица1[[месяц]:[месяц]]=$J$2)/(Таблица1[[год]:[год]]=$L$2)/(Таблица1[[изд]:[изд]]=$O$1)/(Таблица1[[партия]:[партия]]=$S$1),ROW(L11))),"") -> 7.2 | N14: =IFERROR(INDEX(Таблица1[13],_xlfn.AGGREGATE(15,6,(ROW(Таблица1[13])-ROW(Таблица1[[#Headers],[13]]))/(Таблица1[[месяц]:[месяц]]=$J$2)/(Таблица1[[год]:[год]]=$L$2)/(Таблица1[[изд]:[изд]]=$O$1)/(Таблица1[[партия]:[партия]]=$S$1),ROW(M11))),"") -> 7.2 | O14: =IFERROR(INDEX(Таблица1[16],_xlfn.AGGREGATE(15,6,(ROW(Таблица1[16])-ROW(Таблица1[[#Headers],[16]]))/(Таблица1[[месяц]:[месяц]]=$J$2)/(Таблица1[[год]:[год]]=$L$2)/(Таблица1[[изд]:[изд]]=$O$1)/(Таблица1[[партия]:[партия]]=$S$1),ROW(N11))),"") -> 7.2 | P14: =IFERROR(INDEX(Таблица1[17],_xlfn.AGGREGATE(15,6,(ROW(Таблица1[17])-ROW(Таблица1[[#Headers],[17]]))/(Таблица1[[месяц]:[месяц]]=$J$2)/(Таблица1[[год]:[год]]=$L$2)/(Таблица1[[изд]:[изд]]=$O$1)/(Таблица1[[партия]:[партия]]=$S$1),ROW(O11))),"") -> 7.2 | Q14: =IFERROR(INDEX(Таблица1[18],_xlfn.AGGREGATE(15,6,(ROW(Таблица1[18])-ROW(Таблица1[[#Headers],[18]]))/(Таблица1[[месяц]:[месяц]]=$J$2)/(Таблица1[[год]:[год]]=$L$2)/(Таблица1[[изд]:[изд]]=$O$1)/(Таблица1[[партия]:[партия]]=$S$1),ROW(P11))),"") -> 7.2 | R14: =IFERROR(INDEX(Таблица1[19],_xlfn.AGGREGATE(15,6,(ROW(Таблица1[19])-ROW(Таблица1[[#Headers],[19]]))/(Таблица1[[месяц]:[месяц]]=$J$2)/(Таблица1[[год]:[год]]=$L$2)/(Таблица1[[изд]:[изд]]=$O$1)/(Таблица1[[партия]:[партия]]=$S$1),ROW(Q11))),"") -> 7.2 | S14: =IFERROR(INDEX(Таблица1[20],_xlfn.AGGREGATE(15,6,(ROW(Таблица1[20])-ROW(Таблица1[[#Headers],[20]]))/(Таблица1[[месяц]:[месяц]]=$J$2)/(Таблица1[[год]:[год]]=$L$2)/(Таблица1[[изд]:[изд]]=$O$1)/(Таблица1[[партия]:[партия]]=$S$1),ROW(R11))),"") -> 7.2 | T14: =IFERROR(INDEX(Таблица1[23],_xlfn.AGGREGATE(15,6,(ROW(Таблица1[23])-ROW(Таблица1[[#Headers],[23]]))/(Таблица1[[месяц]:[месяц]]=$J$2)/(Таблица1[[год]:[год]]=$L$2)/(Таблица1[[изд]:[изд]]=$O$1)/(Таблица1[[партия]:[партия]]=$S$1),ROW(S11))),"") -> 0 | U14: =IFERROR(INDEX(Таблица1[24],_xlfn.AGGREGATE(15,6,(ROW(Таблица1[24])-ROW(Таблица1[[#Headers],[24]]))/(Таблица1[[месяц]:[месяц]]=$J$2)/(Таблица1[[год]:[год]]=$L$2)/(Таблица1[[изд]:[изд]]=$O$1)/(Таблица1[[партия]:[партия]]=$S$1),ROW(T11))),"") -> 0 | V14: =IFERROR(INDEX(Таблица1[25],_xlfn.AGGREGATE(15,6,(ROW(Таблица1[25])-ROW(Таблица1[[#Headers],[25]]))/(Таблица1[[месяц]:[месяц]]=$J$2)/(Таблица1[[год]:[год]]=$L$2)/(Таблица1[[изд]:[изд]]=$O$1)/(Таблица1[[партия]:[партия]]=$S$1),ROW(U11))),"") -> 0 | W14: =IFERROR(INDEX(Таблица1[26],_xlfn.AGGREGATE(15,6,(ROW(Таблица1[26])-ROW(Таблица1[[#Headers],[26]]))/(Таблица1[[месяц]:[месяц]]=$J$2)/(Таблица1[[год]:[год]]=$L$2)/(Таблица1[[изд]:[изд]]=$O$1)/(Таблица1[[партия]:[партия]]=$S$1),ROW(V11))),"") -> 0 | X14: =IFERROR(INDEX(Таблица1[27],_xlfn.AGGREGATE(15,6,(ROW(Таблица1[27])-ROW(Таблица1[[#Headers],[27]]))/(Таблица1[[месяц]:[месяц]]=$J$2)/(Таблица1[[год]:[год]]=$L$2)/(Таблица1[[изд]:[изд]]=$O$1)/(Таблица1[[партия]:[партия]]=$S$1),ROW(W11))),"") -> 0 | Y14: =IFERROR(INDEX(Таблица1[30],_xlfn.AGGREGATE(15,6,(ROW(Таблица1[30])-ROW(Таблица1[[#Headers],[30]]))/(Таблица1[[месяц]:[месяц]]=$J$2)/(Таблица1[[год]:[год]]=$L$2)/(Таблица1[[изд]:[изд]]=$O$1)/(Таблица1[[партия]:[партия]]=$S$1),ROW(X11))),"") -> 0 | Z14: =IFERROR(INDEX(Таблица1[31],_xlfn.AGGREGATE(15,6,(ROW(Таблица1[31])-ROW(Таблица1[[#Headers],[31]]))/(Таблица1[[месяц]:[месяц]]=$J$2)/(Таблица1[[год]:[год]]=$L$2)/(Таблица1[[изд]:[изд]]=$O$1)/(Таблица1[[партия]:[партия]]=$S$1),ROW(Y11))),"") -> 0
B15: =IFERROR(INDEX(Таблица1[коэф],_xlfn.AGGREGATE(15,6,(ROW(Таблица1[коэф])-ROW(Таблица1[[#Headers],[коэф]]))/(Таблица1[[месяц]:[месяц]]=$J$2)/(Таблица1[[год]:[год]]=$L$2)/(Таблица1[[изд]:[изд]]=$O$1)/(Таблица1[[партия]:[партия]]=$S$1),ROW(A12))),"") -> 1.1 | C15: =IFERROR(INDEX(Таблица1[Ф. И. О.],_xlfn.AGGREGATE(15,6,(ROW(Таблица1[Ф. И. О.])-ROW(Таблица1[[#Headers],[Ф. И. О.]]))/(Таблица1[[месяц]:[месяц]]=$J$2)/(Таблица1[[год]:[год]]=$L$2)/(Таблица1[[изд]:[изд]]=$O$1)/(Таблица1[[партия]:[партия]]=$S$1),ROW(B12))),"") -> работник2 | D15: =IFERROR(INDEX(Таблица1[р/р],_xlfn.AGGREGATE(15,6,(ROW(Таблица1[р/р])-ROW(Таблица1[[#Headers],[р/р]]))/(Таблица1[[месяц]:[месяц]]=$J$2)/(Таблица1[[год]:[год]]=$L$2)/(Таблица1[[изд]:[изд]]=$O$1)/(Таблица1[[партия]:[партия]]=$S$1),ROW(C12))),"") -> 3/16 | E15: =IFERROR(INDEX(Таблица1[2],_xlfn.AGGREGATE(15,6,(ROW(Таблица1[2])-ROW(Таблица1[[#Headers],[2]]))/(Таблица1[[месяц]:[месяц]]=$J$2)/(Таблица1[[год]:[год]]=$L$2)/(Таблица1[[изд]:[изд]]=$O$1)/(Таблица1[[партия]:[партия]]=$S$1),ROW(D12))),"") -> 0 | F15: =IFERROR(INDEX(Таблица1[3],_xlfn.AGGREGATE(15,6,(ROW(Таблица1[3])-ROW(Таблица1[[#Headers],[3]]))/(Таблица1[[месяц]:[месяц]]=$J$2)/(Таблица1[[год]:[год]]=$L$2)/(Таблица1[[изд]:[изд]]=$O$1)/(Таблица1[[партия]:[партия]]=$S$1),ROW(E12))),"") -> 0 | G15: =IFERROR(INDEX(Таблица1[4],_xlfn.AGGREGATE(15,6,(ROW(Таблица1[4])-ROW(Таблица1[[#Headers],[4]]))/(Таблица1[[месяц]:[месяц]]=$J$2)/(Таблица1[[год]:[год]]=$L$2)/(Таблица1[[изд]:[изд]]=$O$1)/(Таблица1[[партия]:[партия]]=$S$1),ROW(F12))),"") -> 5.2 | H15: =IFERROR(INDEX(Таблица1[5],_xlfn.AGGREGATE(15,6,(ROW(Таблица1[5])-ROW(Таблица1[[#Headers],[5]]))/(Таблица1[[месяц]:[месяц]]=$J$2)/(Таблица1[[год]:[год]]=$L$2)/(Таблица1[[изд]:[изд]]=$O$1)/(Таблица1[[партия]:[партия]]=$S$1),ROW(G12))),"") -> 0 | I15: =IFERROR(INDEX(Таблица1[6],_xlfn.AGGREGATE(15,6,(ROW(Таблица1[6])-ROW(Таблица1[[#Headers],[6]]))/(Таблица1[[месяц]:[месяц]]=$J$2)/(Таблица1[[год]:[год]]=$L$2)/(Таблица1[[изд]:[изд]]=$O$1)/(Таблица1[[партия]:[партия]]=$S$1),ROW(H12))),"") -> 0 | J15: =IFERROR(INDEX(Таблица1[9],_xlfn.AGGREGATE(15,6,(ROW(Таблица1[9])-ROW(Таблица1[[#Headers],[9]]))/(Таблица1[[месяц]:[месяц]]=$J$2)/(Таблица1[[год]:[год]]=$L$2)/(Таблица1[[изд]:[изд]]=$O$1)/(Таблица1[[партия]:[партия]]=$S$1),ROW(I12))),"") -> 0 | K15: =IFERROR(INDEX(Таблица1[10],_xlfn.AGGREGATE(15,6,(ROW(Таблица1[10])-ROW(Таблица1[[#Headers],[10]]))/(Таблица1[[месяц]:[месяц]]=$J$2)/(Таблица1[[год]:[год]]=$L$2)/(Таблица1[[изд]:[изд]]=$O$1)/(Таблица1[[партия]:[партия]]=$S$1),ROW(J12))),"") -> 0 | L15: =IFERROR(INDEX(Таблица1[11],_xlfn.AGGREGATE(15,6,(ROW(Таблица1[11])-ROW(Таблица1[[#Headers],[11]]))/(Таблица1[[месяц]:[месяц]]=$J$2)/(Таблица1[[год]:[год]]=$L$2)/(Таблица1[[изд]:[изд]]=$O$1)/(Таблица1[[партия]:[партия]]=$S$1),ROW(K12))),"") -> 0 | M15: =IFERROR(INDEX(Таблица1[12],_xlfn.AGGREGATE(15,6,(ROW(Таблица1[12])-ROW(Таблица1[[#Headers],[12]]))/(Таблица1[[месяц]:[месяц]]=$J$2)/(Таблица1[[год]:[год]]=$L$2)/(Таблица1[[изд]:[изд]]=$O$1)/(Таблица1[[партия]:[партия]]=$S$1),ROW(L12))),"") -> 0 | N15: =IFERROR(INDEX(Таблица1[13],_xlfn.AGGREGATE(15,6,(ROW(Таблица1[13])-ROW(Таблица1[[#Headers],[13]]))/(Таблица1[[месяц]:[месяц]]=$J$2)/(Таблица1[[год]:[год]]=$L$2)/(Таблица1[[изд]:[изд]]=$O$1)/(Таблица1[[партия]:[партия]]=$S$1),ROW(M12))),"") -> 0 | O15: =IFERROR(INDEX(Таблица1[16],_xlfn.AGGREGATE(15,6,(ROW(Таблица1[16])-ROW(Таблица1[[#Headers],[16]]))/(Таблица1[[месяц]:[месяц]]=$J$2)/(Таблица1[[год]:[год]]=$L$2)/(Таблица1[[изд]:[изд]]=$O$1)/(Таблица1[[партия]:[партия]]=$S$1),ROW(N12))),"") -> 0 | P15: =IFERROR(INDEX(Таблица1[17],_xlfn.AGGREGATE(15,6,(ROW(Таблица1[17])-ROW(Таблица1[[#Headers],[17]]))/(Таблица1[[месяц]:[месяц]]=$J$2)/(Таблица1[[год]:[год]]=$L$2)/(Таблица1[[изд]:[изд]]=$O$1)/(Таблица1[[партия]:[партия]]=$S$1),ROW(O12))),"") -> 0 | Q15: =IFERROR(INDEX(Таблица1[18],_xlfn.AGGREGATE(15,6,(ROW(Таблица1[18])-ROW(Таблица1[[#Headers],[18]]))/(Таблица1[[месяц]:[месяц]]=$J$2)/(Таблица1[[год]:[год]]=$L$2)/(Таблица1[[изд]:[изд]]=$O$1)/(Таблица1[[партия]:[партия]]=$S$1),ROW(P12))),"") -> 0 | R15: =IFERROR(INDEX(Таблица1[19],_xlfn.AGGREGATE(15,6,(ROW(Таблица1[19])-ROW(Таблица1[[#Headers],[19]]))/(Таблица1[[месяц]:[месяц]]=$J$2)/(Таблица1[[год]:[год]]=$L$2)/(Таблица1[[изд]:[изд]]=$O$1)/(Таблица1[[партия]:[партия]]=$S$1),ROW(Q12))),"") -> 0 | S15: =IFERROR(INDEX(Таблица1[20],_xlfn.AGGREGATE(15,6,(ROW(Таблица1[20])-ROW(Таблица1[[#Headers],[20]]))/(Таблица1[[месяц]:[месяц]]=$J$2)/(Таблица1[[год]:[год]]=$L$2)/(Таблица1[[изд]:[изд]]=$O$1)/(Таблица1[[партия]:[партия]]=$S$1),ROW(R12))),"") -> 0 | T15: =IFERROR(INDEX(Таблица1[23],_xlfn.AGGREGATE(15,6,(ROW(Таблица1[23])-ROW(Таблица1[[#Headers],[23]]))/(Таблица1[[месяц]:[месяц]]=$J$2)/(Таблица1[[год]:[год]]=$L$2)/(Таблица1[[изд]:[изд]]=$O$1)/(Таблица1[[партия]:[партия]]=$S$1),ROW(S12))),"") -> 0 | U15: =IFERROR(INDEX(Таблица1[24],_xlfn.AGGREGATE(15,6,(ROW(Таблица1[24])-ROW(Таблица1[[#Headers],[24]]))/(Таблица1[[месяц]:[месяц]]=$J$2)/(Таблица1[[год]:[год]]=$L$2)/(Таблица1[[изд]:[изд]]=$O$1)/(Таблица1[[партия]:[партия]]=$S$1),ROW(T12))),"") -> 0 | V15: =IFERROR(INDEX(Таблица1[25],_xlfn.AGGREGATE(15,6,(ROW(Таблица1[25])-ROW(Таблица1[[#Headers],[25]]))/(Таблица1[[месяц]:[месяц]]=$J$2)/(Таблица1[[год]:[год]]=$L$2)/(Таблица1[[изд]:[изд]]=$O$1)/(Таблица1[[партия]:[партия]]=$S$1),ROW(U12))),"") -> 7.2 | W15: =IFERROR(INDEX(Таблица1[26],_xlfn.AGGREGATE(15,6,(ROW(Таблица1[26])-ROW(Таблица1[[#Headers],[26]]))/(Таблица1[[месяц]:[месяц]]=$J$2)/(Таблица1[[год]:[год]]=$L$2)/(Таблица1[[изд]:[изд]]=$O$1)/(Таблица1[[партия]:[партия]]=$S$1),ROW(V12))),"") -> 0 | X15: =IFERROR(INDEX(Таблица1[27],_xlfn.AGGREGATE(15,6,(ROW(Таблица1[27])-ROW(Таблица1[[#Headers],[27]]))/(Таблица1[[месяц]:[месяц]]=$J$2)/(Таблица1[[год]:[год]]=$L$2)/(Таблица1[[изд]:[изд]]=$O$1)/(Таблица1[[партия]:[партия]]=$S$1),ROW(W12))),"") -> 0 | Y15: =IFERROR(INDEX(Таблица1[30],_xlfn.AGGREGATE(15,6,(ROW(Таблица1[30])-ROW(Таблица1[[#Headers],[30]]))/(Таблица1[[месяц]:[месяц]]=$J$2)/(Таблица1[[год]:[год]]=$L$2)/(Таблица1[[изд]:[изд]]=$O$1)/(Таблица1[[партия]:[партия]]=$S$1),ROW(X12))),"") -> 0 | Z15: =IFERROR(INDEX(Таблица1[31],_xlfn.AGGREGATE(15,6,(ROW(Таблица1[31])-ROW(Таблица1[[#Headers],[31]]))/(Таблица1[[месяц]:[месяц]]=$J$2)/(Таблица1[[год]:[год]]=$L$2)/(Таблица1[[изд]:[изд]]=$O$1)/(Таблица1[[партия]:[партия]]=$S$1),ROW(Y12))),"") -> 0
B16: =IFERROR(INDEX(Таблица1[коэф],_xlfn.AGGREGATE(15,6,(ROW(Таблица1[коэф])-ROW(Таблица1[[#Headers],[коэф]]))/(Таблица1[[месяц]:[месяц]]=$J$2)/(Таблица1[[год]:[год]]=$L$2)/(Таблица1[[изд]:[изд]]=$O$1)/(Таблица1[[партия]:[партия]]=$S$1),ROW(A13))),"") ->  | C16: =IFERROR(INDEX(Таблица1[Ф. И. О.],_xlfn.AGGREGATE(15,6,(ROW(Таблица1[Ф. И. О.])-ROW(Таблица1[[#Headers],[Ф. И. О.]]))/(Таблица1[[месяц]:[месяц]]=$J$2)/(Таблица1[[год]:[год]]=$L$2)/(Таблица1[[изд]:[изд]]=$O$1)/(Таблица1[[партия]:[партия]]=$S$1),ROW(B13))),"") ->  | D16: =IFERROR(INDEX(Таблица1[р/р],_xlfn.AGGREGATE(15,6,(ROW(Таблица1[р/р])-ROW(Таблица1[[#Headers],[р/р]]))/(Таблица1[[месяц]:[месяц]]=$J$2)/(Таблица1[[год]:[год]]=$L$2)/(Таблица1[[изд]:[изд]]=$O$1)/(Таблица1[[партия]:[партия]]=$S$1),ROW(C13))),"") ->  | E16: =IFERROR(INDEX(Таблица1[2],_xlfn.AGGREGATE(15,6,(ROW(Таблица1[2])-ROW(Таблица1[[#Headers],[2]]))/(Таблица1[[месяц]:[месяц]]=$J$2)/(Таблица1[[год]:[год]]=$L$2)/(Таблица1[[изд]:[изд]]=$O$1)/(Таблица1[[партия]:[партия]]=$S$1),ROW(D13))),"") ->  | F16: =IFERROR(INDEX(Таблица1[3],_xlfn.AGGREGATE(15,6,(ROW(Таблица1[3])-ROW(Таблица1[[#Headers],[3]]))/(Таблица1[[месяц]:[месяц]]=$J$2)/(Таблица1[[год]:[год]]=$L$2)/(Таблица1[[изд]:[изд]]=$O$1)/(Таблица1[[партия]:[партия]]=$S$1),ROW(E13))),"") ->  | G16: =IFERROR(INDEX(Таблица1[4],_xlfn.AGGREGATE(15,6,(ROW(Таблица1[4])-ROW(Таблица1[[#Headers],[4]]))/(Таблица1[[месяц]:[месяц]]=$J$2)/(Таблица1[[год]:[год]]=$L$2)/(Таблица1[[изд]:[изд]]=$O$1)/(Таблица1[[партия]:[партия]]=$S$1),ROW(F13))),"") ->  | H16: =IFERROR(INDEX(Таблица1[5],_xlfn.AGGREGATE(15,6,(ROW(Таблица1[5])-ROW(Таблица1[[#Headers],[5]]))/(Таблица1[[месяц]:[месяц]]=$J$2)/(Таблица1[[год]:[год]]=$L$2)/(Таблица1[[изд]:[изд]]=$O$1)/(Таблица1[[партия]:[партия]]=$S$1),ROW(G13))),"") ->  | I16: =IFERROR(INDEX(Таблица1[6],_xlfn.AGGREGATE(15,6,(ROW(Таблица1[6])-ROW(Таблица1[[#Headers],[6]]))/(Таблица1[[месяц]:[месяц]]=$J$2)/(Таблица1[[год]:[год]]=$L$2)/(Таблица1[[изд]:[изд]]=$O$1)/(Таблица1[[партия]:[партия]]=$S$1),ROW(H13))),"") ->  | J16: =IFERROR(INDEX(Таблица1[9],_xlfn.AGGREGATE(15,6,(ROW(Таблица1[9])-ROW(Таблица1[[#Headers],[9]]))/(Таблица1[[месяц]:[месяц]]=$J$2)/(Таблица1[[год]:[год]]=$L$2)/(Таблица1[[изд]:[изд]]=$O$1)/(Таблица1[[партия]:[партия]]=$S$1),ROW(I13))),"") ->  | K16: =IFERROR(INDEX(Таблица1[10],_xlfn.AGGREGATE(15,6,(ROW(Таблица1[10])-ROW(Таблица1[[#Headers],[10]]))/(Таблица1[[месяц]:[месяц]]=$J$2)/(Таблица1[[год]:[год]]=$L$2)/(Таблица1[[изд]:[изд]]=$O$1)/(Таблица1[[партия]:[партия]]=$S$1),ROW(J13))),"") ->  | L16: =IFERROR(INDEX(Таблица1[11],_xlfn.AGGREGATE(15,6,(ROW(Таблица1[11])-ROW(Таблица1[[#Headers],[11]]))/(Таблица1[[месяц]:[месяц]]=$J$2)/(Таблица1[[год]:[год]]=$L$2)/(Таблица1[[изд]:[изд]]=$O$1)/(Таблица1[[партия]:[партия]]=$S$1),ROW(K13))),"") ->  | M16: =IFERROR(INDEX(Таблица1[12],_xlfn.AGGREGATE(15,6,(ROW(Таблица1[12])-ROW(Таблица1[[#Headers],[12]]))/(Таблица1[[месяц]:[месяц]]=$J$2)/(Таблица1[[год]:[год]]=$L$2)/(Таблица1[[изд]:[изд]]=$O$1)/(Таблица1[[партия]:[партия]]=$S$1),ROW(L13))),"") ->  | N16: =IFERROR(INDEX(Таблица1[13],_xlfn.AGGREGATE(15,6,(ROW(Таблица1[13])-ROW(Таблица1[[#Headers],[13]]))/(Таблица1[[месяц]:[месяц]]=$J$2)/(Таблица1[[год]:[год]]=$L$2)/(Таблица1[[изд]:[изд]]=$O$1)/(Таблица1[[партия]:[партия]]=$S$1),ROW(M13))),"") ->  | O16: =IFERROR(INDEX(Таблица1[16],_xlfn.AGGREGATE(15,6,(ROW(Таблица1[16])-ROW(Таблица1[[#Headers],[16]]))/(Таблица1[[месяц]:[месяц]]=$J$2)/(Таблица1[[год]:[год]]=$L$2)/(Таблица1[[изд]:[изд]]=$O$1)/(Таблица1[[партия]:[партия]]=$S$1),ROW(N13))),"") ->  | P16: =IFERROR(INDEX(Таблица1[17],_xlfn.AGGREGATE(15,6,(ROW(Таблица1[17])-ROW(Таблица1[[#Headers],[17]]))/(Таблица1[[месяц]:[месяц]]=$J$2)/(Таблица1[[год]:[год]]=$L$2)/(Таблица1[[изд]:[изд]]=$O$1)/(Таблица1[[партия]:[партия]]=$S$1),ROW(O13))),"") ->  | Q16: =IFERROR(INDEX(Таблица1[18],_xlfn.AGGREGATE(15,6,(ROW(Таблица1[18])-ROW(Таблица1[[#Headers],[18]]))/(Таблица1[[месяц]:[месяц]]=$J$2)/(Таблица1[[год]:[год]]=$L$2)/(Таблица1[[изд]:[изд]]=$O$1)/(Таблица1[[партия]:[партия]]=$S$1),ROW(P13))),"") ->  | R16: =IFERROR(INDEX(Таблица1[19],_xlfn.AGGREGATE(15,6,(ROW(Таблица1[19])-ROW(Таблица1[[#Headers],[19]]))/(Таблица1[[месяц]:[месяц]]=$J$2)/(Таблица1[[год]:[год]]=$L$2)/(Таблица1[[изд]:[изд]]=$O$1)/(Таблица1[[партия]:[партия]]=$S$1),ROW(Q13))),"") ->  | S16: =IFERROR(INDEX(Таблица1[20],_xlfn.AGGREGATE(15,6,(ROW(Таблица1[20])-ROW(Таблица1[[#Headers],[20]]))/(Таблица1[[месяц]:[месяц]]=$J$2)/(Таблица1[[год]:[год]]=$L$2)/(Таблица1[[изд]:[изд]]=$O$1)/(Таблица1[[партия]:[партия]]=$S$1),ROW(R13))),"") ->  | T16: =IFERROR(INDEX(Таблица1[23],_xlfn.AGGREGATE(15,6,(ROW(Таблица1[23])-ROW(Таблица1[[#Headers],[23]]))/(Таблица1[[месяц]:[месяц]]=$J$2)/(Таблица1[[год]:[год]]=$L$2)/(Таблица1[[изд]:[изд]]=$O$1)/(Таблица1[[партия]:[партия]]=$S$1),ROW(S13))),"") ->  | U16: =IFERROR(INDEX(Таблица1[24],_xlfn.AGGREGATE(15,6,(ROW(Таблица1[24])-ROW(Таблица1[[#Headers],[24]]))/(Таблица1[[месяц]:[месяц]]=$J$2)/(Таблица1[[год]:[год]]=$L$2)/(Таблица1[[изд]:[изд]]=$O$1)/(Таблица1[[партия]:[партия]]=$S$1),ROW(T13))),"") ->  | V16: =IFERROR(INDEX(Таблица1[25],_xlfn.AGGREGATE(15,6,(ROW(Таблица1[25])-ROW(Таблица1[[#Headers],[25]]))/(Таблица1[[месяц]:[месяц]]=$J$2)/(Таблица1[[год]:[год]]=$L$2)/(Таблица1[[изд]:[изд]]=$O$1)/(Таблица1[[партия]:[партия]]=$S$1),ROW(U13))),"") ->  | W16: =IFERROR(INDEX(Таблица1[26],_xlfn.AGGREGATE(15,6,(ROW(Таблица1[26])-ROW(Таблица1[[#Headers],[26]]))/(Таблица1[[месяц]:[месяц]]=$J$2)/(Таблица1[[год]:[год]]=$L$2)/(Таблица1[[изд]:[изд]]=$O$1)/(Таблица1[[партия]:[партия]]=$S$1),ROW(V13))),"") ->  | X16: =IFERROR(INDEX(Таблица1[27],_xlfn.AGGREGATE(15,6,(ROW(Таблица1[27])-ROW(Таблица1[[#Headers],[27]]))/(Таблица1[[месяц]:[месяц]]=$J$2)/(Таблица1[[год]:[год]]=$L$2)/(Таблица1[[изд]:[изд]]=$O$1)/(Таблица1[[партия]:[партия]]=$S$1),ROW(W13))),"") ->  | Y16: =IFERROR(INDEX(Таблица1[30],_xlfn.AGGREGATE(15,6,(ROW(Таблица1[30])-ROW(Таблица1[[#Headers],[30]]))/(Таблица1[[месяц]:[месяц]]=$J$2)/(Таблица1[[год]:[год]]=$L$2)/(Таблица1[[изд]:[изд]]=$O$1)/(Таблица1[[партия]:[партия]]=$S$1),ROW(X13))),"") ->  | Z16: =IFERROR(INDEX(Таблица1[31],_xlfn.AGGREGATE(15,6,(ROW(Таблица1[31])-ROW(Таблица1[[#Headers],[31]]))/(Таблица1[[месяц]:[месяц]]=$J$2)/(Таблица1[[год]:[год]]=$L$2)/(Таблица1[[изд]:[изд]]=$O$1)/(Таблица1[[партия]:[партия]]=$S$1),ROW(Y13))),"") -> 
B17: =IFERROR(INDEX(Таблица1[коэф],_xlfn.AGGREGATE(15,6,(ROW(Таблица1[коэф])-ROW(Таблица1[[#Headers],[коэф]]))/(Таблица1[[месяц]:[месяц]]=$J$2)/(Таблица1[[год]:[год]]=$L$2)/(Таблица1[[изд]:[изд]]=$O$1)/(Таблица1[[партия]:[партия]]=$S$1),ROW(A14))),"") ->  | C17: =IFERROR(INDEX(Таблица1[Ф. И. О.],_xlfn.AGGREGATE(15,6,(ROW(Таблица1[Ф. И. О.])-ROW(Таблица1[[#Headers],[Ф. И. О.]]))/(Таблица1[[месяц]:[месяц]]=$J$2)/(Таблица1[[год]:[год]]=$L$2)/(Таблица1[[изд]:[изд]]=$O$1)/(Таблица1[[партия]:[партия]]=$S$1),ROW(B14))),"") ->  | D17: =IFERROR(INDEX(Таблица1[р/р],_xlfn.AGGREGATE(15,6,(ROW(Таблица1[р/р])-ROW(Таблица1[[#Headers],[р/р]]))/(Таблица1[[месяц]:[месяц]]=$J$2)/(Таблица1[[год]:[год]]=$L$2)/(Таблица1[[изд]:[изд]]=$O$1)/(Таблица1[[партия]:[партия]]=$S$1),ROW(C14))),"") ->  | E17: =IFERROR(INDEX(Таблица1[2],_xlfn.AGGREGATE(15,6,(ROW(Таблица1[2])-ROW(Таблица1[[#Headers],[2]]))/(Таблица1[[месяц]:[месяц]]=$J$2)/(Таблица1[[год]:[год]]=$L$2)/(Таблица1[[изд]:[изд]]=$O$1)/(Таблица1[[партия]:[партия]]=$S$1),ROW(D14))),"") ->  | F17: =IFERROR(INDEX(Таблица1[3],_xlfn.AGGREGATE(15,6,(ROW(Таблица1[3])-ROW(Таблица1[[#Headers],[3]]))/(Таблица1[[месяц]:[месяц]]=$J$2)/(Таблица1[[год]:[год]]=$L$2)/(Таблица1[[изд]:[изд]]=$O$1)/(Таблица1[[партия]:[партия]]=$S$1),ROW(E14))),"") ->  | G17: =IFERROR(INDEX(Таблица1[4],_xlfn.AGGREGATE(15,6,(ROW(Таблица1[4])-ROW(Таблица1[[#Headers],[4]]))/(Таблица1[[месяц]:[месяц]]=$J$2)/(Таблица1[[год]:[год]]=$L$2)/(Таблица1[[изд]:[изд]]=$O$1)/(Таблица1[[партия]:[партия]]=$S$1),ROW(F14))),"") ->  | H17: =IFERROR(INDEX(Таблица1[5],_xlfn.AGGREGATE(15,6,(ROW(Таблица1[5])-ROW(Таблица1[[#Headers],[5]]))/(Таблица1[[месяц]:[месяц]]=$J$2)/(Таблица1[[год]:[год]]=$L$2)/(Таблица1[[изд]:[изд]]=$O$1)/(Таблица1[[партия]:[партия]]=$S$1),ROW(G14))),"") ->  | I17: =IFERROR(INDEX(Таблица1[6],_xlfn.AGGREGATE(15,6,(ROW(Таблица1[6])-ROW(Таблица1[[#Headers],[6]]))/(Таблица1[[месяц]:[месяц]]=$J$2)/(Таблица1[[год]:[год]]=$L$2)/(Таблица1[[изд]:[изд]]=$O$1)/(Таблица1[[партия]:[партия]]=$S$1),ROW(H14))),"") ->  | J17: =IFERROR(INDEX(Таблица1[9],_xlfn.AGGREGATE(15,6,(ROW(Таблица1[9])-ROW(Таблица1[[#Headers],[9]]))/(Таблица1[[месяц]:[месяц]]=$J$2)/(Таблица1[[год]:[год]]=$L$2)/(Таблица1[[изд]:[изд]]=$O$1)/(Таблица1[[партия]:[партия]]=$S$1),ROW(I14))),"") ->  | K17: =IFERROR(INDEX(Таблица1[10],_xlfn.AGGREGATE(15,6,(ROW(Таблица1[10])-ROW(Таблица1[[#Headers],[10]]))/(Таблица1[[месяц]:[месяц]]=$J$2)/(Таблица1[[год]:[год]]=$L$2)/(Таблица1[[изд]:[изд]]=$O$1)/(Таблица1[[партия]:[партия]]=$S$1),ROW(J14))),"") ->  | L17: =IFERROR(INDEX(Таблица1[11],_xlfn.AGGREGATE(15,6,(ROW(Таблица1[11])-ROW(Таблица1[[#Headers],[11]]))/(Таблица1[[месяц]:[месяц]]=$J$2)/(Таблица1[[год]:[год]]=$L$2)/(Таблица1[[изд]:[изд]]=$O$1)/(Таблица1[[партия]:[партия]]=$S$1),ROW(K14))),"") ->  | M17: =IFERROR(INDEX(Таблица1[12],_xlfn.AGGREGATE(15,6,(ROW(Таблица1[12])-ROW(Таблица1[[#Headers],[12]]))/(Таблица1[[месяц]:[месяц]]=$J$2)/(Таблица1[[год]:[год]]=$L$2)/(Таблица1[[изд]:[изд]]=$O$1)/(Таблица1[[партия]:[партия]]=$S$1),ROW(L14))),"") ->  | N17: =IFERROR(INDEX(Таблица1[13],_xlfn.AGGREGATE(15,6,(ROW(Таблица1[13])-ROW(Таблица1[[#Headers],[13]]))/(Таблица1[[месяц]:[месяц]]=$J$2)/(Таблица1[[год]:[год]]=$L$2)/(Таблица1[[изд]:[изд]]=$O$1)/(Таблица1[[партия]:[партия]]=$S$1),ROW(M14))),"") ->  | O17: =IFERROR(INDEX(Таблица1[16],_xlfn.AGGREGATE(15,6,(ROW(Таблица1[16])-ROW(Таблица1[[#Headers],[16]]))/(Таблица1[[месяц]:[месяц]]=$J$2)/(Таблица1[[год]:[год]]=$L$2)/(Таблица1[[изд]:[изд]]=$O$1)/(Таблица1[[партия]:[партия]]=$S$1),ROW(N14))),"") ->  | P17: =IFERROR(INDEX(Таблица1[17],_xlfn.AGGREGATE(15,6,(ROW(Таблица1[17])-ROW(Таблица1[[#Headers],[17]]))/(Таблица1[[месяц]:[месяц]]=$J$2)/(Таблица1[[год]:[год]]=$L$2)/(Таблица1[[изд]:[изд]]=$O$1)/(Таблица1[[партия]:[партия]]=$S$1),ROW(O14))),"") ->  | Q17: =IFERROR(INDEX(Таблица1[18],_xlfn.AGGREGATE(15,6,(ROW(Таблица1[18])-ROW(Таблица1[[#Headers],[18]]))/(Таблица1[[месяц]:[месяц]]=$J$2)/(Таблица1[[год]:[год]]=$L$2)/(Таблица1[[изд]:[изд]]=$O$1)/(Таблица1[[партия]:[партия]]=$S$1),ROW(P14))),"") ->  | R17: =IFERROR(INDEX(Таблица1[19],_xlfn.AGGREGATE(15,6,(ROW(Таблица1[19])-ROW(Таблица1[[#Headers],[19]]))/(Таблица1[[месяц]:[месяц]]=$J$2)/(Таблица1[[год]:[год]]=$L$2)/(Таблица1[[изд]:[изд]]=$O$1)/(Таблица1[[партия]:[партия]]=$S$1),ROW(Q14))),"") ->  | S17: =IFERROR(INDEX(Таблица1[20],_xlfn.AGGREGATE(15,6,(ROW(Таблица1[20])-ROW(Таблица1[[#Headers],[20]]))/(Таблица1[[месяц]:[месяц]]=$J$2)/(Таблица1[[год]:[год]]=$L$2)/(Таблица1[[изд]:[изд]]=$O$1)/(Таблица1[[партия]:[партия]]=$S$1),ROW(R14))),"") ->  | T17: =IFERROR(INDEX(Таблица1[23],_xlfn.AGGREGATE(15,6,(ROW(Таблица1[23])-ROW(Таблица1[[#Headers],[23]]))/(Таблица1[[месяц]:[месяц]]=$J$2)/(Таблица1[[год]:[год]]=$L$2)/(Таблица1[[изд]:[изд]]=$O$1)/(Таблица1[[партия]:[партия]]=$S$1),ROW(S14))),"") ->  | U17: =IFERROR(INDEX(Таблица1[24],_xlfn.AGGREGATE(15,6,(ROW(Таблица1[24])-ROW(Таблица1[[#Headers],[24]]))/(Таблица1[[месяц]:[месяц]]=$J$2)/(Таблица1[[год]:[год]]=$L$2)/(Таблица1[[изд]:[изд]]=$O$1)/(Таблица1[[партия]:[партия]]=$S$1),ROW(T14))),"") ->  | V17: =IFERROR(INDEX(Таблица1[25],_xlfn.AGGREGATE(15,6,(ROW(Таблица1[25])-ROW(Таблица1[[#Headers],[25]]))/(Таблица1[[месяц]:[месяц]]=$J$2)/(Таблица1[[год]:[год]]=$L$2)/(Таблица1[[изд]:[изд]]=$O$1)/(Таблица1[[партия]:[партия]]=$S$1),ROW(U14))),"") ->  | W17: =IFERROR(INDEX(Таблица1[26],_xlfn.AGGREGATE(15,6,(ROW(Таблица1[26])-ROW(Таблица1[[#Headers],[26]]))/(Таблица1[[месяц]:[месяц]]=$J$2)/(Таблица1[[год]:[год]]=$L$2)/(Таблица1[[изд]:[изд]]=$O$1)/(Таблица1[[партия]:[партия]]=$S$1),ROW(V14))),"") ->  | X17: =IFERROR(INDEX(Таблица1[27],_xlfn.AGGREGATE(15,6,(ROW(Таблица1[27])-ROW(Таблица1[[#Headers],[27]]))/(Таблица1[[месяц]:[месяц]]=$J$2)/(Таблица1[[год]:[год]]=$L$2)/(Таблица1[[изд]:[изд]]=$O$1)/(Таблица1[[партия]:[партия]]=$S$1),ROW(W14))),"") ->  | Y17: =IFERROR(INDEX(Таблица1[30],_xlfn.AGGREGATE(15,6,(ROW(Таблица1[30])-ROW(Таблица1[[#Headers],[30]]))/(Таблица1[[месяц]:[месяц]]=$J$2)/(Таблица1[[год]:[год]]=$L$2)/(Таблица1[[изд]:[изд]]=$O$1)/(Таблица1[[партия]:[партия]]=$S$1),ROW(X14))),"") ->  | Z17: =IFERROR(INDEX(Таблица1[31],_xlfn.AGGREGATE(15,6,(ROW(Таблица1[31])-ROW(Таблица1[[#Headers],[31]]))/(Таблица1[[месяц]:[месяц]]=$J$2)/(Таблица1[[год]:[год]]=$L$2)/(Таблица1[[изд]:[изд]]=$O$1)/(Таблица1[[партия]:[партия]]=$S$1),ROW(Y14))),"") -> 
B18: =IFERROR(INDEX(Таблица1[коэф],_xlfn.AGGREGATE(15,6,(ROW(Таблица1[коэф])-ROW(Таблица1[[#Headers],[коэф]]))/(Таблица1[[месяц]:[месяц]]=$J$2)/(Таблица1[[год]:[год]]=$L$2)/(Таблица1[[изд]:[изд]]=$O$1)/(Таблица1[[партия]:[партия]]=$S$1),ROW(A15))),"") ->  | C18: =IFERROR(INDEX(Таблица1[Ф. И. О.],_xlfn.AGGREGATE(15,6,(ROW(Таблица1[Ф. И. О.])-ROW(Таблица1[[#Headers],[Ф. И. О.]]))/(Таблица1[[месяц]:[месяц]]=$J$2)/(Таблица1[[год]:[год]]=$L$2)/(Таблица1[[изд]:[изд]]=$O$1)/(Таблица1[[партия]:[партия]]=$S$1),ROW(B15))),"") ->  | D18: =IFERROR(INDEX(Таблица1[р/р],_xlfn.AGGREGATE(15,6,(ROW(Таблица1[р/р])-ROW(Таблица1[[#Headers],[р/р]]))/(Таблица1[[месяц]:[месяц]]=$J$2)/(Таблица1[[год]:[год]]=$L$2)/(Таблица1[[изд]:[изд]]=$O$1)/(Таблица1[[партия]:[партия]]=$S$1),ROW(C15))),"") ->  | E18: =IFERROR(INDEX(Таблица1[2],_xlfn.AGGREGATE(15,6,(ROW(Таблица1[2])-ROW(Таблица1[[#Headers],[2]]))/(Таблица1[[месяц]:[месяц]]=$J$2)/(Таблица1[[год]:[год]]=$L$2)/(Таблица1[[изд]:[изд]]=$O$1)/(Таблица1[[партия]:[партия]]=$S$1),ROW(D15))),"") ->  | F18: =IFERROR(INDEX(Таблица1[3],_xlfn.AGGREGATE(15,6,(ROW(Таблица1[3])-ROW(Таблица1[[#Headers],[3]]))/(Таблица1[[месяц]:[месяц]]=$J$2)/(Таблица1[[год]:[год]]=$L$2)/(Таблица1[[изд]:[изд]]=$O$1)/(Таблица1[[партия]:[партия]]=$S$1),ROW(E15))),"") ->  | G18: =IFERROR(INDEX(Таблица1[4],_xlfn.AGGREGATE(15,6,(ROW(Таблица1[4])-ROW(Таблица1[[#Headers],[4]]))/(Таблица1[[месяц]:[месяц]]=$J$2)/(Таблица1[[год]:[год]]=$L$2)/(Таблица1[[изд]:[изд]]=$O$1)/(Таблица1[[партия]:[партия]]=$S$1),ROW(F15))),"") ->  | H18: =IFERROR(INDEX(Таблица1[5],_xlfn.AGGREGATE(15,6,(ROW(Таблица1[5])-ROW(Таблица1[[#Headers],[5]]))/(Таблица1[[месяц]:[месяц]]=$J$2)/(Таблица1[[год]:[год]]=$L$2)/(Таблица1[[изд]:[изд]]=$O$1)/(Таблица1[[партия]:[партия]]=$S$1),ROW(G15))),"") ->  | I18: =IFERROR(INDEX(Таблица1[6],_xlfn.AGGREGATE(15,6,(ROW(Таблица1[6])-ROW(Таблица1[[#Headers],[6]]))/(Таблица1[[месяц]:[месяц]]=$J$2)/(Таблица1[[год]:[год]]=$L$2)/(Таблица1[[изд]:[изд]]=$O$1)/(Таблица1[[партия]:[партия]]=$S$1),ROW(H15))),"") ->  | J18: =IFERROR(INDEX(Таблица1[9],_xlfn.AGGREGATE(15,6,(ROW(Таблица1[9])-ROW(Таблица1[[#Headers],[9]]))/(Таблица1[[месяц]:[месяц]]=$J$2)/(Таблица1[[год]:[год]]=$L$2)/(Таблица1[[изд]:[изд]]=$O$1)/(Таблица1[[партия]:[партия]]=$S$1),ROW(I15))),"") ->  | K18: =IFERROR(INDEX(Таблица1[10],_xlfn.AGGREGATE(15,6,(ROW(Таблица1[10])-ROW(Таблица1[[#Headers],[10]]))/(Таблица1[[месяц]:[месяц]]=$J$2)/(Таблица1[[год]:[год]]=$L$2)/(Таблица1[[изд]:[изд]]=$O$1)/(Таблица1[[партия]:[партия]]=$S$1),ROW(J15))),"") ->  | L18: =IFERROR(INDEX(Таблица1[11],_xlfn.AGGREGATE(15,6,(ROW(Таблица1[11])-ROW(Таблица1[[#Headers],[11]]))/(Таблица1[[месяц]:[месяц]]=$J$2)/(Таблица1[[год]:[год]]=$L$2)/(Таблица1[[изд]:[изд]]=$O$1)/(Таблица1[[партия]:[партия]]=$S$1),ROW(K15))),"") ->  | M18: =IFERROR(INDEX(Таблица1[12],_xlfn.AGGREGATE(15,6,(ROW(Таблица1[12])-ROW(Таблица1[[#Headers],[12]]))/(Таблица1[[месяц]:[месяц]]=$J$2)/(Таблица1[[год]:[год]]=$L$2)/(Таблица1[[изд]:[изд]]=$O$1)/(Таблица1[[партия]:[партия]]=$S$1),ROW(L15))),"") ->  | N18: =IFERROR(INDEX(Таблица1[13],_xlfn.AGGREGATE(15,6,(ROW(Таблица1[13])-ROW(Таблица1[[#Headers],[13]]))/(Таблица1[[месяц]:[месяц]]=$J$2)/(Таблица1[[год]:[год]]=$L$2)/(Таблица1[[изд]:[изд]]=$O$1)/(Таблица1[[партия]:[партия]]=$S$1),ROW(M15))),"") ->  | O18: =IFERROR(INDEX(Таблица1[16],_xlfn.AGGREGATE(15,6,(ROW(Таблица1[16])-ROW(Таблица1[[#Headers],[16]]))/(Таблица1[[месяц]:[месяц]]=$J$2)/(Таблица1[[год]:[год]]=$L$2)/(Таблица1[[изд]:[изд]]=$O$1)/(Таблица1[[партия]:[партия]]=$S$1),ROW(N15))),"") ->  | P18: =IFERROR(INDEX(Таблица1[17],_xlfn.AGGREGATE(15,6,(ROW(Таблица1[17])-ROW(Таблица1[[#Headers],[17]]))/(Таблица1[[месяц]:[месяц]]=$J$2)/(Таблица1[[год]:[год]]=$L$2)/(Таблица1[[изд]:[изд]]=$O$1)/(Таблица1[[партия]:[партия]]=$S$1),ROW(O15))),"") ->  | Q18: =IFERROR(INDEX(Таблица1[18],_xlfn.AGGREGATE(15,6,(ROW(Таблица1[18])-ROW(Таблица1[[#Headers],[18]]))/(Таблица1[[месяц]:[месяц]]=$J$2)/(Таблица1[[год]:[год]]=$L$2)/(Таблица1[[изд]:[изд]]=$O$1)/(Таблица1[[партия]:[партия]]=$S$1),ROW(P15))),"") ->  | R18: =IFERROR(INDEX(Таблица1[19],_xlfn.AGGREGATE(15,6,(ROW(Таблица1[19])-ROW(Таблица1[[#Headers],[19]]))/(Таблица1[[месяц]:[месяц]]=$J$2)/(Таблица1[[год]:[год]]=$L$2)/(Таблица1[[изд]:[изд]]=$O$1)/(Таблица1[[партия]:[партия]]=$S$1),ROW(Q15))),"") ->  | S18: =IFERROR(INDEX(Таблица1[20],_xlfn.AGGREGATE(15,6,(ROW(Таблица1[20])-ROW(Таблица1[[#Headers],[20]]))/(Таблица1[[месяц]:[месяц]]=$J$2)/(Таблица1[[год]:[год]]=$L$2)/(Таблица1[[изд]:[изд]]=$O$1)/(Таблица1[[партия]:[партия]]=$S$1),ROW(R15))),"") ->  | T18: =IFERROR(INDEX(Таблица1[23],_xlfn.AGGREGATE(15,6,(ROW(Таблица1[23])-ROW(Таблица1[[#Headers],[23]]))/(Таблица1[[месяц]:[месяц]]=$J$2)/(Таблица1[[год]:[год]]=$L$2)/(Таблица1[[изд]:[изд]]=$O$1)/(Таблица1[[партия]:[партия]]=$S$1),ROW(S15))),"") ->  | U18: =IFERROR(INDEX(Таблица1[24],_xlfn.AGGREGATE(15,6,(ROW(Таблица1[24])-ROW(Таблица1[[#Headers],[24]]))/(Таблица1[[месяц]:[месяц]]=$J$2)/(Таблица1[[год]:[год]]=$L$2)/(Таблица1[[изд]:[изд]]=$O$1)/(Таблица1[[партия]:[партия]]=$S$1),ROW(T15))),"") ->  | V18: =IFERROR(INDEX(Таблица1[25],_xlfn.AGGREGATE(15,6,(ROW(Таблица1[25])-ROW(Таблица1[[#Headers],[25]]))/(Таблица1[[месяц]:[месяц]]=$J$2)/(Таблица1[[год]:[год]]=$L$2)/(Таблица1[[изд]:[изд]]=$O$1)/(Таблица1[[партия]:[партия]]=$S$1),ROW(U15))),"") ->  | W18: =IFERROR(INDEX(Таблица1[26],_xlfn.AGGREGATE(15,6,(ROW(Таблица1[26])-ROW(Таблица1[[#Headers],[26]]))/(Таблица1[[месяц]:[месяц]]=$J$2)/(Таблица1[[год]:[год]]=$L$2)/(Таблица1[[изд]:[изд]]=$O$1)/(Таблица1[[партия]:[партия]]=$S$1),ROW(V15))),"") ->  | X18: =IFERROR(INDEX(Таблица1[27],_xlfn.AGGREGATE(15,6,(ROW(Таблица1[27])-ROW(Таблица1[[#Headers],[27]]))/(Таблица1[[месяц]:[месяц]]=$J$2)/(Таблица1[[год]:[год]]=$L$2)/(Таблица1[[изд]:[изд]]=$O$1)/(Таблица1[[партия]:[партия]]=$S$1),ROW(W15))),"") ->  | Y18: =IFERROR(INDEX(Таблица1[30],_xlfn.AGGREGATE(15,6,(ROW(Таблица1[30])-ROW(Таблица1[[#Headers],[30]]))/(Таблица1[[месяц]:[месяц]]=$J$2)/(Таблица1[[год]:[год]]=$L$2)/(Таблица1[[изд]:[изд]]=$O$1)/(Таблица1[[партия]:[партия]]=$S$1),ROW(X15))),"") ->  | Z18: =IFERROR(INDEX(Таблица1[31],_xlfn.AGGREGATE(15,6,(ROW(Таблица1[31])-ROW(Таблица1[[#Headers],[31]]))/(Таблица1[[месяц]:[месяц]]=$J$2)/(Таблица1[[год]:[год]]=$L$2)/(Таблица1[[изд]:[изд]]=$O$1)/(Таблица1[[партия]:[партия]]=$S$1),ROW(Y15))),"") -> 
B19: =IFERROR(INDEX(Таблица1[коэф],_xlfn.AGGREGATE(15,6,(ROW(Таблица1[коэф])-ROW(Таблица1[[#Headers],[коэф]]))/(Таблица1[[месяц]:[месяц]]=$J$2)/(Таблица1[[год]:[год]]=$L$2)/(Таблица1[[изд]:[изд]]=$O$1)/(Таблица1[[партия]:[партия]]=$S$1),ROW(A16))),"") ->  | C19: =IFERROR(INDEX(Таблица1[Ф. И. О.],_xlfn.AGGREGATE(15,6,(ROW(Таблица1[Ф. И. О.])-ROW(Таблица1[[#Headers],[Ф. И. О.]]))/(Таблица1[[месяц]:[месяц]]=$J$2)/(Таблица1[[год]:[год]]=$L$2)/(Таблица1[[изд]:[изд]]=$O$1)/(Таблица1[[партия]:[партия]]=$S$1),ROW(B16))),"") ->  | D19: =IFERROR(INDEX(Таблица1[р/р],_xlfn.AGGREGATE(15,6,(ROW(Таблица1[р/р])-ROW(Таблица1[[#Headers],[р/р]]))/(Таблица1[[месяц]:[месяц]]=$J$2)/(Таблица1[[год]:[год]]=$L$2)/(Таблица1[[изд]:[изд]]=$O$1)/(Таблица1[[партия]:[партия]]=$S$1),ROW(C16))),"") ->  | E19: =IFERROR(INDEX(Таблица1[2],_xlfn.AGGREGATE(15,6,(ROW(Таблица1[2])-ROW(Таблица1[[#Headers],[2]]))/(Таблица1[[месяц]:[месяц]]=$J$2)/(Таблица1[[год]:[год]]=$L$2)/(Таблица1[[изд]:[изд]]=$O$1)/(Таблица1[[партия]:[партия]]=$S$1),ROW(D16))),"") ->  | F19: =IFERROR(INDEX(Таблица1[3],_xlfn.AGGREGATE(15,6,(ROW(Таблица1[3])-ROW(Таблица1[[#Headers],[3]]))/(Таблица1[[месяц]:[месяц]]=$J$2)/(Таблица1[[год]:[год]]=$L$2)/(Таблица1[[изд]:[изд]]=$O$1)/(Таблица1[[партия]:[партия]]=$S$1),ROW(E16))),"") ->  | G19: =IFERROR(INDEX(Таблица1[4],_xlfn.AGGREGATE(15,6,(ROW(Таблица1[4])-ROW(Таблица1[[#Headers],[4]]))/(Таблица1[[месяц]:[месяц]]=$J$2)/(Таблица1[[год]:[год]]=$L$2)/(Таблица1[[изд]:[изд]]=$O$1)/(Таблица1[[партия]:[партия]]=$S$1),ROW(F16))),"") ->  | H19: =IFERROR(INDEX(Таблица1[5],_xlfn.AGGREGATE(15,6,(ROW(Таблица1[5])-ROW(Таблица1[[#Headers],[5]]))/(Таблица1[[месяц]:[месяц]]=$J$2)/(Таблица1[[год]:[год]]=$L$2)/(Таблица1[[изд]:[изд]]=$O$1)/(Таблица1[[партия]:[партия]]=$S$1),ROW(G16))),"") ->  | I19: =IFERROR(INDEX(Таблица1[6],_xlfn.AGGREGATE(15,6,(ROW(Таблица1[6])-ROW(Таблица1[[#Headers],[6]]))/(Таблица1[[месяц]:[месяц]]=$J$2)/(Таблица1[[год]:[год]]=$L$2)/(Таблица1[[изд]:[изд]]=$O$1)/(Таблица1[[партия]:[партия]]=$S$1),ROW(H16))),"") ->  | J19: =IFERROR(INDEX(Таблица1[9],_xlfn.AGGREGATE(15,6,(ROW(Таблица1[9])-ROW(Таблица1[[#Headers],[9]]))/(Таблица1[[месяц]:[месяц]]=$J$2)/(Таблица1[[год]:[год]]=$L$2)/(Таблица1[[изд]:[изд]]=$O$1)/(Таблица1[[партия]:[партия]]=$S$1),ROW(I16))),"") ->  | K19: =IFERROR(INDEX(Таблица1[10],_xlfn.AGGREGATE(15,6,(ROW(Таблица1[10])-ROW(Таблица1[[#Headers],[10]]))/(Таблица1[[месяц]:[месяц]]=$J$2)/(Таблица1[[год]:[год]]=$L$2)/(Таблица1[[изд]:[изд]]=$O$1)/(Таблица1[[партия]:[партия]]=$S$1),ROW(J16))),"") ->  | L19: =IFERROR(INDEX(Таблица1[11],_xlfn.AGGREGATE(15,6,(ROW(Таблица1[11])-ROW(Таблица1[[#Headers],[11]]))/(Таблица1[[месяц]:[месяц]]=$J$2)/(Таблица1[[год]:[год]]=$L$2)/(Таблица1[[изд]:[изд]]=$O$1)/(Таблица1[[партия]:[партия]]=$S$1),ROW(K16))),"") ->  | M19: =IFERROR(INDEX(Таблица1[12],_xlfn.AGGREGATE(15,6,(ROW(Таблица1[12])-ROW(Таблица1[[#Headers],[12]]))/(Таблица1[[месяц]:[месяц]]=$J$2)/(Таблица1[[год]:[год]]=$L$2)/(Таблица1[[изд]:[изд]]=$O$1)/(Таблица1[[партия]:[партия]]=$S$1),ROW(L16))),"") ->  | N19: =IFERROR(INDEX(Таблица1[13],_xlfn.AGGREGATE(15,6,(ROW(Таблица1[13])-ROW(Таблица1[[#Headers],[13]]))/(Таблица1[[месяц]:[месяц]]=$J$2)/(Таблица1[[год]:[год]]=$L$2)/(Таблица1[[изд]:[изд]]=$O$1)/(Таблица1[[партия]:[партия]]=$S$1),ROW(M16))),"") ->  | O19: =IFERROR(INDEX(Таблица1[16],_xlfn.AGGREGATE(15,6,(ROW(Таблица1[16])-ROW(Таблица1[[#Headers],[16]]))/(Таблица1[[месяц]:[месяц]]=$J$2)/(Таблица1[[год]:[год]]=$L$2)/(Таблица1[[изд]:[изд]]=$O$1)/(Таблица1[[партия]:[партия]]=$S$1),ROW(N16))),"") ->  | P19: =IFERROR(INDEX(Таблица1[17],_xlfn.AGGREGATE(15,6,(ROW(Таблица1[17])-ROW(Таблица1[[#Headers],[17]]))/(Таблица1[[месяц]:[месяц]]=$J$2)/(Таблица1[[год]:[год]]=$L$2)/(Таблица1[[изд]:[изд]]=$O$1)/(Таблица1[[партия]:[партия]]=$S$1),ROW(O16))),"") ->  | Q19: =IFERROR(INDEX(Таблица1[18],_xlfn.AGGREGATE(15,6,(ROW(Таблица1[18])-ROW(Таблица1[[#Headers],[18]]))/(Таблица1[[месяц]:[месяц]]=$J$2)/(Таблица1[[год]:[год]]=$L$2)/(Таблица1[[изд]:[изд]]=$O$1)/(Таблица1[[партия]:[партия]]=$S$1),ROW(P16))),"") ->  | R19: =IFERROR(INDEX(Таблица1[19],_xlfn.AGGREGATE(15,6,(ROW(Таблица1[19])-ROW(Таблица1[[#Headers],[19]]))/(Таблица1[[месяц]:[месяц]]=$J$2)/(Таблица1[[год]:[год]]=$L$2)/(Таблица1[[изд]:[изд]]=$O$1)/(Таблица1[[партия]:[партия]]=$S$1),ROW(Q16))),"") ->  | S19: =IFERROR(INDEX(Таблица1[20],_xlfn.AGGREGATE(15,6,(ROW(Таблица1[20])-ROW(Таблица1[[#Headers],[20]]))/(Таблица1[[месяц]:[месяц]]=$J$2)/(Таблица1[[год]:[год]]=$L$2)/(Таблица1[[изд]:[изд]]=$O$1)/(Таблица1[[партия]:[партия]]=$S$1),ROW(R16))),"") ->  | T19: =IFERROR(INDEX(Таблица1[23],_xlfn.AGGREGATE(15,6,(ROW(Таблица1[23])-ROW(Таблица1[[#Headers],[23]]))/(Таблица1[[месяц]:[месяц]]=$J$2)/(Таблица1[[год]:[год]]=$L$2)/(Таблица1[[изд]:[изд]]=$O$1)/(Таблица1[[партия]:[партия]]=$S$1),ROW(S16))),"") ->  | U19: =IFERROR(INDEX(Таблица1[24],_xlfn.AGGREGATE(15,6,(ROW(Таблица1[24])-ROW(Таблица1[[#Headers],[24]]))/(Таблица1[[месяц]:[месяц]]=$J$2)/(Таблица1[[год]:[год]]=$L$2)/(Таблица1[[изд]:[изд]]=$O$1)/(Таблица1[[партия]:[партия]]=$S$1),ROW(T16))),"") ->  | V19: =IFERROR(INDEX(Таблица1[25],_xlfn.AGGREGATE(15,6,(ROW(Таблица1[25])-ROW(Таблица1[[#Headers],[25]]))/(Таблица1[[месяц]:[месяц]]=$J$2)/(Таблица1[[год]:[год]]=$L$2)/(Таблица1[[изд]:[изд]]=$O$1)/(Таблица1[[партия]:[партия]]=$S$1),ROW(U16))),"") ->  | W19: =IFERROR(INDEX(Таблица1[26],_xlfn.AGGREGATE(15,6,(ROW(Таблица1[26])-ROW(Таблица1[[#Headers],[26]]))/(Таблица1[[месяц]:[месяц]]=$J$2)/(Таблица1[[год]:[год]]=$L$2)/(Таблица1[[изд]:[изд]]=$O$1)/(Таблица1[[партия]:[партия]]=$S$1),ROW(V16))),"") ->  | X19: =IFERROR(INDEX(Таблица1[27],_xlfn.AGGREGATE(15,6,(ROW(Таблица1[27])-ROW(Таблица1[[#Headers],[27]]))/(Таблица1[[месяц]:[месяц]]=$J$2)/(Таблица1[[год]:[год]]=$L$2)/(Таблица1[[изд]:[изд]]=$O$1)/(Таблица1[[партия]:[партия]]=$S$1),ROW(W16))),"") ->  | Y19: =IFERROR(INDEX(Таблица1[30],_xlfn.AGGREGATE(15,6,(ROW(Таблица1[30])-ROW(Таблица1[[#Headers],[30]]))/(Таблица1[[месяц]:[месяц]]=$J$2)/(Таблица1[[год]:[год]]=$L$2)/(Таблица1[[изд]:[изд]]=$O$1)/(Таблица1[[партия]:[партия]]=$S$1),ROW(X16))),"") ->  | Z19: =IFERROR(INDEX(Таблица1[31],_xlfn.AGGREGATE(15,6,(ROW(Таблица1[31])-ROW(Таблица1[[#Headers],[31]]))/(Таблица1[[месяц]:[месяц]]=$J$2)/(Таблица1[[год]:[год]]=$L$2)/(Таблица1[[изд]:[изд]]=$O$1)/(Таблица1[[партия]:[партия]]=$S$1),ROW(Y16))),"") -> 
B20: =IFERROR(INDEX(Таблица1[коэф],_xlfn.AGGREGATE(15,6,(ROW(Таблица1[коэф])-ROW(Таблица1[[#Headers],[коэф]]))/(Таблица1[[месяц]:[месяц]]=$J$2)/(Таблица1[[год]:[год]]=$L$2)/(Таблица1[[изд]:[изд]]=$O$1)/(Таблица1[[партия]:[партия]]=$S$1),ROW(A17))),"") ->  | C20: =IFERROR(INDEX(Таблица1[Ф. И. О.],_xlfn.AGGREGATE(15,6,(ROW(Таблица1[Ф. И. О.])-ROW(Таблица1[[#Headers],[Ф. И. О.]]))/(Таблица1[[месяц]:[месяц]]=$J$2)/(Таблица1[[год]:[год]]=$L$2)/(Таблица1[[изд]:[изд]]=$O$1)/(Таблица1[[партия]:[партия]]=$S$1),ROW(B17))),"") ->  | D20: =IFERROR(INDEX(Таблица1[р/р],_xlfn.AGGREGATE(15,6,(ROW(Таблица1[р/р])-ROW(Таблица1[[#Headers],[р/р]]))/(Таблица1[[месяц]:[месяц]]=$J$2)/(Таблица1[[год]:[год]]=$L$2)/(Таблица1[[изд]:[изд]]=$O$1)/(Таблица1[[партия]:[партия]]=$S$1),ROW(C17))),"") ->  | E20: =IFERROR(INDEX(Таблица1[2],_xlfn.AGGREGATE(15,6,(ROW(Таблица1[2])-ROW(Таблица1[[#Headers],[2]]))/(Таблица1[[месяц]:[месяц]]=$J$2)/(Таблица1[[год]:[год]]=$L$2)/(Таблица1[[изд]:[изд]]=$O$1)/(Таблица1[[партия]:[партия]]=$S$1),ROW(D17))),"") ->  | F20: =IFERROR(INDEX(Таблица1[3],_xlfn.AGGREGATE(15,6,(ROW(Таблица1[3])-ROW(Таблица1[[#Headers],[3]]))/(Таблица1[[месяц]:[месяц]]=$J$2)/(Таблица1[[год]:[год]]=$L$2)/(Таблица1[[изд]:[изд]]=$O$1)/(Таблица1[[партия]:[партия]]=$S$1),ROW(E17))),"") ->  | G20: =IFERROR(INDEX(Таблица1[4],_xlfn.AGGREGATE(15,6,(ROW(Таблица1[4])-ROW(Таблица1[[#Headers],[4]]))/(Таблица1[[месяц]:[месяц]]=$J$2)/(Таблица1[[год]:[год]]=$L$2)/(Таблица1[[изд]:[изд]]=$O$1)/(Таблица1[[партия]:[партия]]=$S$1),ROW(F17))),"") ->  | H20: =IFERROR(INDEX(Таблица1[5],_xlfn.AGGREGATE(15,6,(ROW(Таблица1[5])-ROW(Таблица1[[#Headers],[5]]))/(Таблица1[[месяц]:[месяц]]=$J$2)/(Таблица1[[год]:[год]]=$L$2)/(Таблица1[[изд]:[изд]]=$O$1)/(Таблица1[[партия]:[партия]]=$S$1),ROW(G17))),"") ->  | I20: =IFERROR(INDEX(Таблица1[6],_xlfn.AGGREGATE(15,6,(ROW(Таблица1[6])-ROW(Таблица1[[#Headers],[6]]))/(Таблица1[[месяц]:[месяц]]=$J$2)/(Таблица1[[год]:[год]]=$L$2)/(Таблица1[[изд]:[изд]]=$O$1)/(Таблица1[[партия]:[партия]]=$S$1),ROW(H17))),"") ->  | J20: =IFERROR(INDEX(Таблица1[9],_xlfn.AGGREGATE(15,6,(ROW(Таблица1[9])-ROW(Таблица1[[#Headers],[9]]))/(Таблица1[[месяц]:[месяц]]=$J$2)/(Таблица1[[год]:[год]]=$L$2)/(Таблица1[[изд]:[изд]]=$O$1)/(Таблица1[[партия]:[партия]]=$S$1),ROW(I17))),"") ->  | K20: =IFERROR(INDEX(Таблица1[10],_xlfn.AGGREGATE(15,6,(ROW(Таблица1[10])-ROW(Таблица1[[#Headers],[10]]))/(Таблица1[[месяц]:[месяц]]=$J$2)/(Таблица1[[год]:[год]]=$L$2)/(Таблица1[[изд]:[изд]]=$O$1)/(Таблица1[[партия]:[партия]]=$S$1),ROW(J17))),"") ->  | L20: =IFERROR(INDEX(Таблица1[11],_xlfn.AGGREGATE(15,6,(ROW(Таблица1[11])-ROW(Таблица1[[#Headers],[11]]))/(Таблица1[[месяц]:[месяц]]=$J$2)/(Таблица1[[год]:[год]]=$L$2)/(Таблица1[[изд]:[изд]]=$O$1)/(Таблица1[[партия]:[партия]]=$S$1),ROW(K17))),"") ->  | M20: =IFERROR(INDEX(Таблица1[12],_xlfn.AGGREGATE(15,6,(ROW(Таблица1[12])-ROW(Таблица1[[#Headers],[12]]))/(Таблица1[[месяц]:[месяц]]=$J$2)/(Таблица1[[год]:[год]]=$L$2)/(Таблица1[[изд]:[изд]]=$O$1)/(Таблица1[[партия]:[партия]]=$S$1),ROW(L17))),"") ->  | N20: =IFERROR(INDEX(Таблица1[13],_xlfn.AGGREGATE(15,6,(ROW(Таблица1[13])-ROW(Таблица1[[#Headers],[13]]))/(Таблица1[[месяц]:[месяц]]=$J$2)/(Таблица1[[год]:[год]]=$L$2)/(Таблица1[[изд]:[изд]]=$O$1)/(Таблица1[[партия]:[партия]]=$S$1),ROW(M17))),"") ->  | O20: =IFERROR(INDEX(Таблица1[16],_xlfn.AGGREGATE(15,6,(ROW(Таблица1[16])-ROW(Таблица1[[#Headers],[16]]))/(Таблица1[[месяц]:[месяц]]=$J$2)/(Таблица1[[год]:[год]]=$L$2)/(Таблица1[[изд]:[изд]]=$O$1)/(Таблица1[[партия]:[партия]]=$S$1),ROW(N17))),"") ->  | P20: =IFERROR(INDEX(Таблица1[17],_xlfn.AGGREGATE(15,6,(ROW(Таблица1[17])-ROW(Таблица1[[#Headers],[17]]))/(Таблица1[[месяц]:[месяц]]=$J$2)/(Таблица1[[год]:[год]]=$L$2)/(Таблица1[[изд]:[изд]]=$O$1)/(Таблица1[[партия]:[партия]]=$S$1),ROW(O17))),"") ->  | Q20: =IFERROR(INDEX(Таблица1[18],_xlfn.AGGREGATE(15,6,(ROW(Таблица1[18])-ROW(Таблица1[[#Headers],[18]]))/(Таблица1[[месяц]:[месяц]]=$J$2)/(Таблица1[[год]:[год]]=$L$2)/(Таблица1[[изд]:[изд]]=$O$1)/(Таблица1[[партия]:[партия]]=$S$1),ROW(P17))),"") ->  | R20: =IFERROR(INDEX(Таблица1[19],_xlfn.AGGREGATE(15,6,(ROW(Таблица1[19])-ROW(Таблица1[[#Headers],[19]]))/(Таблица1[[месяц]:[месяц]]=$J$2)/(Таблица1[[год]:[год]]=$L$2)/(Таблица1[[изд]:[изд]]=$O$1)/(Таблица1[[партия]:[партия]]=$S$1),ROW(Q17))),"") ->  | S20: =IFERROR(INDEX(Таблица1[20],_xlfn.AGGREGATE(15,6,(ROW(Таблица1[20])-ROW(Таблица1[[#Headers],[20]]))/(Таблица1[[месяц]:[месяц]]=$J$2)/(Таблица1[[год]:[год]]=$L$2)/(Таблица1[[изд]:[изд]]=$O$1)/(Таблица1[[партия]:[партия]]=$S$1),ROW(R17))),"") ->  | T20: =IFERROR(INDEX(Таблица1[23],_xlfn.AGGREGATE(15,6,(ROW(Таблица1[23])-ROW(Таблица1[[#Headers],[23]]))/(Таблица1[[месяц]:[месяц]]=$J$2)/(Таблица1[[год]:[год]]=$L$2)/(Таблица1[[изд]:[изд]]=$O$1)/(Таблица1[[партия]:[партия]]=$S$1),ROW(S17))),"") ->  | U20: =IFERROR(INDEX(Таблица1[24],_xlfn.AGGREGATE(15,6,(ROW(Таблица1[24])-ROW(Таблица1[[#Headers],[24]]))/(Таблица1[[месяц]:[месяц]]=$J$2)/(Таблица1[[год]:[год]]=$L$2)/(Таблица1[[изд]:[изд]]=$O$1)/(Таблица1[[партия]:[партия]]=$S$1),ROW(T17))),"") ->  | V20: =IFERROR(INDEX(Таблица1[25],_xlfn.AGGREGATE(15,6,(ROW(Таблица1[25])-ROW(Таблица1[[#Headers],[25]]))/(Таблица1[[месяц]:[месяц]]=$J$2)/(Таблица1[[год]:[год]]=$L$2)/(Таблица1[[изд]:[изд]]=$O$1)/(Таблица1[[партия]:[партия]]=$S$1),ROW(U17))),"") ->  | W20: =IFERROR(INDEX(Таблица1[26],_xlfn.AGGREGATE(15,6,(ROW(Таблица1[26])-ROW(Таблица1[[#Headers],[26]]))/(Таблица1[[месяц]:[месяц]]=$J$2)/(Таблица1[[год]:[год]]=$L$2)/(Таблица1[[изд]:[изд]]=$O$1)/(Таблица1[[партия]:[партия]]=$S$1),ROW(V17))),"") ->  | X20: =IFERROR(INDEX(Таблица1[27],_xlfn.AGGREGATE(15,6,(ROW(Таблица1[27])-ROW(Таблица1[[#Headers],[27]]))/(Таблица1[[месяц]:[месяц]]=$J$2)/(Таблица1[[год]:[год]]=$L$2)/(Таблица1[[изд]:[изд]]=$O$1)/(Таблица1[[партия]:[партия]]=$S$1),ROW(W17))),"") ->  | Y20: =IFERROR(INDEX(Таблица1[30],_xlfn.AGGREGATE(15,6,(ROW(Таблица1[30])-ROW(Таблица1[[#Headers],[30]]))/(Таблица1[[месяц]:[месяц]]=$J$2)/(Таблица1[[год]:[год]]=$L$2)/(Таблица1[[изд]:[изд]]=$O$1)/(Таблица1[[партия]:[партия]]=$S$1),ROW(X17))),"") ->  | Z20: =IFERROR(INDEX(Таблица1[31],_xlfn.AGGREGATE(15,6,(ROW(Таблица1[31])-ROW(Таблица1[[#Headers],[31]]))/(Таблица1[[месяц]:[месяц]]=$J$2)/(Таблица1[[год]:[год]]=$L$2)/(Таблица1[[изд]:[изд]]=$O$1)/(Таблица1[[партия]:[партия]]=$S$1),ROW(Y17))),"") -> 

Sheet база (hidden)
A1: партия | B1: Ф. И. О. | C1: р/р | D1: разряд | E1: Таб № | G1: Разряд работы | H1: Стоимость | I1: 4% | J1: 8% | K1: 12% | L1: 16% | M1: 24%
A2: 4-21 | B2: работник1 | C2: 3/16 | D2: 3 | E2: 15118 | G2: 1 | H2: 10 | I2: =ROUND(H2*I1+H2,2) -> 10.4 | J2: =ROUND(H2*J1+H2,2) -> 10.8 | K2: =ROUND(H2*K1+H2,2) -> 11.2 | L2: =ROUND(H2*L1+H2,2) -> 11.6 | M2: =ROUND(H2*M1+H2,2) -> 12.4
A3: 33-21 | B3: работник2 | C3: 2/4 | D3: 3 | E3: 15791 | G3: 2 | H3: 20 | I3: =ROUND(H3*I1+H3,2) -> 20.8 | J3: =ROUND(H3*J1+H3,2) -> 21.6 | K3: =ROUND(H3*K1+H3,2) -> 22.4 | L3: =ROUND(H3*L1+H3,2) -> 23.2 | M3: =ROUND(H3*M1+H3,2) -> 24.8
A4: 27-21 | B4: работник3 | C4: 3/4 | D4: 2 | E4: 15117 | G4: 3 | H4: 30 | I4: =ROUND(H4*I1+H4,2) -> 31.2 | J4: =ROUND(H4*J1+H4,2) -> 32.4 | K4: =ROUND(H4*K1+H4,2) -> 33.6 | L4: =ROUND(H4*L1+H4,2) -> 34.8 | M4: =ROUND(H4*M1+H4,2) -> 37.2
A5: 1-21 | B5: работник4 | C5: 4/8 | D5: 3 | E5: 15043 | G5: 4 | H5: 40 | I5: =ROUND(H5*I1+H5,2) -> 41.6 | J5: =ROUND(H5*J1+H5,2) -> 43.2 | K5: =ROUND(H5*K1+H5,2) -> 44.8 | L5: =ROUND(H5*L1+H5,2) -> 46.4 | M5: =ROUND(H5*M1+H5,2) -> 49.6
A6: 2-21 | B6: работник5 | C6: 3/24 | D6: 4 | E6: 15001 | G6: 5 | H6: 50 | I6: =ROUND(H6*I1+H6,2) -> 52 | J6: =ROUND(H6*J1+H6,2) -> 54 | K6: =ROUND(H6*K1+H6,2) -> 56 | L6: =ROUND(H6*L1+H6,2) -> 58 | M6: =ROUND(H6*M1+H6,2) -> 62
A7: 1-22 | B7: работник6 | C7: 4/24 | D7: 3 | E7: 15894 | G7: 6 | H7: 60 | I7: =ROUND(H7*I1+H7,2) -> 62.4 | J7: =ROUND(H7*J1+H7,2) -> 64.8 | K7: =ROUND(H7*K1+H7,2) -> 67.2 | L7: =ROUND(H7*L1+H7,2) -> 69.6 | M7: =ROUND(H7*M1+H7,2) -> 74.4
B8: работник7 | C8: 4/16 | D8: 3 | E8: 15590
B9: работник8 | D9: 4 | E9: 15340
B10: работник9 | D10: 4 | E10: 15608
B11: работник10 | D11: 4 | E11: 13676
B12: работник11 | D12: 4 | E12: 15575
B13: работник12 | D13: 3 | E13: 14883
B14: работник13 | D14: 3 | E14: 15041
B15: работник14 | D15: 3 | E15: 15556
B16: работник15 | D16: 3 | E16: 15589
B17: работник16 | D17: 4 | E17: 15098
B18: работник17 | D18: 3 | E18: 15237
B19: работник18 | D19: 3 | E19: 14693
B20: работник19 | D20: 2 | E20: 14988
B21: работник20 | D21: 3 | E21: 15889

Sheet расчет (hidden)
A1: производств уч. № 1
N2: ЗП | O2: январь | Q2: 2021
B4: ФИО | C4: Табельный номер | D4: разряд работника | E4: 0.04 | I4: 0.08 | M4: 0.12 | Q4: 0.16 | U4: 0.24 | Y4: итого часы | Z4: итого сумма, руб | AA4: подпись работник
E5: тариф | F5: коэффициент | G5: часы | H5: сумма | I5: тариф | J5: коэффициент | K5: часы | L5: сумма | M5: тариф | N5: коэффициент | O5: часы | P5: сумма | Q5: тариф | R5: коэффициент | S5: часы | T5: сумма | U5: тариф | V5: коэффициент | W5: часы | X5: сумма
A6: 1 | C6: =INDEX(база!E2:E21, MATCH(B7,база!B2:B21,0)) -> 15001 | D6: =INDEX(база!D2:D21, MATCH(B7,база!B2:B21,0)) -> 4 | F6: 1 | H6: =E6*F6*G6 -> 0 | J6: 1 | L6: =I6*J6*K6 -> 0 | N6: 1 | P6: =M6*N6*O6 -> 0 | R6: 1 | T6: =Q6*R6*S6 -> 0 | V6: 1 | X6: =U6*V6*W6 -> 0 | Y6: =G6+G7+G8+K6+K7+K8+O6+O7+O8+S6+S7+S8+W6+W7+W8 -> 0 | Z6: =H6+H7+H8+L6+L7+L8+P6+P7+P8+T6+T7+T8+X6+X7+X8 -> 0
B7: работник5 | F7: 1.1 | H7: =E7*F7*G7 -> 0 | J7: 1.1 | L7: =I7*J7*K7 -> 0 | N7: 1.1 | P7: =M7*N7*O7 -> 0 | R7: 1.1 | T7: =Q7*R7*S7 -> 0 | V7: 1.1 | X7: =U7*V7*W7 -> 0
F8: 1.5 | H8: =E8*F8*G8 -> 0 | J8: 1.5 | L8: =I8*J8*K8 -> 0 | N8: 1.5 | P8: =M8*N8*O8 -> 0 | R8: 1.5 | T8: =Q8*R8*S8 -> 0 | V8: 1.5 | X8: =U8*V8*W8 -> 0
